Workbook

Sheet LevUE
U1: 1 | V1: 2 | W1: 3 | X1: 4 | Y1: 5 | Z1: 6 | AA1: 7 | AB1: 8 | AC1: 9 | AD1: 10 | AE1: 11 | AF1: 12 | AG1: 13 | AH1: 14 | AI1: 15 | AJ1: 16 | AK1: 17 | AL1: 18 | AM1: 19 | AN1: 20 | AO1: 21 | AP1: 22 | AQ1: 23 | AR1: 24 | AS1: 25 | AT1: 26 | AU1: 27 | AV1: 28 | AW1: 29 | AX1: 30 | AY1: 31 | AZ1: 32 | BA1: 33 | BB1: 34 | BC1: 35 | BD1: 36 | BE1: 37 | BF1: 38 | BG1: 39 | BH1: 40 | BI1: 41 | BJ1: 42 | BK1: 43 | BL1: 44 | BM1: 45 | BN1: 46 | BO1: 47 | BP1: 48 | BQ1: 49 | BR1: 50 | BS1: 51 | BT1: 52 | BU1: 53 | BV1: 54 | BW1: 55 | BX1: 56 | BY1: 57 | BZ1: 58 | CA1: 59 | CB1: 60 | CC1: 61 | CD1: 62 | CE1: 63 | CF1: 64 | CG1: 65 | CH1: 66 | CI1: 67 | CJ1: 68 | CK1: 69 | CL1: 70 | CM1: 71 | CN1: 72 | CO1: 73 | CP1: 74 | CQ1: 75 | CR1: 76 | CS1: 77 | CT1: 78 | CU1: 79 | CV1: 80 | CW1: 81 | CX1: 82 | CY1: 83 | CZ1: 84 | DA1: 85 | DB1: 86 | DC1: 87 | DD1: 88 | DE1: 89 | DF1: 90 | DG1: 91 | DH1: 92 | DI1: 93 | DJ1: 94 | DK1: 95 | DL1: 96 | DM1: 97 | DN1: 98 | DO1: 99 | DP1: 100 | DQ1: 101 | DR1: 102 | DS1: 103 | DT1: 104 | DU1: 105 | DV1: 106 | DW1: 107 | DX1: 108 | DY1: 109 | DZ1: 110 | EA1: 111 | EB1: 112 | EC1: 113 | ED1: 114 | EE1: 115 | EF1: 116 | EG1: 117 | EH1: 118 | EI1: 119 | EJ1: 120 | EK1: 121 | EL1: 122 | EM1: 123 | EN1: 124 | EO1: 125 | EP1: 126 | EQ1: 127 | ER1: 128 | ES1: 129 | ET1: 130 | EU1: 131 | EV1: 132 | EW1: 133 | EX1: 134 | EY1: 135 | EZ1: 136 | FA1: 137 | FB1: 138 | FC1: 139 | FD1: 140 | FE1: 141 | FF1: 142 | FG1: 143 | FH1: 144 | FI1: 145 | FJ1: 146 | FK1: 147 | FL1: 148 | FM1: 149 | FN1: 150 | FO1: 151 | FP1: 152 | FQ1: 153 | FR1: 154 | FS1: 155 | FT1: 156 | FU1: 157 | FV1: 158 | FW1: 159 | FX1: 160 | FY1: 161 | FZ1: 162 | GA1: 163 | GB1: 164 | GC1: 165 | GD1: 166 | GE1: 167 | GF1: 168 | GG1: 169 | GH1: 170 | GI1: 171 | GJ1: 172 | GK1: 173 | GL1: 174 | GM1: 175 | GN1: 176 | GO1: 177 | GP1: 178 | GQ1: 179 | GR1: 180 | GS1: 181 | GT1: 182 | GU1: 183 | GV1: 184 | GW1: 185 | GX1: 186 | GY1: 187 | GZ1: 188 | HA1: 189 | HB1: 190 | HC1: 191 | HD1: 192 | HE1: 193 | HF1: 194 | HG1: 195 | HH1: 196 | HI1: 197 | HJ1: 198 | HK1: 199 | HL1: 200 | HM1: 201 | HN1: 202 | HO1: 203 | HP1: 204 | HQ1: 205 | HR1: 206 | HS1: 207 | HT1: 208 | HU1: 209 | HV1: 210 | HW1: 211 | HX1: 212 | HY1: 213 | HZ1: 214 | IA1: 215 | IB1: 216 | IC1: 217 | ID1: 218 | IE1: 219 | IF1: 220 | IG1: 221 | IH1: 222 | II1: 223 | IJ1: 224 | IK1: 225 | IL1: 226 | IM1: 227 | IN1: 228 | IO1: 229 | IP1: 230 | IQ1: 231 | IR1: 232 | IS1: 233 | IT1: 234 | IU1: 235 | IV1: 236 | IW1: 237 | IX1: 238 | IY1: 239 | IZ1: 240 | JA1: 241 | JB1: 242 | JC1: 243 | JD1: 244 | JE1: 245 | JF1: 246 | JG1: 247 | JH1: 248 | JI1: 249 | JJ1: 250 | JM1: =TRANSPOSE(_xlfn.UNIQUE(_xlfn._xlws.FILTER(LEV[FAG],LEV[Medtag]<>"",0),FALSE,FALSE)) -> Afstribning | JN1: Asfalt | JO1: Belægning | JP1: Beton Entreprenør | JQ1: El-arbejder | JR1: Entreprenør | JS1: Kloak Beton | JT1: Kloak Plast | JU1: Lege udstyr | JV1: planter | JW1: Pleje | JX1: Ramning, pæle, spuns | JY1: Stål - Smed | JZ1: Terræn inventar | KA1: Tømrer | KB1: Vognmandsydelser
K2: 1 | O2: MAIL | U2: =IF(U4<>0,_xlfn.XLOOKUP(U$1,LEV[[L/UE.id]:[L/UE.id]],LEV[[E-mail]:[E-mail]],"",0),"") ->  | V2: =IF(V4<>0,_xlfn.XLOOKUP(V$1,LEV[[L/UE.id]:[L/UE.id]],LEV[[E-mail]:[E-mail]],"",0),"") ->  | W2: =IF(W4<>0,_xlfn.XLOOKUP(W$1,LEV[[L/UE.id]:[L/UE.id]],LEV[[E-mail]:[E-mail]],"",0),"") ->  | X2: =IF(X4<>0,_xlfn.XLOOKUP(X$1,LEV[[L/UE.id]:[L/UE.id]],LEV[[E-mail]:[E-mail]],"",0),"") ->  | Y2: =IF(Y4<>0,_xlfn.XLOOKUP(Y$1,LEV[[L/UE.id]:[L/UE.id]],LEV[[E-mail]:[E-mail]],"",0),"") -> jag@lkf.dk | Z2: =IF(Z4<>0,_xlfn.XLOOKUP(Z$1,LEV[[L/UE.id]:[L/UE.id]],LEV[[E-mail]:[E-mail]],"",0),"") -> jod@eurostar.as | AA2: =IF(AA4<>0,_xlfn.XLOOKUP(AA$1,LEV[[L/UE.id]:[L/UE.id]],LEV[[E-mail]:[E-mail]],"",0),"") ->  | AB2: =IF(AB4<>0,_xlfn.XLOOKUP(AB$1,LEV[[L/UE.id]:[L/UE.id]],LEV[[E-mail]:[E-mail]],"",0),"") -> asfalt.georg@mail.tele.dk | AC2: =IF(AC4<>0,_xlfn.XLOOKUP(AC$1,LEV[[L/UE.id]:[L/UE.id]],LEV[[E-mail]:[E-mail]],"",0),"") -> aal@ncc.dk | AD2: =IF(AD4<>0,_xlfn.XLOOKUP(AD$1,LEV[[L/UE.id]:[L/UE.id]],LEV[[E-mail]:[E-mail]],"",0),"") -> karin.l.jorgensen@peabasfalt.dk | AE2: =IF(AE4<>0,_xlfn.XLOOKUP(AE$1,LEV[[L/UE.id]:[L/UE.id]],LEV[[E-mail]:[E-mail]],"",0),"") -> KR@munck.dk | AF2: =IF(AF4<>0,_xlfn.XLOOKUP(AF$1,LEV[[L/UE.id]:[L/UE.id]],LEV[[E-mail]:[E-mail]],"",0),"") -> jp@asfaltsjakket.dk | AG2: =IF(AG4<>0,_xlfn.XLOOKUP(AG$1,LEV[[L/UE.id]:[L/UE.id]],LEV[[E-mail]:[E-mail]],"",0),"") ->  | AH2: =IF(AH4<>0,_xlfn.XLOOKUP(AH$1,LEV[[L/UE.id]:[L/UE.id]],LEV[[E-mail]:[E-mail]],"",0),"") -> salg@pankas.dk | AI2: =IF(AI4<>0,_xlfn.XLOOKUP(AI$1,LEV[[L/UE.id]:[L/UE.id]],LEV[[E-mail]:[E-mail]],"",0),"") -> TilbudSjaelland@Colas.DK | AJ2: =IF(AJ4<>0,_xlfn.XLOOKUP(AJ$1,LEV[[L/UE.id]:[L/UE.id]],LEV[[E-mail]:[E-mail]],"",0),"") ->  | AK2: =IF(AK4<>0,_xlfn.XLOOKUP(AK$1,LEV[[L/UE.id]:[L/UE.id]],LEV[[E-mail]:[E-mail]],"",0),"") ->  | AL2: =IF(AL4<>0,_xlfn.XLOOKUP(AL$1,LEV[[L/UE.id]:[L/UE.id]],LEV[[E-mail]:[E-mail]],"",0),"") -> Info@Gammelrand.dk | AM2: =IF(AM4<>0,_xlfn.XLOOKUP(AM$1,LEV[[L/UE.id]:[L/UE.id]],LEV[[E-mail]:[E-mail]],"",0),"") -> Ordre22@ibf.dk | AN2: =IF(AN4<>0,_xlfn.XLOOKUP(AN$1,LEV[[L/UE.id]:[L/UE.id]],LEV[[E-mail]:[E-mail]],"",0),"") ->  | AO2: =IF(AO4<>0,_xlfn.XLOOKUP(AO$1,LEV[[L/UE.id]:[L/UE.id]],LEV[[E-mail]:[E-mail]],"",0),"") ->  | AP2: =IF(AP4<>0,_xlfn.XLOOKUP(AP$1,LEV[[L/UE.id]:[L/UE.id]],LEV[[E-mail]:[E-mail]],"",0),"") -> amb@tscherning.dk | AQ2: =IF(AQ4<>0,_xlfn.XLOOKUP(AQ$1,LEV[[L/UE.id]:[L/UE.id]],LEV[[E-mail]:[E-mail]],"",0),"") -> jens@freitag.dk | AR2: =IF(AR4<>0,_xlfn.XLOOKUP(AR$1,LEV[[L/UE.id]:[L/UE.id]],LEV[[E-mail]:[E-mail]],"",0),"") -> Info@concretehead.dk | AS2: =IF(AS4<>0,_xlfn.XLOOKUP(AS$1,LEV[[L/UE.id]:[L/UE.id]],LEV[[E-mail]:[E-mail]],"",0),"") ->  | AT2: =IF(AT4<>0,_xlfn.XLOOKUP(AT$1,LEV[[L/UE.id]:[L/UE.id]],LEV[[E-mail]:[E-mail]],"",0),"") ->  | AU2: =IF(AU4<>0,_xlfn.XLOOKUP(AU$1,LEV[[L/UE.id]:[L/UE.id]],LEV[[E-mail]:[E-mail]],"",0),"") ->  | AV2: =IF(AV4<>0,_xlfn.XLOOKUP(AV$1,LEV[[L/UE.id]:[L/UE.id]],LEV[[E-mail]:[E-mail]],"",0),"") ->  | AW2: =IF(AW4<>0,_xlfn.XLOOKUP(AW$1,LEV[[L/UE.id]:[L/UE.id]],LEV[[E-mail]:[E-mail]],"",0),"") ->  | AX2: =IF(AX4<>0,_xlfn.XLOOKUP(AX$1,LEV[[L/UE.id]:[L/UE.id]],LEV[[E-mail]:[E-mail]],"",0),"") ->  | AY2: =IF(AY4<>0,_xlfn.XLOOKUP(AY$1,LEV[[L/UE.id]:[L/UE.id]],LEV[[E-mail]:[E-mail]],"",0),"") ->  | AZ2: =IF(AZ4<>0,_xlfn.XLOOKUP(AZ$1,LEV[[L/UE.id]:[L/UE.id]],LEV[[E-mail]:[E-mail]],"",0),"") ->  | BA2: =IF(BA4<>0,_xlfn.XLOOKUP(BA$1,LEV[[L/UE.id]:[L/UE.id]],LEV[[E-mail]:[E-mail]],"",0),"") ->  | BB2: =IF(BB4<>0,_xlfn.XLOOKUP(BB$1,LEV[[L/UE.id]:[L/UE.id]],LEV[[E-mail]:[E-mail]],"",0),"") ->  | BC2: =IF(BC4<>0,_xlfn.XLOOKUP(BC$1,LEV[[L/UE.id]:[L/UE.id]],LEV[[E-mail]:[E-mail]],"",0),"") ->  | BD2: =IF(BD4<>0,_xlfn.XLOOKUP(BD$1,LEV[[L/UE.id]:[L/UE.id]],LEV[[E-mail]:[E-mail]],"",0),"") ->  | BE2: =IF(BE4<>0,_xlfn.XLOOKUP(BE$1,LEV[[L/UE.id]:[L/UE.id]],LEV[[E-mail]:[E-mail]],"",0),"") ->  | BF2: =IF(BF4<>0,_xlfn.XLOOKUP(BF$1,LEV[[L/UE.id]:[L/UE.id]],LEV[[E-mail]:[E-mail]],"",0),"") ->  | BG2: =IF(BG4<>0,_xlfn.XLOOKUP(BG$1,LEV[[L/UE.id]:[L/UE.id]],LEV[[E-mail]:[E-mail]],"",0),"") ->  | BH2: =IF(BH4<>0,_xlfn.XLOOKUP(BH$1,LEV[[L/UE.id]:[L/UE.id]],LEV[[E-mail]:[E-mail]],"",0),"") ->  | BI2: =IF(BI4<>0,_xlfn.XLOOKUP(BI$1,LEV[[L/UE.id]:[L/UE.id]],LEV[[E-mail]:[E-mail]],"",0),"") -> henrik@hh-installation.dk | BJ2: =IF(BJ4<>0,_xlfn.XLOOKUP(BJ$1,LEV[[L/UE.id]:[L/UE.id]],LEV[[E-mail]:[E-mail]],"",0),"") -> info@dansksportsbelysning.dk | BK2: =IF(BK4<>0,_xlfn.XLOOKUP(BK$1,LEV[[L/UE.id]:[L/UE.id]],LEV[[E-mail]:[E-mail]],"",0),"") ->  | BL2: =IF(BL4<>0,_xlfn.XLOOKUP(BL$1,LEV[[L/UE.id]:[L/UE.id]],LEV[[E-mail]:[E-mail]],"",0),"") ->  | BM2: =IF(BM4<>0,_xlfn.XLOOKUP(BM$1,LEV[[L/UE.id]:[L/UE.id]],LEV[[E-mail]:[E-mail]],"",0),"") ->  | BN2: =IF(BN4<>0,_xlfn.XLOOKUP(BN$1,LEV[[L/UE.id]:[L/UE.id]],LEV[[E-mail]:[E-mail]],"",0),"") ->  | BO2: =IF(BO4<>0,_xlfn.XLOOKUP(BO$1,LEV[[L/UE.id]:[L/UE.id]],LEV[[E-mail]:[E-mail]],"",0),"") -> bie@mjeriksson.dk | BP2: =IF(BP4<>0,_xlfn.XLOOKUP(BP$1,LEV[[L/UE.id]:[L/UE.id]],LEV[[E-mail]:[E-mail]],"",0),"") -> tilbud@holboell.dk | BQ2: =IF(BQ4<>0,_xlfn.XLOOKUP(BQ$1,LEV[[L/UE.id]:[L/UE.id]],LEV[[E-mail]:[E-mail]],"",0),"") -> sja@barslund.as | BR2: =IF(BR4<>0,_xlfn.XLOOKUP(BR$1,LEV[[L/UE.id]:[L/UE.id]],LEV[[E-mail]:[E-mail]],"",0),"") ->  | BS2: =IF(BS4<>0,_xlfn.XLOOKUP(BS$1,LEV[[L/UE.id]:[L/UE.id]],LEV[[E-mail]:[E-mail]],"",0),"") ->  | BT2: =IF(BT4<>0,_xlfn.XLOOKUP(BT$1,LEV[[L/UE.id]:[L/UE.id]],LEV[[E-mail]:[E-mail]],"",0),"") ->  | BU2: =IF(BU4<>0,_xlfn.XLOOKUP(BU$1,LEV[[L/UE.id]:[L/UE.id]],LEV[[E-mail]:[E-mail]],"",0),"") ->  | BV2: =IF(BV4<>0,_xlfn.XLOOKUP(BV$1,LEV[[L/UE.id]:[L/UE.id]],LEV[[E-mail]:[E-mail]],"",0),"") ->  | BW2: =IF(BW4<>0,_xlfn.XLOOKUP(BW$1,LEV[[L/UE.id]:[L/UE.id]],LEV[[E-mail]:[E-mail]],"",0),"") ->  | BX2: =IF(BX4<>0,_xlfn.XLOOKUP(BX$1,LEV[[L/UE.id]:[L/UE.id]],LEV[[E-mail]:[E-mail]],"",0),"") ->  | BY2: =IF(BY4<>0,_xlfn.XLOOKUP(BY$1,LEV[[L/UE.id]:[L/UE.id]],LEV[[E-mail]:[E-mail]],"",0),"") ->  | BZ2: =IF(BZ4<>0,_xlfn.XLOOKUP(BZ$1,LEV[[L/UE.id]:[L/UE.id]],LEV[[E-mail]:[E-mail]],"",0),"") ->  | CA2: =IF(CA4<>0,_xlfn.XLOOKUP(CA$1,LEV[[L/UE.id]:[L/UE.id]],LEV[[E-mail]:[E-mail]],"",0),"") ->  | CB2: =IF(CB4<>0,_xlfn.XLOOKUP(CB$1,LEV[[L/UE.id]:[L/UE.id]],LEV[[E-mail]:[E-mail]],"",0),"") ->  | CC2: =IF(CC4<>0,_xlfn.XLOOKUP(CC$1,LEV[[L/UE.id]:[L/UE.id]],LEV[[E-mail]:[E-mail]],"",0),"") ->  | CD2: =IF(CD4<>0,_xlfn.XLOOKUP(CD$1,LEV[[L/UE.id]:[L/UE.id]],LEV[[E-mail]:[E-mail]],"",0),"") ->  | CE2: =IF(CE4<>0,_xlfn.XLOOKUP(CE$1,LEV[[L/UE.id]:[L/UE.id]],LEV[[E-mail]:[E-mail]],"",0),"") ->  | CF2: =IF(CF4<>0,_xlfn.XLOOKUP(CF$1,LEV[[L/UE.id]:[L/UE.id]],LEV[[E-mail]:[E-mail]],"",0),"") -> info@kantdesign.dk | CG2: =IF(CG4<>0,_xlfn.XLOOKUP(CG$1,LEV[[L/UE.id]:[L/UE.id]],LEV[[E-mail]:[E-mail]],"",0),"") ->  | CH2: =IF(CH4<>0,_xlfn.XLOOKUP(CH$1,LEV[[L/UE.id]:[L/UE.id]],LEV[[E-mail]:[E-mail]],"",0),"") ->  | CI2: =IF(CI4<>0,_xlfn.XLOOKUP(CI$1,LEV[[L/UE.id]:[L/UE.id]],LEV[[E-mail]:[E-mail]],"",0),"") ->  | CJ2: =IF(CJ4<>0,_xlfn.XLOOKUP(CJ$1,LEV[[L/UE.id]:[L/UE.id]],LEV[[E-mail]:[E-mail]],"",0),"") ->  | CK2: =IF(CK4<>0,_xlfn.XLOOKUP(CK$1,LEV[[L/UE.id]:[L/UE.id]],LEV[[E-mail]:[E-mail]],"",0),"") -> info@gammelrand.dk | CL2: =IF(CL4<>0,_xlfn.XLOOKUP(CL$1,LEV[[L/UE.id]:[L/UE.id]],LEV[[E-mail]:[E-mail]],"",0),"") -> ordre16@ibf.dk | CM2: =IF(CM4<>0,_xlfn.XLOOKUP(CM$1,LEV[[L/UE.id]:[L/UE.id]],LEV[[E-mail]:[E-mail]],"",0),"") -> tilbud@nyrupplast.dk | CN2: =IF(CN4<>0,_xlfn.XLOOKUP(CN$1,LEV[[L/UE.id]:[L/UE.id]],LEV[[E-mail]:[E-mail]],"",0),"") -> mkj@lonhart.dk | CO2: =IF(CO4<>0,_xlfn.XLOOKUP(CO$1,LEV[[L/UE.id]:[L/UE.id]],LEV[[E-mail]:[E-mail]],"",0),"") -> tilbud@scanpipe.dk | CP2: =IF(CP4<>0,_xlfn.XLOOKUP(CP$1,LEV[[L/UE.id]:[L/UE.id]],LEV[[E-mail]:[E-mail]],"",0),"") ->  | CQ2: =IF(CQ4<>0,_xlfn.XLOOKUP(CQ$1,LEV[[L/UE.id]:[L/UE.id]],LEV[[E-mail]:[E-mail]],"",0),"") ->  | CR2: =IF(CR4<>0,_xlfn.XLOOKUP(CR$1,LEV[[L/UE.id]:[L/UE.id]],LEV[[E-mail]:[E-mail]],"",0),"") ->  | CS2: =IF(CS4<>0,_xlfn.XLOOKUP(CS$1,LEV[[L/UE.id]:[L/UE.id]],LEV[[E-mail]:[E-mail]],"",0),"") ->  | CT2: =IF(CT4<>0,_xlfn.XLOOKUP(CT$1,LEV[[L/UE.id]:[L/UE.id]],LEV[[E-mail]:[E-mail]],"",0),"") ->  | CU2: =IF(CU4<>0,_xlfn.XLOOKUP(CU$1,LEV[[L/UE.id]:[L/UE.id]],LEV[[E-mail]:[E-mail]],"",0),"") ->  | CV2: =IF(CV4<>0,_xlfn.XLOOKUP(CV$1,LEV[[L/UE.id]:[L/UE.id]],LEV[[E-mail]:[E-mail]],"",0),"") ->  | CW2: =IF(CW4<>0,_xlfn.XLOOKUP(CW$1,LEV[[L/UE.id]:[L/UE.id]],LEV[[E-mail]:[E-mail]],"",0),"") ->  | CX2: =IF(CX4<>0,_xlfn.XLOOKUP(CX$1,LEV[[L/UE.id]:[L/UE.id]],LEV[[E-mail]:[E-mail]],"",0),"") ->  | CY2: =IF(CY4<>0,_xlfn.XLOOKUP(CY$1,LEV[[L/UE.id]:[L/UE.id]],LEV[[E-mail]:[E-mail]],"",0),"") -> sm@maxplay.dk | CZ2: =IF(CZ4<>0,_xlfn.XLOOKUP(CZ$1,LEV[[L/UE.id]:[L/UE.id]],LEV[[E-mail]:[E-mail]],"",0),"") ->  | DA2: =IF(DA4<>0,_xlfn.XLOOKUP(DA$1,LEV[[L/UE.id]:[L/UE.id]],LEV[[E-mail]:[E-mail]],"",0),"") -> pp@hags.dk | DB2: =IF(DB4<>0,_xlfn.XLOOKUP(DB$1,LEV[[L/UE.id]:[L/UE.id]],LEV[[E-mail]:[E-mail]],"",0),"") ->  | DC2: =IF(DC4<>0,_xlfn.XLOOKUP(DC$1,LEV[[L/UE.id]:[L/UE.id]],LEV[[E-mail]:[E-mail]],"",0),"") ->  | DD2: =IF(DD4<>0,_xlfn.XLOOKUP(DD$1,LEV[[L/UE.id]:[L/UE.id]],LEV[[E-mail]:[E-mail]],"",0),"") ->  | DE2: =IF(DE4<>0,_xlfn.XLOOKUP(DE$1,LEV[[L/UE.id]:[L/UE.id]],LEV[[E-mail]:[E-mail]],"",0),"") ->  | DF2: =IF(DF4<>0,_xlfn.XLOOKUP(DF$1,LEV[[L/UE.id]:[L/UE.id]],LEV[[E-mail]:[E-mail]],"",0),"") ->  | DG2: =IF(DG4<>0,_xlfn.XLOOKUP(DG$1,LEV[[L/UE.id]:[L/UE.id]],LEV[[E-mail]:[E-mail]],"",0),"") -> mail@cado.dk | DH2: =IF(DH4<>0,_xlfn.XLOOKUP(DH$1,LEV[[L/UE.id]:[L/UE.id]],LEV[[E-mail]:[E-mail]],"",0),"") -> smilla@elverdal.dk | DI2: =IF(DI4<>0,_xlfn.XLOOKUP(DI$1,LEV[[L/UE.id]:[L/UE.id]],LEV[[E-mail]:[E-mail]],"",0),"") -> jesper@copla.dk | DJ2: =IF(DJ4<>0,_xlfn.XLOOKUP(DJ$1,LEV[[L/UE.id]:[L/UE.id]],LEV[[E-mail]:[E-mail]],"",0),"") ->  | DK2: =IF(DK4<>0,_xlfn.XLOOKUP(DK$1,LEV[[L/UE.id]:[L/UE.id]],LEV[[E-mail]:[E-mail]],"",0),"") ->  | DL2: =IF(DL4<>0,_xlfn.XLOOKUP(DL$1,LEV[[L/UE.id]:[L/UE.id]],LEV[[E-mail]:[E-mail]],"",0),"") ->  | DM2: =IF(DM4<>0,_xlfn.XLOOKUP(DM$1,LEV[[L/UE.id]:[L/UE.id]],LEV[[E-mail]:[E-mail]],"",0),"") ->  | DN2: =IF(DN4<>0,_xlfn.XLOOKUP(DN$1,LEV[[L/UE.id]:[L/UE.id]],LEV[[E-mail]:[E-mail]],"",0),"") ->  | DO2: =IF(DO4<>0,_xlfn.XLOOKUP(DO$1,LEV[[L/UE.id]:[L/UE.id]],LEV[[E-mail]:[E-mail]],"",0),"") ->  | DP2: =IF(DP4<>0,_xlfn.XLOOKUP(DP$1,LEV[[L/UE.id]:[L/UE.id]],LEV[[E-mail]:[E-mail]],"",0),"") ->  | DQ2: =IF(DQ4<>0,_xlfn.XLOOKUP(DQ$1,LEV[[L/UE.id]:[L/UE.id]],LEV[[E-mail]:[E-mail]],"",0),"") ->  | DR2: =IF(DR4<>0,_xlfn.XLOOKUP(DR$1,LEV[[L/UE.id]:[L/UE.id]],LEV[[E-mail]:[E-mail]],"",0),"") ->  | DS2: =IF(DS4<>0,_xlfn.XLOOKUP(DS$1,LEV[[L/UE.id]:[L/UE.id]],LEV[[E-mail]:[E-mail]],"",0),"") ->  | DT2: =IF(DT4<>0,_xlfn.XLOOKUP(DT$1,LEV[[L/UE.id]:[L/UE.id]],LEV[[E-mail]:[E-mail]],"",0),"") -> mail@holden.dk | DU2: =IF(DU4<>0,_xlfn.XLOOKUP(DU$1,LEV[[L/UE.id]:[L/UE.id]],LEV[[E-mail]:[E-mail]],"",0),"") -> om@birk-holm.dk | DV2: =IF(DV4<>0,_xlfn.XLOOKUP(DV$1,LEV[[L/UE.id]:[L/UE.id]],LEV[[E-mail]:[E-mail]],"",0),"") -> jl@danplanex.dk | DW2: =IF(DW4<>0,_xlfn.XLOOKUP(DW$1,LEV[[L/UE.id]:[L/UE.id]],LEV[[E-mail]:[E-mail]],"",0),"") -> info@proplant.dk | DX2: =IF(DX4<>0,_xlfn.XLOOKUP(DX$1,LEV[[L/UE.id]:[L/UE.id]],LEV[[E-mail]:[E-mail]],"",0),"") -> kaa@oknygaard.dk | DY2: =IF(DY4<>0,_xlfn.XLOOKUP(DY$1,LEV[[L/UE.id]:[L/UE.id]],LEV[[E-mail]:[E-mail]],"",0),"") -> boa@mjeriksson.dk | DZ2: =IF(DZ4<>0,_xlfn.XLOOKUP(DZ$1,LEV[[L/UE.id]:[L/UE.id]],LEV[[E-mail]:[E-mail]],"",0),"") -> jeho@aarsleff.com | EA2: =IF(EA4<>0,_xlfn.XLOOKUP(EA$1,LEV[[L/UE.id]:[L/UE.id]],LEV[[E-mail]:[E-mail]],"",0),"") -> madkoc@hercules.dk | EB2: =IF(EB4<>0,_xlfn.XLOOKUP(EB$1,LEV[[L/UE.id]:[L/UE.id]],LEV[[E-mail]:[E-mail]],"",0),"") ->  | EC2: =IF(EC4<>0,_xlfn.XLOOKUP(EC$1,LEV[[L/UE.id]:[L/UE.id]],LEV[[E-mail]:[E-mail]],"",0),"") ->  | ED2: =IF(ED4<>0,_xlfn.XLOOKUP(ED$1,LEV[[L/UE.id]:[L/UE.id]],LEV[[E-mail]:[E-mail]],"",0),"") ->  | EE2: =IF(EE4<>0,_xlfn.XLOOKUP(EE$1,LEV[[L/UE.id]:[L/UE.id]],LEV[[E-mail]:[E-mail]],"",0),"") ->  | EF2: =IF(EF4<>0,_xlfn.XLOOKUP(EF$1,LEV[[L/UE.id]:[L/UE.id]],LEV[[E-mail]:[E-mail]],"",0),"") ->  | EG2: =IF(EG4<>0,_xlfn.XLOOKUP(EG$1,LEV[[L/UE.id]:[L/UE.id]],LEV[[E-mail]:[E-mail]],"",0),"") ->  | EH2: =IF(EH4<>0,_xlfn.XLOOKUP(EH$1,LEV[[L/UE.id]:[L/UE.id]],LEV[[E-mail]:[E-mail]],"",0),"") ->  | EI2: =IF(EI4<>0,_xlfn.XLOOKUP(EI$1,LEV[[L/UE.id]:[L/UE.id]],LEV[[E-mail]:[E-mail]],"",0),"") ->  | EJ2: =IF(EJ4<>0,_xlfn.XLOOKUP(EJ$1,LEV[[L/UE.id]:[L/UE.id]],LEV[[E-mail]:[E-mail]],"",0),"") ->  | EK2: =IF(EK4<>0,_xlfn.XLOOKUP(EK$1,LEV[[L/UE.id]:[L/UE.id]],LEV[[E-mail]:[E-mail]],"",0),"") ->  | EL2: =IF(EL4<>0,_xlfn.XLOOKUP(EL$1,LEV[[L/UE.id]:[L/UE.id]],LEV[[E-mail]:[E-mail]],"",0),"") -> miansteel@aol.dk | EM2: =IF(EM4<>0,_xlfn.XLOOKUP(EM$1,LEV[[L/UE.id]:[L/UE.id]],LEV[[E-mail]:[E-mail]],"",0),"") ->  | EN2: =IF(EN4<>0,_xlfn.XLOOKUP(EN$1,LEV[[L/UE.id]:[L/UE.id]],LEV[[E-mail]:[E-mail]],"",0),"") -> Dm@martlev.dk | EO2: =IF(EO4<>0,_xlfn.XLOOKUP(EO$1,LEV[[L/UE.id]:[L/UE.id]],LEV[[E-mail]:[E-mail]],"",0),"") ->  | EP2: =IF(EP4<>0,_xlfn.XLOOKUP(EP$1,LEV[[L/UE.id]:[L/UE.id]],LEV[[E-mail]:[E-mail]],"",0),"") -> hitsa@hitsa.dk | EQ2: =IF(EQ4<>0,_xlfn.XLOOKUP(EQ$1,LEV[[L/UE.id]:[L/UE.id]],LEV[[E-mail]:[E-mail]],"",0),"") -> info@inventarrum.dk | ER2: =IF(ER4<>0,_xlfn.XLOOKUP(ER$1,LEV[[L/UE.id]:[L/UE.id]],LEV[[E-mail]:[E-mail]],"",0),"") ->  | ES2: =IF(ES4<>0,_xlfn.XLOOKUP(ES$1,LEV[[L/UE.id]:[L/UE.id]],LEV[[E-mail]:[E-mail]],"",0),"") ->  | ET2: =IF(ET4<>0,_xlfn.XLOOKUP(ET$1,LEV[[L/UE.id]:[L/UE.id]],LEV[[E-mail]:[E-mail]],"",0),"") ->  | EU2: =IF(EU4<>0,_xlfn.XLOOKUP(EU$1,LEV[[L/UE.id]:[L/UE.id]],LEV[[E-mail]:[E-mail]],"",0),"") -> info@urban-elements.dk | EV2: =IF(EV4<>0,_xlfn.XLOOKUP(EV$1,LEV[[L/UE.id]:[L/UE.id]],LEV[[E-mail]:[E-mail]],"",0),"") ->  | EW2: =IF(EW4<>0,_xlfn.XLOOKUP(EW$1,LEV[[L/UE.id]:[L/UE.id]],LEV[[E-mail]:[E-mail]],"",0),"") ->  | EX2: =IF(EX4<>0,_xlfn.XLOOKUP(EX$1,LEV[[L/UE.id]:[L/UE.id]],LEV[[E-mail]:[E-mail]],"",0),"") ->  | EY2: =IF(EY4<>0,_xlfn.XLOOKUP(EY$1,LEV[[L/UE.id]:[L/UE.id]],LEV[[E-mail]:[E-mail]],"",0),"") ->  | EZ2: =IF(EZ4<>0,_xlfn.XLOOKUP(EZ$1,LEV[[L/UE.id]:[L/UE.id]],LEV[[E-mail]:[E-mail]],"",0),"") ->  | FA2: =IF(FA4<>0,_xlfn.XLOOKUP(FA$1,LEV[[L/UE.id]:[L/UE.id]],LEV[[E-mail]:[E-mail]],"",0),"") ->  | FB2: =IF(FB4<>0,_xlfn.XLOOKUP(FB$1,LEV[[L/UE.id]:[L/UE.id]],LEV[[E-mail]:[E-mail]],"",0),"") -> udventar@g9.dk | FC2: =IF(FC4<>0,_xlfn.XLOOKUP(FC$1,LEV[[L/UE.id]:[L/UE.id]],LEV[[E-mail]:[E-mail]],"",0),"") ->  | FD2: =IF(FD4<>0,_xlfn.XLOOKUP(FD$1,LEV[[L/UE.id]:[L/UE.id]],LEV[[E-mail]:[E-mail]],"",0),"") ->  | FE2: =IF(FE4<>0,_xlfn.XLOOKUP(FE$1,LEV[[L/UE.id]:[L/UE.id]],LEV[[E-mail]:[E-mail]],"",0),"") ->  | FF2: =IF(FF4<>0,_xlfn.XLOOKUP(FF$1,LEV[[L/UE.id]:[L/UE.id]],LEV[[E-mail]:[E-mail]],"",0),"") ->  | FG2: =IF(FG4<>0,_xlfn.XLOOKUP(FG$1,LEV[[L/UE.id]:[L/UE.id]],LEV[[E-mail]:[E-mail]],"",0),"") ->  | FH2: =IF(FH4<>0,_xlfn.XLOOKUP(FH$1,LEV[[L/UE.id]:[L/UE.id]],LEV[[E-mail]:[E-mail]],"",0),"") -> info@fredewestas.dk | FI2: =IF(FI4<>0,_xlfn.XLOOKUP(FI$1,LEV[[L/UE.id]:[L/UE.id]],LEV[[E-mail]:[E-mail]],"",0),"") -> simon@urban-elements.dk | FJ2: =IF(FJ4<>0,_xlfn.XLOOKUP(FJ$1,LEV[[L/UE.id]:[L/UE.id]],LEV[[E-mail]:[E-mail]],"",0),"") -> tomrermestersorenbruun@hotmail.com | FK2: =IF(FK4<>0,_xlfn.XLOOKUP(FK$1,LEV[[L/UE.id]:[L/UE.id]],LEV[[E-mail]:[E-mail]],"",0),"") -> tn85@hotmail.com | FL2: =IF(FL4<>0,_xlfn.XLOOKUP(FL$1,LEV[[L/UE.id]:[L/UE.id]],LEV[[E-mail]:[E-mail]],"",0),"") -> bm@christian-hansen.dk | FM2: =IF(FM4<>0,_xlfn.XLOOKUP(FM$1,LEV[[L/UE.id]:[L/UE.id]],LEV[[E-mail]:[E-mail]],"",0),"") ->  | FN2: =IF(FN4<>0,_xlfn.XLOOKUP(FN$1,LEV[[L/UE.id]:[L/UE.id]],LEV[[E-mail]:[E-mail]],"",0),"") ->  | FO2: =IF(FO4<>0,_xlfn.XLOOKUP(FO$1,LEV[[L/UE.id]:[L/UE.id]],LEV[[E-mail]:[E-mail]],"",0),"") -> tilbud@dsvtransport.dk | FP2: =IF(FP4<>0,_xlfn.XLOOKUP(FP$1,LEV[[L/UE.id]:[L/UE.id]],LEV[[E-mail]:[E-mail]],"",0),"") -> lars@vognmandfas.dk | FQ2: =IF(FQ4<>0,_xlfn.XLOOKUP(FQ$1,LEV[[L/UE.id]:[L/UE.id]],LEV[[E-mail]:[E-mail]],"",0),"") -> crj@dansk-specialtransport.dk | FR2: =IF(FR4<>0,_xlfn.XLOOKUP(FR$1,LEV[[L/UE.id]:[L/UE.id]],LEV[[E-mail]:[E-mail]],"",0),"") -> tilbud@scttransport.dk | FS2: =IF(FS4<>0,_xlfn.XLOOKUP(FS$1,LEV[[L/UE.id]:[L/UE.id]],LEV[[E-mail]:[E-mail]],"",0),"") ->  | FT2: =IF(FT4<>0,_xlfn.XLOOKUP(FT$1,LEV[[L/UE.id]:[L/UE.id]],LEV[[E-mail]:[E-mail]],"",0),"") ->  | FU2: =IF(FU4<>0,_xlfn.XLOOKUP(FU$1,LEV[[L/UE.id]:[L/UE.id]],LEV[[E-mail]:[E-mail]],"",0),"") ->  | FV2: =IF(FV4<>0,_xlfn.XLOOKUP(FV$1,LEV[[L/UE.id]:[L/UE.id]],LEV[[E-mail]:[E-mail]],"",0),"") ->  | FW2: =IF(FW4<>0,_xlfn.XLOOKUP(FW$1,LEV[[L/UE.id]:[L/UE.id]],LEV[[E-mail]:[E-mail]],"",0),"") ->  | FX2: =IF(FX4<>0,_xlfn.XLOOKUP(FX$1,LEV[[L/UE.id]:[L/UE.id]],LEV[[E-mail]:[E-mail]],"",0),"") ->  | FY2: =IF(FY4<>0,_xlfn.XLOOKUP(FY$1,LEV[[L/UE.id]:[L/UE.id]],LEV[[E-mail]:[E-mail]],"",0),"") ->  | FZ2: =IF(FZ4<>0,_xlfn.XLOOKUP(FZ$1,LEV[[L/UE.id]:[L/UE.id]],LEV[[E-mail]:[E-mail]],"",0),"") ->  | GA2: =IF(GA4<>0,_xlfn.XLOOKUP(GA$1,LEV[[L/UE.id]:[L/UE.id]],LEV[[E-mail]:[E-mail]],"",0),"") ->  | GB2: =IF(GB4<>0,_xlfn.XLOOKUP(GB$1,LEV[[L/UE.id]:[L/UE.id]],LEV[[E-mail]:[E-mail]],"",0),"") ->  | GC2: =IF(GC4<>0,_xlfn.XLOOKUP(GC$1,LEV[[L/UE.id]:[L/UE.id]],LEV[[E-mail]:[E-mail]],"",0),"") ->  | GD2: =IF(GD4<>0,_xlfn.XLOOKUP(GD$1,LEV[[L/UE.id]:[L/UE.id]],LEV[[E-mail]:[E-mail]],"",0),"") ->  | GE2: =IF(GE4<>0,_xlfn.XLOOKUP(GE$1,LEV[[L/UE.id]:[L/UE.id]],LEV[[E-mail]:[E-mail]],"",0),"") ->  | GF2: =IF(GF4<>0,_xlfn.XLOOKUP(GF$1,LEV[[L/UE.id]:[L/UE.id]],LEV[[E-mail]:[E-mail]],"",0),"") ->  | GG2: =IF(GG4<>0,_xlfn.XLOOKUP(GG$1,LEV[[L/UE.id]:[L/UE.id]],LEV[[E-mail]:[E-mail]],"",0),"") ->  | GH2: =IF(GH4<>0,_xlfn.XLOOKUP(GH$1,LEV[[L/UE.id]:[L/UE.id]],LEV[[E-mail]:[E-mail]],"",0),"") ->  | GI2: =IF(GI4<>0,_xlfn.XLOOKUP(GI$1,LEV[[L/UE.id]:[L/UE.id]],LEV[[E-mail]:[E-mail]],"",0),"") ->  | GJ2: =IF(GJ4<>0,_xlfn.XLOOKUP(GJ$1,LEV[[L/UE.id]:[L/UE.id]],LEV[[E-mail]:[E-mail]],"",0),"") ->  | GK2: =IF(GK4<>0,_xlfn.XLOOKUP(GK$1,LEV[[L/UE.id]:[L/UE.id]],LEV[[E-mail]:[E-mail]],"",0),"") ->  | GL2: =IF(GL4<>0,_xlfn.XLOOKUP(GL$1,LEV[[L/UE.id]:[L/UE.id]],LEV[[E-mail]:[E-mail]],"",0),"") ->  | GM2: =IF(GM4<>0,_xlfn.XLOOKUP(GM$1,LEV[[L/UE.id]:[L/UE.id]],LEV[[E-mail]:[E-mail]],"",0),"") ->  | GN2: =IF(GN4<>0,_xlfn.XLOOKUP(GN$1,LEV[[L/UE.id]:[L/UE.id]],LEV[[E-mail]:[E-mail]],"",0),"") ->  | GO2: =IF(GO4<>0,_xlfn.XLOOKUP(GO$1,LEV[[L/UE.id]:[L/UE.id]],LEV[[E-mail]:[E-mail]],"",0),"") ->  | GP2: =IF(GP4<>0,_xlfn.XLOOKUP(GP$1,LEV[[L/UE.id]:[L/UE.id]],LEV[[E-mail]:[E-mail]],"",0),"") ->  | GQ2: =IF(GQ4<>0,_xlfn.XLOOKUP(GQ$1,LEV[[L/UE.id]:[L/UE.id]],LEV[[E-mail]:[E-mail]],"",0),"") ->  | GR2: =IF(GR4<>0,_xlfn.XLOOKUP(GR$1,LEV[[L/UE.id]:[L/UE.id]],LEV[[E-mail]:[E-mail]],"",0),"") ->  | GS2: =IF(GS4<>0,_xlfn.XLOOKUP(GS$1,LEV[[L/UE.id]:[L/UE.id]],LEV[[E-mail]:[E-mail]],"",0),"") ->  | GT2: =IF(GT4<>0,_xlfn.XLOOKUP(GT$1,LEV[[L/UE.id]:[L/UE.id]],LEV[[E-mail]:[E-mail]],"",0),"") ->  | GU2: =IF(GU4<>0,_xlfn.XLOOKUP(GU$1,LEV[[L/UE.id]:[L/UE.id]],LEV[[E-mail]:[E-mail]],"",0),"") ->  | GV2: =IF(GV4<>0,_xlfn.XLOOKUP(GV$1,LEV[[L/UE.id]:[L/UE.id]],LEV[[E-mail]:[E-mail]],"",0),"") ->  | GW2: =IF(GW4<>0,_xlfn.XLOOKUP(GW$1,LEV[[L/UE.id]:[L/UE.id]],LEV[[E-mail]:[E-mail]],"",0),"") ->  | GX2: =IF(GX4<>0,_xlfn.XLOOKUP(GX$1,LEV[[L/UE.id]:[L/UE.id]],LEV[[E-mail]:[E-mail]],"",0),"") ->  | GY2: =IF(GY4<>0,_xlfn.XLOOKUP(GY$1,LEV[[L/UE.id]:[L/UE.id]],LEV[[E-mail]:[E-mail]],"",0),"") ->  | GZ2: =IF(GZ4<>0,_xlfn.XLOOKUP(GZ$1,LEV[[L/UE.id]:[L/UE.id]],LEV[[E-mail]:[E-mail]],"",0),"") ->  | HA2: =IF(HA4<>0,_xlfn.XLOOKUP(HA$1,LEV[[L/UE.id]:[L/UE.id]],LEV[[E-mail]:[E-mail]],"",0),"") ->  | HB2: =IF(HB4<>0,_xlfn.XLOOKUP(HB$1,LEV[[L/UE.id]:[L/UE.id]],LEV[[E-mail]:[E-mail]],"",0),"") ->  | HC2: =IF(HC4<>0,_xlfn.XLOOKUP(HC$1,LEV[[L/UE.id]:[L/UE.id]],LEV[[E-mail]:[E-mail]],"",0),"") ->  | HD2: =IF(HD4<>0,_xlfn.XLOOKUP(HD$1,LEV[[L/UE.id]:[L/UE.id]],LEV[[E-mail]:[E-mail]],"",0),"") ->  | HE2: =IF(HE4<>0,_xlfn.XLOOKUP(HE$1,LEV[[L/UE.id]:[L/UE.id]],LEV[[E-mail]:[E-mail]],"",0),"") ->  | HF2: =IF(HF4<>0,_xlfn.XLOOKUP(HF$1,LEV[[L/UE.id]:[L/UE.id]],LEV[[E-mail]:[E-mail]],"",0),"") ->  | HG2: =IF(HG4<>0,_xlfn.XLOOKUP(HG$1,LEV[[L/UE.id]:[L/UE.id]],LEV[[E-mail]:[E-mail]],"",0),"") ->  | HH2: =IF(HH4<>0,_xlfn.XLOOKUP(HH$1,LEV[[L/UE.id]:[L/UE.id]],LEV[[E-mail]:[E-mail]],"",0),"") ->  | HI2: =IF(HI4<>0,_xlfn.XLOOKUP(HI$1,LEV[[L/UE.id]:[L/UE.id]],LEV[[E-mail]:[E-mail]],"",0),"") ->  | HJ2: =IF(HJ4<>0,_xlfn.XLOOKUP(HJ$1,LEV[[L/UE.id]:[L/UE.id]],LEV[[E-mail]:[E-mail]],"",0),"") ->  | HK2: =IF(HK4<>0,_xlfn.XLOOKUP(HK$1,LEV[[L/UE.id]:[L/UE.id]],LEV[[E-mail]:[E-mail]],"",0),"") ->  | HL2: =IF(HL4<>0,_xlfn.XLOOKUP(HL$1,LEV[[L/UE.id]:[L/UE.id]],LEV[[E-mail]:[E-mail]],"",0),"") ->  | HM2: =IF(HM4<>0,_xlfn.XLOOKUP(HM$1,LEV[[L/UE.id]:[L/UE.id]],LEV[[E-mail]:[E-mail]],"",0),"") ->  | HN2: =IF(HN4<>0,_xlfn.XLOOKUP(HN$1,LEV[[L/UE.id]:[L/UE.id]],LEV[[E-mail]:[E-mail]],"",0),"") ->  | HO2: =IF(HO4<>0,_xlfn.XLOOKUP(HO$1,LEV[[L/UE.id]:[L/UE.id]],LEV[[E-mail]:[E-mail]],"",0),"") ->  | HP2: =IF(HP4<>0,_xlfn.XLOOKUP(HP$1,LEV[[L/UE.id]:[L/UE.id]],LEV[[E-mail]:[E-mail]],"",0),"") ->  | HQ2: =IF(HQ4<>0,_xlfn.XLOOKUP(HQ$1,LEV[[L/UE.id]:[L/UE.id]],LEV[[E-mail]:[E-mail]],"",0),"") ->  | HR2: =IF(HR4<>0,_xlfn.XLOOKUP(HR$1,LEV[[L/UE.id]:[L/UE.id]],LEV[[E-mail]:[E-mail]],"",0),"") ->  | HS2: =IF(HS4<>0,_xlfn.XLOOKUP(HS$1,LEV[[L/UE.id]:[L/UE.id]],LEV[[E-mail]:[E-mail]],"",0),"") ->  | HT2: =IF(HT4<>0,_xlfn.XLOOKUP(HT$1,LEV[[L/UE.id]:[L/UE.id]],LEV[[E-mail]:[E-mail]],"",0),"") ->  | HU2: =IF(HU4<>0,_xlfn.XLOOKUP(HU$1,LEV[[L/UE.id]:[L/UE.id]],LEV[[E-mail]:[E-mail]],"",0),"") ->  | HV2: =IF(HV4<>0,_xlfn.XLOOKUP(HV$1,LEV[[L/UE.id]:[L/UE.id]],LEV[[E-mail]:[E-mail]],"",0),"") ->  | HW2: =IF(HW4<>0,_xlfn.XLOOKUP(HW$1,LEV[[L/UE.id]:[L/UE.id]],LEV[[E-mail]:[E-mail]],"",0),"") ->  | HX2: =IF(HX4<>0,_xlfn.XLOOKUP(HX$1,LEV[[L/UE.id]:[L/UE.id]],LEV[[E-mail]:[E-mail]],"",0),"") ->  | HY2: =IF(HY4<>0,_xlfn.XLOOKUP(HY$1,LEV[[L/UE.id]:[L/UE.id]],LEV[[E-mail]:[E-mail]],"",0),"") ->  | HZ2: =IF(HZ4<>0,_xlfn.XLOOKUP(HZ$1,LEV[[L/UE.id]:[L/UE.id]],LEV[[E-mail]:[E-mail]],"",0),"") ->  | IA2: =IF(IA4<>0,_xlfn.XLOOKUP(IA$1,LEV[[L/UE.id]:[L/UE.id]],LEV[[E-mail]:[E-mail]],"",0),"") ->  | IB2: =IF(IB4<>0,_xlfn.XLOOKUP(IB$1,LEV[[L/UE.id]:[L/UE.id]],LEV[[E-mail]:[E-mail]],"",0),"") ->  | IC2: =IF(IC4<>0,_xlfn.XLOOKUP(IC$1,LEV[[L/UE.id]:[L/UE.id]],LEV[[E-mail]:[E-mail]],"",0),"") ->  | ID2: =IF(ID4<>0,_xlfn.XLOOKUP(ID$1,LEV[[L/UE.id]:[L/UE.id]],LEV[[E-mail]:[E-mail]],"",0),"") ->  | IE2: =IF(IE4<>0,_xlfn.XLOOKUP(IE$1,LEV[[L/UE.id]:[L/UE.id]],LEV[[E-mail]:[E-mail]],"",0),"") ->  | IF2: =IF(IF4<>0,_xlfn.XLOOKUP(IF$1,LEV[[L/UE.id]:[L/UE.id]],LEV[[E-mail]:[E-mail]],"",0),"") ->  | IG2: =IF(IG4<>0,_xlfn.XLOOKUP(IG$1,LEV[[L/UE.id]:[L/UE.id]],LEV[[E-mail]:[E-mail]],"",0),"") ->  | IH2: =IF(IH4<>0,_xlfn.XLOOKUP(IH$1,LEV[[L/UE.id]:[L/UE.id]],LEV[[E-mail]:[E-mail]],"",0),"") ->  | II2: =IF(II4<>0,_xlfn.XLOOKUP(II$1,LEV[[L/UE.id]:[L/UE.id]],LEV[[E-mail]:[E-mail]],"",0),"") ->  | IJ2: =IF(IJ4<>0,_xlfn.XLOOKUP(IJ$1,LEV[[L/UE.id]:[L/UE.id]],LEV[[E-mail]:[E-mail]],"",0),"") ->  | IK2: =IF(IK4<>0,_xlfn.XLOOKUP(IK$1,LEV[[L/UE.id]:[L/UE.id]],LEV[[E-mail]:[E-mail]],"",0),"") ->  | IL2: =IF(IL4<>0,_xlfn.XLOOKUP(IL$1,LEV[[L/UE.id]:[L/UE.id]],LEV[[E-mail]:[E-mail]],"",0),"") ->  | IM2: =IF(IM4<>0,_xlfn.XLOOKUP(IM$1,LEV[[L/UE.id]:[L/UE.id]],LEV[[E-mail]:[E-mail]],"",0),"") ->  | IN2: =IF(IN4<>0,_xlfn.XLOOKUP(IN$1,LEV[[L/UE.id]:[L/UE.id]],LEV[[E-mail]:[E-mail]],"",0),"") ->  | IO2: =IF(IO4<>0,_xlfn.XLOOKUP(IO$1,LEV[[L/UE.id]:[L/UE.id]],LEV[[E-mail]:[E-mail]],"",0),"") ->  | IP2: =IF(IP4<>0,_xlfn.XLOOKUP(IP$1,LEV[[L/UE.id]:[L/UE.id]],LEV[[E-mail]:[E-mail]],"",0),"") ->  | IQ2: =IF(IQ4<>0,_xlfn.XLOOKUP(IQ$1,LEV[[L/UE.id]:[L/UE.id]],LEV[[E-mail]:[E-mail]],"",0),"") ->  | IR2: =IF(IR4<>0,_xlfn.XLOOKUP(IR$1,LEV[[L/UE.id]:[L/UE.id]],LEV[[E-mail]:[E-mail]],"",0),"") ->  | IS2: =IF(IS4<>0,_xlfn.XLOOKUP(IS$1,LEV[[L/UE.id]:[L/UE.id]],LEV[[E-mail]:[E-mail]],"",0),"") ->  | IT2: =IF(IT4<>0,_xlfn.XLOOKUP(IT$1,LEV[[L/UE.id]:[L/UE.id]],LEV[[E-mail]:[E-mail]],"",0),"") ->  | IU2: =IF(IU4<>0,_xlfn.XLOOKUP(IU$1,LEV[[L/UE.id]:[L/UE.id]],LEV[[E-mail]:[E-mail]],"",0),"") ->  | IV2: =IF(IV4<>0,_xlfn.XLOOKUP(IV$1,LEV[[L/UE.id]:[L/UE.id]],LEV[[E-mail]:[E-mail]],"",0),"") ->  | IW2: =IF(IW4<>0,_xlfn.XLOOKUP(IW$1,LEV[[L/UE.id]:[L/UE.id]],LEV[[E-mail]:[E-mail]],"",0),"") ->  | IX2: =IF(IX4<>0,_xlfn.XLOOKUP(IX$1,LEV[[L/UE.id]:[L/UE.id]],LEV[[E-mail]:[E-mail]],"",0),"") ->  | IY2: =IF(IY4<>0,_xlfn.XLOOKUP(IY$1,LEV[[L/UE.id]:[L/UE.id]],LEV[[E-mail]:[E-mail]],"",0),"") ->  | IZ2: =IF(IZ4<>0,_xlfn.XLOOKUP(IZ$1,LEV[[L/UE.id]:[L/UE.id]],LEV[[E-mail]:[E-mail]],"",0),"") ->  | JA2: =IF(JA4<>0,_xlfn.XLOOKUP(JA$1,LEV[[L/UE.id]:[L/UE.id]],LEV[[E-mail]:[E-mail]],"",0),"") ->  | JB2: =IF(JB4<>0,_xlfn.XLOOKUP(JB$1,LEV[[L/UE.id]:[L/UE.id]],LEV[[E-mail]:[E-mail]],"",0),"") ->  | JC2: =IF(JC4<>0,_xlfn.XLOOKUP(JC$1,LEV[[L/UE.id]:[L/UE.id]],LEV[[E-mail]:[E-mail]],"",0),"") ->  | JD2: =IF(JD4<>0,_xlfn.XLOOKUP(JD$1,LEV[[L/UE.id]:[L/UE.id]],LEV[[E-mail]:[E-mail]],"",0),"") ->  | JE2: =IF(JE4<>0,_xlfn.XLOOKUP(JE$1,LEV[[L/UE.id]:[L/UE.id]],LEV[[E-mail]:[E-mail]],"",0),"") ->  | JF2: =IF(JF4<>0,_xlfn.XLOOKUP(JF$1,LEV[[L/UE.id]:[L/UE.id]],LEV[[E-mail]:[E-mail]],"",0),"") ->  | JG2: =IF(JG4<>0,_xlfn.XLOOKUP(JG$1,LEV[[L/UE.id]:[L/UE.id]],LEV[[E-mail]:[E-mail]],"",0),"") ->  | JH2: =IF(JH4<>0,_xlfn.XLOOKUP(JH$1,LEV[[L/UE.id]:[L/UE.id]],LEV[[E-mail]:[E-mail]],"",0),"") ->  | JI2: =IF(JI4<>0,_xlfn.XLOOKUP(JI$1,LEV[[L/UE.id]:[L/UE.id]],LEV[[E-mail]:[E-mail]],"",0),"") ->  | JJ2: =IF(JJ4<>0,_xlfn.XLOOKUP(JJ$1,LEV[[L/UE.id]:[L/UE.id]],LEV[[E-mail]:[E-mail]],"",0),"") -> 
K3: 1 | O3: LEV. Gruppe | U3: =IF(U4<>0,_xlfn.XLOOKUP(U$1,LEV[[L/UE.id]:[L/UE.id]],LEV[[FAG]:[FAG]],"",0),"") ->  | V3: =IF(V4<>0,_xlfn.XLOOKUP(V$1,LEV[[L/UE.id]:[L/UE.id]],LEV[[FAG]:[FAG]],"",0),"") ->  | W3: =IF(W4<>0,_xlfn.XLOOKUP(W$1,LEV[[L/UE.id]:[L/UE.id]],LEV[[FAG]:[FAG]],"",0),"") ->  | X3: =IF(X4<>0,_xlfn.XLOOKUP(X$1,LEV[[L/UE.id]:[L/UE.id]],LEV[[FAG]:[FAG]],"",0),"") ->  | Y3: =IF(Y4<>0,_xlfn.XLOOKUP(Y$1,LEV[[L/UE.id]:[L/UE.id]],LEV[[FAG]:[FAG]],"",0),"") -> Afstribning | Z3: =IF(Z4<>0,_xlfn.XLOOKUP(Z$1,LEV[[L/UE.id]:[L/UE.id]],LEV[[FAG]:[FAG]],"",0),"") -> Afstribning | AA3: =IF(AA4<>0,_xlfn.XLOOKUP(AA$1,LEV[[L/UE.id]:[L/UE.id]],LEV[[FAG]:[FAG]],"",0),"") ->  | AB3: =IF(AB4<>0,_xlfn.XLOOKUP(AB$1,LEV[[L/UE.id]:[L/UE.id]],LEV[[FAG]:[FAG]],"",0),"") -> Asfalt | AC3: =IF(AC4<>0,_xlfn.XLOOKUP(AC$1,LEV[[L/UE.id]:[L/UE.id]],LEV[[FAG]:[FAG]],"",0),"") -> Asfalt | AD3: =IF(AD4<>0,_xlfn.XLOOKUP(AD$1,LEV[[L/UE.id]:[L/UE.id]],LEV[[FAG]:[FAG]],"",0),"") -> Asfalt | AE3: =IF(AE4<>0,_xlfn.XLOOKUP(AE$1,LEV[[L/UE.id]:[L/UE.id]],LEV[[FAG]:[FAG]],"",0),"") -> Asfalt | AF3: =IF(AF4<>0,_xlfn.XLOOKUP(AF$1,LEV[[L/UE.id]:[L/UE.id]],LEV[[FAG]:[FAG]],"",0),"") -> Asfalt | AG3: =IF(AG4<>0,_xlfn.XLOOKUP(AG$1,LEV[[L/UE.id]:[L/UE.id]],LEV[[FAG]:[FAG]],"",0),"") ->  | AH3: =IF(AH4<>0,_xlfn.XLOOKUP(AH$1,LEV[[L/UE.id]:[L/UE.id]],LEV[[FAG]:[FAG]],"",0),"") -> Asfalt | AI3: =IF(AI4<>0,_xlfn.XLOOKUP(AI$1,LEV[[L/UE.id]:[L/UE.id]],LEV[[FAG]:[FAG]],"",0),"") -> Asfalt | AJ3: =IF(AJ4<>0,_xlfn.XLOOKUP(AJ$1,LEV[[L/UE.id]:[L/UE.id]],LEV[[FAG]:[FAG]],"",0),"") ->  | AK3: =IF(AK4<>0,_xlfn.XLOOKUP(AK$1,LEV[[L/UE.id]:[L/UE.id]],LEV[[FAG]:[FAG]],"",0),"") ->  | AL3: =IF(AL4<>0,_xlfn.XLOOKUP(AL$1,LEV[[L/UE.id]:[L/UE.id]],LEV[[FAG]:[FAG]],"",0),"") -> Belægning | AM3: =IF(AM4<>0,_xlfn.XLOOKUP(AM$1,LEV[[L/UE.id]:[L/UE.id]],LEV[[FAG]:[FAG]],"",0),"") -> Belægning | AN3: =IF(AN4<>0,_xlfn.XLOOKUP(AN$1,LEV[[L/UE.id]:[L/UE.id]],LEV[[FAG]:[FAG]],"",0),"") ->  | AO3: =IF(AO4<>0,_xlfn.XLOOKUP(AO$1,LEV[[L/UE.id]:[L/UE.id]],LEV[[FAG]:[FAG]],"",0),"") ->  | AP3: =IF(AP4<>0,_xlfn.XLOOKUP(AP$1,LEV[[L/UE.id]:[L/UE.id]],LEV[[FAG]:[FAG]],"",0),"") -> Beton Entreprenør | AQ3: =IF(AQ4<>0,_xlfn.XLOOKUP(AQ$1,LEV[[L/UE.id]:[L/UE.id]],LEV[[FAG]:[FAG]],"",0),"") -> Beton Entreprenør | AR3: =IF(AR4<>0,_xlfn.XLOOKUP(AR$1,LEV[[L/UE.id]:[L/UE.id]],LEV[[FAG]:[FAG]],"",0),"") -> Beton Entreprenør | AS3: =IF(AS4<>0,_xlfn.XLOOKUP(AS$1,LEV[[L/UE.id]:[L/UE.id]],LEV[[FAG]:[FAG]],"",0),"") ->  | AT3: =IF(AT4<>0,_xlfn.XLOOKUP(AT$1,LEV[[L/UE.id]:[L/UE.id]],LEV[[FAG]:[FAG]],"",0),"") ->  | AU3: =IF(AU4<>0,_xlfn.XLOOKUP(AU$1,LEV[[L/UE.id]:[L/UE.id]],LEV[[FAG]:[FAG]],"",0),"") ->  | AV3: =IF(AV4<>0,_xlfn.XLOOKUP(AV$1,LEV[[L/UE.id]:[L/UE.id]],LEV[[FAG]:[FAG]],"",0),"") ->  | AW3: =IF(AW4<>0,_xlfn.XLOOKUP(AW$1,LEV[[L/UE.id]:[L/UE.id]],LEV[[FAG]:[FAG]],"",0),"") ->  | AX3: =IF(AX4<>0,_xlfn.XLOOKUP(AX$1,LEV[[L/UE.id]:[L/UE.id]],LEV[[FAG]:[FAG]],"",0),"") ->  | AY3: =IF(AY4<>0,_xlfn.XLOOKUP(AY$1,LEV[[L/UE.id]:[L/UE.id]],LEV[[FAG]:[FAG]],"",0),"") ->  | AZ3: =IF(AZ4<>0,_xlfn.XLOOKUP(AZ$1,LEV[[L/UE.id]:[L/UE.id]],LEV[[FAG]:[FAG]],"",0),"") ->  | BA3: =IF(BA4<>0,_xlfn.XLOOKUP(BA$1,LEV[[L/UE.id]:[L/UE.id]],LEV[[FAG]:[FAG]],"",0),"") ->  | BB3: =IF(BB4<>0,_xlfn.XLOOKUP(BB$1,LEV[[L/UE.id]:[L/UE.id]],LEV[[FAG]:[FAG]],"",0),"") ->  | BC3: =IF(BC4<>0,_xlfn.XLOOKUP(BC$1,LEV[[L/UE.id]:[L/UE.id]],LEV[[FAG]:[FAG]],"",0),"") ->  | BD3: =IF(BD4<>0,_xlfn.XLOOKUP(BD$1,LEV[[L/UE.id]:[L/UE.id]],LEV[[FAG]:[FAG]],"",0),"") ->  | BE3: =IF(BE4<>0,_xlfn.XLOOKUP(BE$1,LEV[[L/UE.id]:[L/UE.id]],LEV[[FAG]:[FAG]],"",0),"") ->  | BF3: =IF(BF4<>0,_xlfn.XLOOKUP(BF$1,LEV[[L/UE.id]:[L/UE.id]],LEV[[FAG]:[FAG]],"",0),"") ->  | BG3: =IF(BG4<>0,_xlfn.XLOOKUP(BG$1,LEV[[L/UE.id]:[L/UE.id]],LEV[[FAG]:[FAG]],"",0),"") ->  | BH3: =IF(BH4<>0,_xlfn.XLOOKUP(BH$1,LEV[[L/UE.id]:[L/UE.id]],LEV[[FAG]:[FAG]],"",0),"") ->  | BI3: =IF(BI4<>0,_xlfn.XLOOKUP(BI$1,LEV[[L/UE.id]:[L/UE.id]],LEV[[FAG]:[FAG]],"",0),"") -> El-arbejder | BJ3: =IF(BJ4<>0,_xlfn.XLOOKUP(BJ$1,LEV[[L/UE.id]:[L/UE.id]],LEV[[FAG]:[FAG]],"",0),"") -> El-arbejder | BK3: =IF(BK4<>0,_xlfn.XLOOKUP(BK$1,LEV[[L/UE.id]:[L/UE.id]],LEV[[FAG]:[FAG]],"",0),"") ->  | BL3: =IF(BL4<>0,_xlfn.XLOOKUP(BL$1,LEV[[L/UE.id]:[L/UE.id]],LEV[[FAG]:[FAG]],"",0),"") ->  | BM3: =IF(BM4<>0,_xlfn.XLOOKUP(BM$1,LEV[[L/UE.id]:[L/UE.id]],LEV[[FAG]:[FAG]],"",0),"") ->  | BN3: =IF(BN4<>0,_xlfn.XLOOKUP(BN$1,LEV[[L/UE.id]:[L/UE.id]],LEV[[FAG]:[FAG]],"",0),"") ->  | BO3: =IF(BO4<>0,_xlfn.XLOOKUP(BO$1,LEV[[L/UE.id]:[L/UE.id]],LEV[[FAG]:[FAG]],"",0),"") -> Entreprenør | BP3: =IF(BP4<>0,_xlfn.XLOOKUP(BP$1,LEV[[L/UE.id]:[L/UE.id]],LEV[[FAG]:[FAG]],"",0),"") -> Entreprenør | BQ3: =IF(BQ4<>0,_xlfn.XLOOKUP(BQ$1,LEV[[L/UE.id]:[L/UE.id]],LEV[[FAG]:[FAG]],"",0),"") -> Entreprenør | BR3: =IF(BR4<>0,_xlfn.XLOOKUP(BR$1,LEV[[L/UE.id]:[L/UE.id]],LEV[[FAG]:[FAG]],"",0),"") ->  | BS3: =IF(BS4<>0,_xlfn.XLOOKUP(BS$1,LEV[[L/UE.id]:[L/UE.id]],LEV[[FAG]:[FAG]],"",0),"") ->  | BT3: =IF(BT4<>0,_xlfn.XLOOKUP(BT$1,LEV[[L/UE.id]:[L/UE.id]],LEV[[FAG]:[FAG]],"",0),"") ->  | BU3: =IF(BU4<>0,_xlfn.XLOOKUP(BU$1,LEV[[L/UE.id]:[L/UE.id]],LEV[[FAG]:[FAG]],"",0),"") ->  | BV3: =IF(BV4<>0,_xlfn.XLOOKUP(BV$1,LEV[[L/UE.id]:[L/UE.id]],LEV[[FAG]:[FAG]],"",0),"") ->  | BW3: =IF(BW4<>0,_xlfn.XLOOKUP(BW$1,LEV[[L/UE.id]:[L/UE.id]],LEV[[FAG]:[FAG]],"",0),"") ->  | BX3: =IF(BX4<>0,_xlfn.XLOOKUP(BX$1,LEV[[L/UE.id]:[L/UE.id]],LEV[[FAG]:[FAG]],"",0),"") ->  | BY3: =IF(BY4<>0,_xlfn.XLOOKUP(BY$1,LEV[[L/UE.id]:[L/UE.id]],LEV[[FAG]:[FAG]],"",0),"") ->  | BZ3: =IF(BZ4<>0,_xlfn.XLOOKUP(BZ$1,LEV[[L/UE.id]:[L/UE.id]],LEV[[FAG]:[FAG]],"",0),"") ->  | CA3: =IF(CA4<>0,_xlfn.XLOOKUP(CA$1,LEV[[L/UE.id]:[L/UE.id]],LEV[[FAG]:[FAG]],"",0),"") ->  | CB3: =IF(CB4<>0,_xlfn.XLOOKUP(CB$1,LEV[[L/UE.id]:[L/UE.id]],LEV[[FAG]:[FAG]],"",0),"") ->  | CC3: =IF(CC4<>0,_xlfn.XLOOKUP(CC$1,LEV[[L/UE.id]:[L/UE.id]],LEV[[FAG]:[FAG]],"",0),"") ->  | CD3: =IF(CD4<>0,_xlfn.XLOOKUP(CD$1,LEV[[L/UE.id]:[L/UE.id]],LEV[[FAG]:[FAG]],"",0),"") ->  | CE3: =IF(CE4<>0,_xlfn.XLOOKUP(CE$1,LEV[[L/UE.id]:[L/UE.id]],LEV[[FAG]:[FAG]],"",0),"") ->  | CF3: =IF(CF4<>0,_xlfn.XLOOKUP(CF$1,LEV[[L/UE.id]:[L/UE.id]],LEV[[FAG]:[FAG]],"",0),"") -> Beton Entreprenør | CG3: =IF(CG4<>0,_xlfn.XLOOKUP(CG$1,LEV[[L/UE.id]:[L/UE.id]],LEV[[FAG]:[FAG]],"",0),"") ->  | CH3: =IF(CH4<>0,_xlfn.XLOOKUP(CH$1,LEV[[L/UE.id]:[L/UE.id]],LEV[[FAG]:[FAG]],"",0),"") ->  | CI3: =IF(CI4<>0,_xlfn.XLOOKUP(CI$1,LEV[[L/UE.id]:[L/UE.id]],LEV[[FAG]:[FAG]],"",0),"") ->  | CJ3: =IF(CJ4<>0,_xlfn.XLOOKUP(CJ$1,LEV[[L/UE.id]:[L/UE.id]],LEV[[FAG]:[FAG]],"",0),"") ->  | CK3: =IF(CK4<>0,_xlfn.XLOOKUP(CK$1,LEV[[L/UE.id]:[L/UE.id]],LEV[[FAG]:[FAG]],"",0),"") -> Kloak Beton | CL3: =IF(CL4<>0,_xlfn.XLOOKUP(CL$1,LEV[[L/UE.id]:[L/UE.id]],LEV[[FAG]:[FAG]],"",0),"") -> Kloak Beton | CM3: =IF(CM4<>0,_xlfn.XLOOKUP(CM$1,LEV[[L/UE.id]:[L/UE.id]],LEV[[FAG]:[FAG]],"",0),"") -> Kloak Plast | CN3: =IF(CN4<>0,_xlfn.XLOOKUP(CN$1,LEV[[L/UE.id]:[L/UE.id]],LEV[[FAG]:[FAG]],"",0),"") -> Kloak Plast | CO3: =IF(CO4<>0,_xlfn.XLOOKUP(CO$1,LEV[[L/UE.id]:[L/UE.id]],LEV[[FAG]:[FAG]],"",0),"") -> Kloak Plast | CP3: =IF(CP4<>0,_xlfn.XLOOKUP(CP$1,LEV[[L/UE.id]:[L/UE.id]],LEV[[FAG]:[FAG]],"",0),"") ->  | CQ3: =IF(CQ4<>0,_xlfn.XLOOKUP(CQ$1,LEV[[L/UE.id]:[L/UE.id]],LEV[[FAG]:[FAG]],"",0),"") ->  | CR3: =IF(CR4<>0,_xlfn.XLOOKUP(CR$1,LEV[[L/UE.id]:[L/UE.id]],LEV[[FAG]:[FAG]],"",0),"") ->  | CS3: =IF(CS4<>0,_xlfn.XLOOKUP(CS$1,LEV[[L/UE.id]:[L/UE.id]],LEV[[FAG]:[FAG]],"",0),"") ->  | CT3: =IF(CT4<>0,_xlfn.XLOOKUP(CT$1,LEV[[L/UE.id]:[L/UE.id]],LEV[[FAG]:[FAG]],"",0),"") ->  | CU3: =IF(CU4<>0,_xlfn.XLOOKUP(CU$1,LEV[[L/UE.id]:[L/UE.id]],LEV[[FAG]:[FAG]],"",0),"") ->  | CV3: =IF(CV4<>0,_xlfn.XLOOKUP(CV$1,LEV[[L/UE.id]:[L/UE.id]],LEV[[FAG]:[FAG]],"",0),"") ->  | CW3: =IF(CW4<>0,_xlfn.XLOOKUP(CW$1,LEV[[L/UE.id]:[L/UE.id]],LEV[[FAG]:[FAG]],"",0),"") ->  | CX3: =IF(CX4<>0,_xlfn.XLOOKUP(CX$1,LEV[[L/UE.id]:[L/UE.id]],LEV[[FAG]:[FAG]],"",0),"") ->  | CY3: =IF(CY4<>0,_xlfn.XLOOKUP(CY$1,LEV[[L/UE.id]:[L/UE.id]],LEV[[FAG]:[FAG]],"",0),"") -> Lege udstyr | CZ3: =IF(CZ4<>0,_xlfn.XLOOKUP(CZ$1,LEV[[L/UE.id]:[L/UE.id]],LEV[[FAG]:[FAG]],"",0),"") ->  | DA3: =IF(DA4<>0,_xlfn.XLOOKUP(DA$1,LEV[[L/UE.id]:[L/UE.id]],LEV[[FAG]:[FAG]],"",0),"") -> Lege udstyr | DB3: =IF(DB4<>0,_xlfn.XLOOKUP(DB$1,LEV[[L/UE.id]:[L/UE.id]],LEV[[FAG]:[FAG]],"",0),"") ->  | DC3: =IF(DC4<>0,_xlfn.XLOOKUP(DC$1,LEV[[L/UE.id]:[L/UE.id]],LEV[[FAG]:[FAG]],"",0),"") ->  | DD3: =IF(DD4<>0,_xlfn.XLOOKUP(DD$1,LEV[[L/UE.id]:[L/UE.id]],LEV[[FAG]:[FAG]],"",0),"") ->  | DE3: =IF(DE4<>0,_xlfn.XLOOKUP(DE$1,LEV[[L/UE.id]:[L/UE.id]],LEV[[FAG]:[FAG]],"",0),"") ->  | DF3: =IF(DF4<>0,_xlfn.XLOOKUP(DF$1,LEV[[L/UE.id]:[L/UE.id]],LEV[[FAG]:[FAG]],"",0),"") ->  | DG3: =IF(DG4<>0,_xlfn.XLOOKUP(DG$1,LEV[[L/UE.id]:[L/UE.id]],LEV[[FAG]:[FAG]],"",0),"") -> Lege udstyr | DH3: =IF(DH4<>0,_xlfn.XLOOKUP(DH$1,LEV[[L/UE.id]:[L/UE.id]],LEV[[FAG]:[FAG]],"",0),"") -> Lege udstyr | DI3: =IF(DI4<>0,_xlfn.XLOOKUP(DI$1,LEV[[L/UE.id]:[L/UE.id]],LEV[[FAG]:[FAG]],"",0),"") -> Lege udstyr | DJ3: =IF(DJ4<>0,_xlfn.XLOOKUP(DJ$1,LEV[[L/UE.id]:[L/UE.id]],LEV[[FAG]:[FAG]],"",0),"") ->  | DK3: =IF(DK4<>0,_xlfn.XLOOKUP(DK$1,LEV[[L/UE.id]:[L/UE.id]],LEV[[FAG]:[FAG]],"",0),"") ->  | DL3: =IF(DL4<>0,_xlfn.XLOOKUP(DL$1,LEV[[L/UE.id]:[L/UE.id]],LEV[[FAG]:[FAG]],"",0),"") ->  | DM3: =IF(DM4<>0,_xlfn.XLOOKUP(DM$1,LEV[[L/UE.id]:[L/UE.id]],LEV[[FAG]:[FAG]],"",0),"") ->  | DN3: =IF(DN4<>0,_xlfn.XLOOKUP(DN$1,LEV[[L/UE.id]:[L/UE.id]],LEV[[FAG]:[FAG]],"",0),"") ->  | DO3: =IF(DO4<>0,_xlfn.XLOOKUP(DO$1,LEV[[L/UE.id]:[L/UE.id]],LEV[[FAG]:[FAG]],"",0),"") ->  | DP3: =IF(DP4<>0,_xlfn.XLOOKUP(DP$1,LEV[[L/UE.id]:[L/UE.id]],LEV[[FAG]:[FAG]],"",0),"") ->  | DQ3: =IF(DQ4<>0,_xlfn.XLOOKUP(DQ$1,LEV[[L/UE.id]:[L/UE.id]],LEV[[FAG]:[FAG]],"",0),"") ->  | DR3: =IF(DR4<>0,_xlfn.XLOOKUP(DR$1,LEV[[L/UE.id]:[L/UE.id]],LEV[[FAG]:[FAG]],"",0),"") ->  | DS3: =IF(DS4<>0,_xlfn.XLOOKUP(DS$1,LEV[[L/UE.id]:[L/UE.id]],LEV[[FAG]:[FAG]],"",0),"") ->  | DT3: =IF(DT4<>0,_xlfn.XLOOKUP(DT$1,LEV[[L/UE.id]:[L/UE.id]],LEV[[FAG]:[FAG]],"",0),"") -> planter | DU3: =IF(DU4<>0,_xlfn.XLOOKUP(DU$1,LEV[[L/UE.id]:[L/UE.id]],LEV[[FAG]:[FAG]],"",0),"") -> planter | DV3: =IF(DV4<>0,_xlfn.XLOOKUP(DV$1,LEV[[L/UE.id]:[L/UE.id]],LEV[[FAG]:[FAG]],"",0),"") -> planter | DW3: =IF(DW4<>0,_xlfn.XLOOKUP(DW$1,LEV[[L/UE.id]:[L/UE.id]],LEV[[FAG]:[FAG]],"",0),"") -> planter | DX3: =IF(DX4<>0,_xlfn.XLOOKUP(DX$1,LEV[[L/UE.id]:[L/UE.id]],LEV[[FAG]:[FAG]],"",0),"") -> Pleje | DY3: =IF(DY4<>0,_xlfn.XLOOKUP(DY$1,LEV[[L/UE.id]:[L/UE.id]],LEV[[FAG]:[FAG]],"",0),"") -> Ramning, pæle, spuns | DZ3: =IF(DZ4<>0,_xlfn.XLOOKUP(DZ$1,LEV[[L/UE.id]:[L/UE.id]],LEV[[FAG]:[FAG]],"",0),"") -> Ramning, pæle, spuns | EA3: =IF(EA4<>0,_xlfn.XLOOKUP(EA$1,LEV[[L/UE.id]:[L/UE.id]],LEV[[FAG]:[FAG]],"",0),"") -> Ramning, pæle, spuns | EB3: =IF(EB4<>0,_xlfn.XLOOKUP(EB$1,LEV[[L/UE.id]:[L/UE.id]],LEV[[FAG]:[FAG]],"",0),"") ->  | EC3: =IF(EC4<>0,_xlfn.XLOOKUP(EC$1,LEV[[L/UE.id]:[L/UE.id]],LEV[[FAG]:[FAG]],"",0),"") ->  | ED3: =IF(ED4<>0,_xlfn.XLOOKUP(ED$1,LEV[[L/UE.id]:[L/UE.id]],LEV[[FAG]:[FAG]],"",0),"") ->  | EE3: =IF(EE4<>0,_xlfn.XLOOKUP(EE$1,LEV[[L/UE.id]:[L/UE.id]],LEV[[FAG]:[FAG]],"",0),"") ->  | EF3: =IF(EF4<>0,_xlfn.XLOOKUP(EF$1,LEV[[L/UE.id]:[L/UE.id]],LEV[[FAG]:[FAG]],"",0),"") ->  | EG3: =IF(EG4<>0,_xlfn.XLOOKUP(EG$1,LEV[[L/UE.id]:[L/UE.id]],LEV[[FAG]:[FAG]],"",0),"") ->  | EH3: =IF(EH4<>0,_xlfn.XLOOKUP(EH$1,LEV[[L/UE.id]:[L/UE.id]],LEV[[FAG]:[FAG]],"",0),"") ->  | EI3: =IF(EI4<>0,_xlfn.XLOOKUP(EI$1,LEV[[L/UE.id]:[L/UE.id]],LEV[[FAG]:[FAG]],"",0),"") ->  | EJ3: =IF(EJ4<>0,_xlfn.XLOOKUP(EJ$1,LEV[[L/UE.id]:[L/UE.id]],LEV[[FAG]:[FAG]],"",0),"") ->  | EK3: =IF(EK4<>0,_xlfn.XLOOKUP(EK$1,LEV[[L/UE.id]:[L/UE.id]],LEV[[FAG]:[FAG]],"",0),"") ->  | EL3: =IF(EL4<>0,_xlfn.XLOOKUP(EL$1,LEV[[L/UE.id]:[L/UE.id]],LEV[[FAG]:[FAG]],"",0),"") -> Stål - Smed | EM3: =IF(EM4<>0,_xlfn.XLOOKUP(EM$1,LEV[[L/UE.id]:[L/UE.id]],LEV[[FAG]:[FAG]],"",0),"") ->  | EN3: =IF(EN4<>0,_xlfn.XLOOKUP(EN$1,LEV[[L/UE.id]:[L/UE.id]],LEV[[FAG]:[FAG]],"",0),"") -> Stål - Smed | EO3: =IF(EO4<>0,_xlfn.XLOOKUP(EO$1,LEV[[L/UE.id]:[L/UE.id]],LEV[[FAG]:[FAG]],"",0),"") ->  | EP3: =IF(EP4<>0,_xlfn.XLOOKUP(EP$1,LEV[[L/UE.id]:[L/UE.id]],LEV[[FAG]:[FAG]],"",0),"") -> Terræn inventar | EQ3: =IF(EQ4<>0,_xlfn.XLOOKUP(EQ$1,LEV[[L/UE.id]:[L/UE.id]],LEV[[FAG]:[FAG]],"",0),"") -> Terræn inventar | ER3: =IF(ER4<>0,_xlfn.XLOOKUP(ER$1,LEV[[L/UE.id]:[L/UE.id]],LEV[[FAG]:[FAG]],"",0),"") ->  | ES3: =IF(ES4<>0,_xlfn.XLOOKUP(ES$1,LEV[[L/UE.id]:[L/UE.id]],LEV[[FAG]:[FAG]],"",0),"") ->  | ET3: =IF(ET4<>0,_xlfn.XLOOKUP(ET$1,LEV[[L/UE.id]:[L/UE.id]],LEV[[FAG]:[FAG]],"",0),"") ->  | EU3: =IF(EU4<>0,_xlfn.XLOOKUP(EU$1,LEV[[L/UE.id]:[L/UE.id]],LEV[[FAG]:[FAG]],"",0),"") -> Terræn inventar | EV3: =IF(EV4<>0,_xlfn.XLOOKUP(EV$1,LEV[[L/UE.id]:[L/UE.id]],LEV[[FAG]:[FAG]],"",0),"") ->  | EW3: =IF(EW4<>0,_xlfn.XLOOKUP(EW$1,LEV[[L/UE.id]:[L/UE.id]],LEV[[FAG]:[FAG]],"",0),"") ->  | EX3: =IF(EX4<>0,_xlfn.XLOOKUP(EX$1,LEV[[L/UE.id]:[L/UE.id]],LEV[[FAG]:[FAG]],"",0),"") ->  | EY3: =IF(EY4<>0,_xlfn.XLOOKUP(EY$1,LEV[[L/UE.id]:[L/UE.id]],LEV[[FAG]:[FAG]],"",0),"") ->  | EZ3: =IF(EZ4<>0,_xlfn.XLOOKUP(EZ$1,LEV[[L/UE.id]:[L/UE.id]],LEV[[FAG]:[FAG]],"",0),"") ->  | FA3: =IF(FA4<>0,_xlfn.XLOOKUP(FA$1,LEV[[L/UE.id]:[L/UE.id]],LEV[[FAG]:[FAG]],"",0),"") ->  | FB3: =IF(FB4<>0,_xlfn.XLOOKUP(FB$1,LEV[[L/UE.id]:[L/UE.id]],LEV[[FAG]:[FAG]],"",0),"") -> Terræn inventar | FC3: =IF(FC4<>0,_xlfn.XLOOKUP(FC$1,LEV[[L/UE.id]:[L/UE.id]],LEV[[FAG]:[FAG]],"",0),"") ->  | FD3: =IF(FD4<>0,_xlfn.XLOOKUP(FD$1,LEV[[L/UE.id]:[L/UE.id]],LEV[[FAG]:[FAG]],"",0),"") ->  | FE3: =IF(FE4<>0,_xlfn.XLOOKUP(FE$1,LEV[[L/UE.id]:[L/UE.id]],LEV[[FAG]:[FAG]],"",0),"") ->  | FF3: =IF(FF4<>0,_xlfn.XLOOKUP(FF$1,LEV[[L/UE.id]:[L/UE.id]],LEV[[FAG]:[FAG]],"",0),"") ->  | FG3: =IF(FG4<>0,_xlfn.XLOOKUP(FG$1,LEV[[L/UE.id]:[L/UE.id]],LEV[[FAG]:[FAG]],"",0),"") ->  | FH3: =IF(FH4<>0,_xlfn.XLOOKUP(FH$1,LEV[[L/UE.id]:[L/UE.id]],LEV[[FAG]:[FAG]],"",0),"") -> Tømrer | FI3: =IF(FI4<>0,_xlfn.XLOOKUP(FI$1,LEV[[L/UE.id]:[L/UE.id]],LEV[[FAG]:[FAG]],"",0),"") -> Tømrer | FJ3: =IF(FJ4<>0,_xlfn.XLOOKUP(FJ$1,LEV[[L/UE.id]:[L/UE.id]],LEV[[FAG]:[FAG]],"",0),"") -> Tømrer | FK3: =IF(FK4<>0,_xlfn.XLOOKUP(FK$1,LEV[[L/UE.id]:[L/UE.id]],LEV[[FAG]:[FAG]],"",0),"") -> Tømrer | FL3: =IF(FL4<>0,_xlfn.XLOOKUP(FL$1,LEV[[L/UE.id]:[L/UE.id]],LEV[[FAG]:[FAG]],"",0),"") -> Tømrer | FM3: =IF(FM4<>0,_xlfn.XLOOKUP(FM$1,LEV[[L/UE.id]:[L/UE.id]],LEV[[FAG]:[FAG]],"",0),"") ->  | FN3: =IF(FN4<>0,_xlfn.XLOOKUP(FN$1,LEV[[L/UE.id]:[L/UE.id]],LEV[[FAG]:[FAG]],"",0),"") ->  | FO3: =IF(FO4<>0,_xlfn.XLOOKUP(FO$1,LEV[[L/UE.id]:[L/UE.id]],LEV[[FAG]:[FAG]],"",0),"") -> Vognmandsydelser | FP3: =IF(FP4<>0,_xlfn.XLOOKUP(FP$1,LEV[[L/UE.id]:[L/UE.id]],LEV[[FAG]:[FAG]],"",0),"") -> Vognmandsydelser | FQ3: =IF(FQ4<>0,_xlfn.XLOOKUP(FQ$1,LEV[[L/UE.id]:[L/UE.id]],LEV[[FAG]:[FAG]],"",0),"") -> Vognmandsydelser | FR3: =IF(FR4<>0,_xlfn.XLOOKUP(FR$1,LEV[[L/UE.id]:[L/UE.id]],LEV[[FAG]:[FAG]],"",0),"") -> Vognmandsydelser | FS3: =IF(FS4<>0,_xlfn.XLOOKUP(FS$1,LEV[[L/UE.id]:[L/UE.id]],LEV[[FAG]:[FAG]],"",0),"") ->  | FT3: =IF(FT4<>0,_xlfn.XLOOKUP(FT$1,LEV[[L/UE.id]:[L/UE.id]],LEV[[FAG]:[FAG]],"",0),"") ->  | FU3: =IF(FU4<>0,_xlfn.XLOOKUP(FU$1,LEV[[L/UE.id]:[L/UE.id]],LEV[[FAG]:[FAG]],"",0),"") ->  | FV3: =IF(FV4<>0,_xlfn.XLOOKUP(FV$1,LEV[[L/UE.id]:[L/UE.id]],LEV[[FAG]:[FAG]],"",0),"") ->  | FW3: =IF(FW4<>0,_xlfn.XLOOKUP(FW$1,LEV[[L/UE.id]:[L/UE.id]],LEV[[FAG]:[FAG]],"",0),"") ->  | FX3: =IF(FX4<>0,_xlfn.XLOOKUP(FX$1,LEV[[L/UE.id]:[L/UE.id]],LEV[[FAG]:[FAG]],"",0),"") ->  | FY3: =IF(FY4<>0,_xlfn.XLOOKUP(FY$1,LEV[[L/UE.id]:[L/UE.id]],LEV[[FAG]:[FAG]],"",0),"") ->  | FZ3: =IF(FZ4<>0,_xlfn.XLOOKUP(FZ$1,LEV[[L/UE.id]:[L/UE.id]],LEV[[FAG]:[FAG]],"",0),"") ->  | GA3: =IF(GA4<>0,_xlfn.XLOOKUP(GA$1,LEV[[L/UE.id]:[L/UE.id]],LEV[[FAG]:[FAG]],"",0),"") ->  | GB3: =IF(GB4<>0,_xlfn.XLOOKUP(GB$1,LEV[[L/UE.id]:[L/UE.id]],LEV[[FAG]:[FAG]],"",0),"") ->  | GC3: =IF(GC4<>0,_xlfn.XLOOKUP(GC$1,LEV[[L/UE.id]:[L/UE.id]],LEV[[FAG]:[FAG]],"",0),"") ->  | GD3: =IF(GD4<>0,_xlfn.XLOOKUP(GD$1,LEV[[L/UE.id]:[L/UE.id]],LEV[[FAG]:[FAG]],"",0),"") ->  | GE3: =IF(GE4<>0,_xlfn.XLOOKUP(GE$1,LEV[[L/UE.id]:[L/UE.id]],LEV[[FAG]:[FAG]],"",0),"") ->  | GF3: =IF(GF4<>0,_xlfn.XLOOKUP(GF$1,LEV[[L/UE.id]:[L/UE.id]],LEV[[FAG]:[FAG]],"",0),"") ->  | GG3: =IF(GG4<>0,_xlfn.XLOOKUP(GG$1,LEV[[L/UE.id]:[L/UE.id]],LEV[[FAG]:[FAG]],"",0),"") ->  | GH3: =IF(GH4<>0,_xlfn.XLOOKUP(GH$1,LEV[[L/UE.id]:[L/UE.id]],LEV[[FAG]:[FAG]],"",0),"") ->  | GI3: =IF(GI4<>0,_xlfn.XLOOKUP(GI$1,LEV[[L/UE.id]:[L/UE.id]],LEV[[FAG]:[FAG]],"",0),"") ->  | GJ3: =IF(GJ4<>0,_xlfn.XLOOKUP(GJ$1,LEV[[L/UE.id]:[L/UE.id]],LEV[[FAG]:[FAG]],"",0),"") ->  | GK3: =IF(GK4<>0,_xlfn.XLOOKUP(GK$1,LEV[[L/UE.id]:[L/UE.id]],LEV[[FAG]:[FAG]],"",0),"") ->  | GL3: =IF(GL4<>0,_xlfn.XLOOKUP(GL$1,LEV[[L/UE.id]:[L/UE.id]],LEV[[FAG]:[FAG]],"",0),"") ->  | GM3: =IF(GM4<>0,_xlfn.XLOOKUP(GM$1,LEV[[L/UE.id]:[L/UE.id]],LEV[[FAG]:[FAG]],"",0),"") ->  | GN3: =IF(GN4<>0,_xlfn.XLOOKUP(GN$1,LEV[[L/UE.id]:[L/UE.id]],LEV[[FAG]:[FAG]],"",0),"") ->  | GO3: =IF(GO4<>0,_xlfn.XLOOKUP(GO$1,LEV[[L/UE.id]:[L/UE.id]],LEV[[FAG]:[FAG]],"",0),"") ->  | GP3: =IF(GP4<>0,_xlfn.XLOOKUP(GP$1,LEV[[L/UE.id]:[L/UE.id]],LEV[[FAG]:[FAG]],"",0),"") ->  | GQ3: =IF(GQ4<>0,_xlfn.XLOOKUP(GQ$1,LEV[[L/UE.id]:[L/UE.id]],LEV[[FAG]:[FAG]],"",0),"") ->  | GR3: =IF(GR4<>0,_xlfn.XLOOKUP(GR$1,LEV[[L/UE.id]:[L/UE.id]],LEV[[FAG]:[FAG]],"",0),"") ->  | GS3: =IF(GS4<>0,_xlfn.XLOOKUP(GS$1,LEV[[L/UE.id]:[L/UE.id]],LEV[[FAG]:[FAG]],"",0),"") ->  | GT3: =IF(GT4<>0,_xlfn.XLOOKUP(GT$1,LEV[[L/UE.id]:[L/UE.id]],LEV[[FAG]:[FAG]],"",0),"") ->  | GU3: =IF(GU4<>0,_xlfn.XLOOKUP(GU$1,LEV[[L/UE.id]:[L/UE.id]],LEV[[FAG]:[FAG]],"",0),"") ->  | GV3: =IF(GV4<>0,_xlfn.XLOOKUP(GV$1,LEV[[L/UE.id]:[L/UE.id]],LEV[[FAG]:[FAG]],"",0),"") ->  | GW3: =IF(GW4<>0,_xlfn.XLOOKUP(GW$1,LEV[[L/UE.id]:[L/UE.id]],LEV[[FAG]:[FAG]],"",0),"") ->  | GX3: =IF(GX4<>0,_xlfn.XLOOKUP(GX$1,LEV[[L/UE.id]:[L/UE.id]],LEV[[FAG]:[FAG]],"",0),"") ->  | GY3: =IF(GY4<>0,_xlfn.XLOOKUP(GY$1,LEV[[L/UE.id]:[L/UE.id]],LEV[[FAG]:[FAG]],"",0),"") ->  | GZ3: =IF(GZ4<>0,_xlfn.XLOOKUP(GZ$1,LEV[[L/UE.id]:[L/UE.id]],LEV[[FAG]:[FAG]],"",0),"") ->  | HA3: =IF(HA4<>0,_xlfn.XLOOKUP(HA$1,LEV[[L/UE.id]:[L/UE.id]],LEV[[FAG]:[FAG]],"",0),"") ->  | HB3: =IF(HB4<>0,_xlfn.XLOOKUP(HB$1,LEV[[L/UE.id]:[L/UE.id]],LEV[[FAG]:[FAG]],"",0),"") ->  | HC3: =IF(HC4<>0,_xlfn.XLOOKUP(HC$1,LEV[[L/UE.id]:[L/UE.id]],LEV[[FAG]:[FAG]],"",0),"") ->  | HD3: =IF(HD4<>0,_xlfn.XLOOKUP(HD$1,LEV[[L/UE.id]:[L/UE.id]],LEV[[FAG]:[FAG]],"",0),"") ->  | HE3: =IF(HE4<>0,_xlfn.XLOOKUP(HE$1,LEV[[L/UE.id]:[L/UE.id]],LEV[[FAG]:[FAG]],"",0),"") ->  | HF3: =IF(HF4<>0,_xlfn.XLOOKUP(HF$1,LEV[[L/UE.id]:[L/UE.id]],LEV[[FAG]:[FAG]],"",0),"") ->  | HG3: =IF(HG4<>0,_xlfn.XLOOKUP(HG$1,LEV[[L/UE.id]:[L/UE.id]],LEV[[FAG]:[FAG]],"",0),"") ->  | HH3: =IF(HH4<>0,_xlfn.XLOOKUP(HH$1,LEV[[L/UE.id]:[L/UE.id]],LEV[[FAG]:[FAG]],"",0),"") ->  | HI3: =IF(HI4<>0,_xlfn.XLOOKUP(HI$1,LEV[[L/UE.id]:[L/UE.id]],LEV[[FAG]:[FAG]],"",0),"") ->  | HJ3: =IF(HJ4<>0,_xlfn.XLOOKUP(HJ$1,LEV[[L/UE.id]:[L/UE.id]],LEV[[FAG]:[FAG]],"",0),"") ->  | HK3: =IF(HK4<>0,_xlfn.XLOOKUP(HK$1,LEV[[L/UE.id]:[L/UE.id]],LEV[[FAG]:[FAG]],"",0),"") ->  | HL3: =IF(HL4<>0,_xlfn.XLOOKUP(HL$1,LEV[[L/UE.id]:[L/UE.id]],LEV[[FAG]:[FAG]],"",0),"") ->  | HM3: =IF(HM4<>0,_xlfn.XLOOKUP(HM$1,LEV[[L/UE.id]:[L/UE.id]],LEV[[FAG]:[FAG]],"",0),"") ->  | HN3: =IF(HN4<>0,_xlfn.XLOOKUP(HN$1,LEV[[L/UE.id]:[L/UE.id]],LEV[[FAG]:[FAG]],"",0),"") ->  | HO3: =IF(HO4<>0,_xlfn.XLOOKUP(HO$1,LEV[[L/UE.id]:[L/UE.id]],LEV[[FAG]:[FAG]],"",0),"") ->  | HP3: =IF(HP4<>0,_xlfn.XLOOKUP(HP$1,LEV[[L/UE.id]:[L/UE.id]],LEV[[FAG]:[FAG]],"",0),"") ->  | HQ3: =IF(HQ4<>0,_xlfn.XLOOKUP(HQ$1,LEV[[L/UE.id]:[L/UE.id]],LEV[[FAG]:[FAG]],"",0),"") ->  | HR3: =IF(HR4<>0,_xlfn.XLOOKUP(HR$1,LEV[[L/UE.id]:[L/UE.id]],LEV[[FAG]:[FAG]],"",0),"") ->  | HS3: =IF(HS4<>0,_xlfn.XLOOKUP(HS$1,LEV[[L/UE.id]:[L/UE.id]],LEV[[FAG]:[FAG]],"",0),"") ->  | HT3: =IF(HT4<>0,_xlfn.XLOOKUP(HT$1,LEV[[L/UE.id]:[L/UE.id]],LEV[[FAG]:[FAG]],"",0),"") ->  | HU3: =IF(HU4<>0,_xlfn.XLOOKUP(HU$1,LEV[[L/UE.id]:[L/UE.id]],LEV[[FAG]:[FAG]],"",0),"") ->  | HV3: =IF(HV4<>0,_xlfn.XLOOKUP(HV$1,LEV[[L/UE.id]:[L/UE.id]],LEV[[FAG]:[FAG]],"",0),"") ->  | HW3: =IF(HW4<>0,_xlfn.XLOOKUP(HW$1,LEV[[L/UE.id]:[L/UE.id]],LEV[[FAG]:[FAG]],"",0),"") ->  | HX3: =IF(HX4<>0,_xlfn.XLOOKUP(HX$1,LEV[[L/UE.id]:[L/UE.id]],LEV[[FAG]:[FAG]],"",0),"") ->  | HY3: =IF(HY4<>0,_xlfn.XLOOKUP(HY$1,LEV[[L/UE.id]:[L/UE.id]],LEV[[FAG]:[FAG]],"",0),"") ->  | HZ3: =IF(HZ4<>0,_xlfn.XLOOKUP(HZ$1,LEV[[L/UE.id]:[L/UE.id]],LEV[[FAG]:[FAG]],"",0),"") ->  | IA3: =IF(IA4<>0,_xlfn.XLOOKUP(IA$1,LEV[[L/UE.id]:[L/UE.id]],LEV[[FAG]:[FAG]],"",0),"") ->  | IB3: =IF(IB4<>0,_xlfn.XLOOKUP(IB$1,LEV[[L/UE.id]:[L/UE.id]],LEV[[FAG]:[FAG]],"",0),"") ->  | IC3: =IF(IC4<>0,_xlfn.XLOOKUP(IC$1,LEV[[L/UE.id]:[L/UE.id]],LEV[[FAG]:[FAG]],"",0),"") ->  | ID3: =IF(ID4<>0,_xlfn.XLOOKUP(ID$1,LEV[[L/UE.id]:[L/UE.id]],LEV[[FAG]:[FAG]],"",0),"") ->  | IE3: =IF(IE4<>0,_xlfn.XLOOKUP(IE$1,LEV[[L/UE.id]:[L/UE.id]],LEV[[FAG]:[FAG]],"",0),"") ->  | IF3: =IF(IF4<>0,_xlfn.XLOOKUP(IF$1,LEV[[L/UE.id]:[L/UE.id]],LEV[[FAG]:[FAG]],"",0),"") ->  | IG3: =IF(IG4<>0,_xlfn.XLOOKUP(IG$1,LEV[[L/UE.id]:[L/UE.id]],LEV[[FAG]:[FAG]],"",0),"") ->  | IH3: =IF(IH4<>0,_xlfn.XLOOKUP(IH$1,LEV[[L/UE.id]:[L/UE.id]],LEV[[FAG]:[FAG]],"",0),"") ->  | II3: =IF(II4<>0,_xlfn.XLOOKUP(II$1,LEV[[L/UE.id]:[L/UE.id]],LEV[[FAG]:[FAG]],"",0),"") ->  | IJ3: =IF(IJ4<>0,_xlfn.XLOOKUP(IJ$1,LEV[[L/UE.id]:[L/UE.id]],LEV[[FAG]:[FAG]],"",0),"") ->  | IK3: =IF(IK4<>0,_xlfn.XLOOKUP(IK$1,LEV[[L/UE.id]:[L/UE.id]],LEV[[FAG]:[FAG]],"",0),"") ->  | IL3: =IF(IL4<>0,_xlfn.XLOOKUP(IL$1,LEV[[L/UE.id]:[L/UE.id]],LEV[[FAG]:[FAG]],"",0),"") ->  | IM3: =IF(IM4<>0,_xlfn.XLOOKUP(IM$1,LEV[[L/UE.id]:[L/UE.id]],LEV[[FAG]:[FAG]],"",0),"") ->  | IN3: =IF(IN4<>0,_xlfn.XLOOKUP(IN$1,LEV[[L/UE.id]:[L/UE.id]],LEV[[FAG]:[FAG]],"",0),"") ->  | IO3: =IF(IO4<>0,_xlfn.XLOOKUP(IO$1,LEV[[L/UE.id]:[L/UE.id]],LEV[[FAG]:[FAG]],"",0),"") ->  | IP3: =IF(IP4<>0,_xlfn.XLOOKUP(IP$1,LEV[[L/UE.id]:[L/UE.id]],LEV[[FAG]:[FAG]],"",0),"") ->  | IQ3: =IF(IQ4<>0,_xlfn.XLOOKUP(IQ$1,LEV[[L/UE.id]:[L/UE.id]],LEV[[FAG]:[FAG]],"",0),"") ->  | IR3: =IF(IR4<>0,_xlfn.XLOOKUP(IR$1,LEV[[L/UE.id]:[L/UE.id]],LEV[[FAG]:[FAG]],"",0),"") ->  | IS3: =IF(IS4<>0,_xlfn.XLOOKUP(IS$1,LEV[[L/UE.id]:[L/UE.id]],LEV[[FAG]:[FAG]],"",0),"") ->  | IT3: =IF(IT4<>0,_xlfn.XLOOKUP(IT$1,LEV[[L/UE.id]:[L/UE.id]],LEV[[FAG]:[FAG]],"",0),"") ->  | IU3: =IF(IU4<>0,_xlfn.XLOOKUP(IU$1,LEV[[L/UE.id]:[L/UE.id]],LEV[[FAG]:[FAG]],"",0),"") ->  | IV3: =IF(IV4<>0,_xlfn.XLOOKUP(IV$1,LEV[[L/UE.id]:[L/UE.id]],LEV[[FAG]:[FAG]],"",0),"") ->  | IW3: =IF(IW4<>0,_xlfn.XLOOKUP(IW$1,LEV[[L/UE.id]:[L/UE.id]],LEV[[FAG]:[FAG]],"",0),"") ->  | IX3: =IF(IX4<>0,_xlfn.XLOOKUP(IX$1,LEV[[L/UE.id]:[L/UE.id]],LEV[[FAG]:[FAG]],"",0),"") ->  | IY3: =IF(IY4<>0,_xlfn.XLOOKUP(IY$1,LEV[[L/UE.id]:[L/UE.id]],LEV[[FAG]:[FAG]],"",0),"") ->  | IZ3: =IF(IZ4<>0,_xlfn.XLOOKUP(IZ$1,LEV[[L/UE.id]:[L/UE.id]],LEV[[FAG]:[FAG]],"",0),"") ->  | JA3: =IF(JA4<>0,_xlfn.XLOOKUP(JA$1,LEV[[L/UE.id]:[L/UE.id]],LEV[[FAG]:[FAG]],"",0),"") ->  | JB3: =IF(JB4<>0,_xlfn.XLOOKUP(JB$1,LEV[[L/UE.id]:[L/UE.id]],LEV[[FAG]:[FAG]],"",0),"") ->  | JC3: =IF(JC4<>0,_xlfn.XLOOKUP(JC$1,LEV[[L/UE.id]:[L/UE.id]],LEV[[FAG]:[FAG]],"",0),"") ->  | JD3: =IF(JD4<>0,_xlfn.XLOOKUP(JD$1,LEV[[L/UE.id]:[L/UE.id]],LEV[[FAG]:[FAG]],"",0),"") ->  | JE3: =IF(JE4<>0,_xlfn.XLOOKUP(JE$1,LEV[[L/UE.id]:[L/UE.id]],LEV[[FAG]:[FAG]],"",0),"") ->  | JF3: =IF(JF4<>0,_xlfn.XLOOKUP(JF$1,LEV[[L/UE.id]:[L/UE.id]],LEV[[FAG]:[FAG]],"",0),"") ->  | JG3: =IF(JG4<>0,_xlfn.XLOOKUP(JG$1,LEV[[L/UE.id]:[L/UE.id]],LEV[[FAG]:[FAG]],"",0),"") ->  | JH3: =IF(JH4<>0,_xlfn.XLOOKUP(JH$1,LEV[[L/UE.id]:[L/UE.id]],LEV[[FAG]:[FAG]],"",0),"") ->  | JI3: =IF(JI4<>0,_xlfn.XLOOKUP(JI$1,LEV[[L/UE.id]:[L/UE.id]],LEV[[FAG]:[FAG]],"",0),"") ->  | JJ3: =IF(JJ4<>0,_xlfn.XLOOKUP(JJ$1,LEV[[L/UE.id]:[L/UE.id]],LEV[[FAG]:[FAG]],"",0),"") -> 
K4: 1 | O4: Medtaget | U4: =_xlfn.XLOOKUP(U$1,LEV[[L/UE.id]:[L/UE.id]],LEV[[Medtag]:[Medtag]],"",0) -> 0 | V4: =_xlfn.XLOOKUP(V$1,LEV[[L/UE.id]:[L/UE.id]],LEV[[Medtag]:[Medtag]],"",0) -> 0 | W4: =_xlfn.XLOOKUP(W$1,LEV[[L/UE.id]:[L/UE.id]],LEV[[Medtag]:[Medtag]],"",0) -> 0 | X4: =_xlfn.XLOOKUP(X$1,LEV[[L/UE.id]:[L/UE.id]],LEV[[Medtag]:[Medtag]],"",0) -> 0 | Y4: =_xlfn.XLOOKUP(Y$1,LEV[[L/UE.id]:[L/UE.id]],LEV[[Medtag]:[Medtag]],"",0) -> x | Z4: =_xlfn.XLOOKUP(Z$1,LEV[[L/UE.id]:[L/UE.id]],LEV[[Medtag]:[Medtag]],"",0) -> x | AA4: =_xlfn.XLOOKUP(AA$1,LEV[[L/UE.id]:[L/UE.id]],LEV[[Medtag]:[Medtag]],"",0) -> 0 | AB4: =_xlfn.XLOOKUP(AB$1,LEV[[L/UE.id]:[L/UE.id]],LEV[[Medtag]:[Medtag]],"",0) -> x | AC4: =_xlfn.XLOOKUP(AC$1,LEV[[L/UE.id]:[L/UE.id]],LEV[[Medtag]:[Medtag]],"",0) -> x | AD4: =_xlfn.XLOOKUP(AD$1,LEV[[L/UE.id]:[L/UE.id]],LEV[[Medtag]:[Medtag]],"",0) -> x | AE4: =_xlfn.XLOOKUP(AE$1,LEV[[L/UE.id]:[L/UE.id]],LEV[[Medtag]:[Medtag]],"",0) -> x | AF4: =_xlfn.XLOOKUP(AF$1,LEV[[L/UE.id]:[L/UE.id]],LEV[[Medtag]:[Medtag]],"",0) -> x | AG4: =_xlfn.XLOOKUP(AG$1,LEV[[L/UE.id]:[L/UE.id]],LEV[[Medtag]:[Medtag]],"",0) -> 0 | AH4: =_xlfn.XLOOKUP(AH$1,LEV[[L/UE.id]:[L/UE.id]],LEV[[Medtag]:[Medtag]],"",0) -> x | AI4: =_xlfn.XLOOKUP(AI$1,LEV[[L/UE.id]:[L/UE.id]],LEV[[Medtag]:[Medtag]],"",0) -> x | AJ4: =_xlfn.XLOOKUP(AJ$1,LEV[[L/UE.id]:[L/UE.id]],LEV[[Medtag]:[Medtag]],"",0) -> 0 | AK4: =_xlfn.XLOOKUP(AK$1,LEV[[L/UE.id]:[L/UE.id]],LEV[[Medtag]:[Medtag]],"",0) -> 0 | AL4: =_xlfn.XLOOKUP(AL$1,LEV[[L/UE.id]:[L/UE.id]],LEV[[Medtag]:[Medtag]],"",0) -> x | AM4: =_xlfn.XLOOKUP(AM$1,LEV[[L/UE.id]:[L/UE.id]],LEV[[Medtag]:[Medtag]],"",0) -> x | AN4: =_xlfn.XLOOKUP(AN$1,LEV[[L/UE.id]:[L/UE.id]],LEV[[Medtag]:[Medtag]],"",0) -> 0 | AO4: =_xlfn.XLOOKUP(AO$1,LEV[[L/UE.id]:[L/UE.id]],LEV[[Medtag]:[Medtag]],"",0) -> 0 | AP4: =_xlfn.XLOOKUP(AP$1,LEV[[L/UE.id]:[L/UE.id]],LEV[[Medtag]:[Medtag]],"",0) -> x | AQ4: =_xlfn.XLOOKUP(AQ$1,LEV[[L/UE.id]:[L/UE.id]],LEV[[Medtag]:[Medtag]],"",0) -> x | AR4: =_xlfn.XLOOKUP(AR$1,LEV[[L/UE.id]:[L/UE.id]],LEV[[Medtag]:[Medtag]],"",0) -> x | AS4: =_xlfn.XLOOKUP(AS$1,LEV[[L/UE.id]:[L/UE.id]],LEV[[Medtag]:[Medtag]],"",0) -> 0 | AT4: =_xlfn.XLOOKUP(AT$1,LEV[[L/UE.id]:[L/UE.id]],LEV[[Medtag]:[Medtag]],"",0) -> 0 | AU4: =_xlfn.XLOOKUP(AU$1,LEV[[L/UE.id]:[L/UE.id]],LEV[[Medtag]:[Medtag]],"",0) -> 0 | AV4: =_xlfn.XLOOKUP(AV$1,LEV[[L/UE.id]:[L/UE.id]],LEV[[Medtag]:[Medtag]],"",0) -> 0 | AW4: =_xlfn.XLOOKUP(AW$1,LEV[[L/UE.id]:[L/UE.id]],LEV[[Medtag]:[Medtag]],"",0) -> 0 | AX4: =_xlfn.XLOOKUP(AX$1,LEV[[L/UE.id]:[L/UE.id]],LEV[[Medtag]:[Medtag]],"",0) -> 0 | AY4: =_xlfn.XLOOKUP(AY$1,LEV[[L/UE.id]:[L/UE.id]],LEV[[Medtag]:[Medtag]],"",0) -> 0 | AZ4: =_xlfn.XLOOKUP(AZ$1,LEV[[L/UE.id]:[L/UE.id]],LEV[[Medtag]:[Medtag]],"",0) -> 0 | BA4: =_xlfn.XLOOKUP(BA$1,LEV[[L/UE.id]:[L/UE.id]],LEV[[Medtag]:[Medtag]],"",0) -> 0 | BB4: =_xlfn.XLOOKUP(BB$1,LEV[[L/UE.id]:[L/UE.id]],LEV[[Medtag]:[Medtag]],"",0) -> 0 | BC4: =_xlfn.XLOOKUP(BC$1,LEV[[L/UE.id]:[L/UE.id]],LEV[[Medtag]:[Medtag]],"",0) -> 0 | BD4: =_xlfn.XLOOKUP(BD$1,LEV[[L/UE.id]:[L/UE.id]],LEV[[Medtag]:[Medtag]],"",0) -> 0 | BE4: =_xlfn.XLOOKUP(BE$1,LEV[[L/UE.id]:[L/UE.id]],LEV[[Medtag]:[Medtag]],"",0) -> 0 | BF4: =_xlfn.XLOOKUP(BF$1,LEV[[L/UE.id]:[L/UE.id]],LEV[[Medtag]:[Medtag]],"",0) -> 0 | BG4: =_xlfn.XLOOKUP(BG$1,LEV[[L/UE.id]:[L/UE.id]],LEV[[Medtag]:[Medtag]],"",0) -> 0 | BH4: =_xlfn.XLOOKUP(BH$1,LEV[[L/UE.id]:[L/UE.id]],LEV[[Medtag]:[Medtag]],"",0) -> 0 | BI4: =_xlfn.XLOOKUP(BI$1,LEV[[L/UE.id]:[L/UE.id]],LEV[[Medtag]:[Medtag]],"",0) -> x | BJ4: =_xlfn.XLOOKUP(BJ$1,LEV[[L/UE.id]:[L/UE.id]],LEV[[Medtag]:[Medtag]],"",0) -> x | BK4: =_xlfn.XLOOKUP(BK$1,LEV[[L/UE.id]:[L/UE.id]],LEV[[Medtag]:[Medtag]],"",0) -> 0 | BL4: =_xlfn.XLOOKUP(BL$1,LEV[[L/UE.id]:[L/UE.id]],LEV[[Medtag]:[Medtag]],"",0) -> 0 | BM4: =_xlfn.XLOOKUP(BM$1,LEV[[L/UE.id]:[L/UE.id]],LEV[[Medtag]:[Medtag]],"",0) -> 0 | BN4: =_xlfn.XLOOKUP(BN$1,LEV[[L/UE.id]:[L/UE.id]],LEV[[Medtag]:[Medtag]],"",0) -> 0 | BO4: =_xlfn.XLOOKUP(BO$1,LEV[[L/UE.id]:[L/UE.id]],LEV[[Medtag]:[Medtag]],"",0) -> x | BP4: =_xlfn.XLOOKUP(BP$1,LEV[[L/UE.id]:[L/UE.id]],LEV[[Medtag]:[Medtag]],"",0) -> x | BQ4: =_xlfn.XLOOKUP(BQ$1,LEV[[L/UE.id]:[L/UE.id]],LEV[[Medtag]:[Medtag]],"",0) -> x | BR4: =_xlfn.XLOOKUP(BR$1,LEV[[L/UE.id]:[L/UE.id]],LEV[[Medtag]:[Medtag]],"",0) -> 0 | BS4: =_xlfn.XLOOKUP(BS$1,LEV[[L/UE.id]:[L/UE.id]],LEV[[Medtag]:[Medtag]],"",0) -> 0 | BT4: =_xlfn.XLOOKUP(BT$1,LEV[[L/UE.id]:[L/UE.id]],LEV[[Medtag]:[Medtag]],"",0) -> 0 | BU4: =_xlfn.XLOOKUP(BU$1,LEV[[L/UE.id]:[L/UE.id]],LEV[[Medtag]:[Medtag]],"",0) -> 0 | BV4: =_xlfn.XLOOKUP(BV$1,LEV[[L/UE.id]:[L/UE.id]],LEV[[Medtag]:[Medtag]],"",0) -> 0 | BW4: =_xlfn.XLOOKUP(BW$1,LEV[[L/UE.id]:[L/UE.id]],LEV[[Medtag]:[Medtag]],"",0) -> 0 | BX4: =_xlfn.XLOOKUP(BX$1,LEV[[L/UE.id]:[L/UE.id]],LEV[[Medtag]:[Medtag]],"",0) -> 0 | BY4: =_xlfn.XLOOKUP(BY$1,LEV[[L/UE.id]:[L/UE.id]],LEV[[Medtag]:[Medtag]],"",0) -> 0 | BZ4: =_xlfn.XLOOKUP(BZ$1,LEV[[L/UE.id]:[L/UE.id]],LEV[[Medtag]:[Medtag]],"",0) -> 0 | CA4: =_xlfn.XLOOKUP(CA$1,LEV[[L/UE.id]:[L/UE.id]],LEV[[Medtag]:[Medtag]],"",0) -> 0 | CB4: =_xlfn.XLOOKUP(CB$1,LEV[[L/UE.id]:[L/UE.id]],LEV[[Medtag]:[Medtag]],"",0) -> 0 | CC4: =_xlfn.XLOOKUP(CC$1,LEV[[L/UE.id]:[L/UE.id]],LEV[[Medtag]:[Medtag]],"",0) -> 0 | CD4: =_xlfn.XLOOKUP(CD$1,LEV[[L/UE.id]:[L/UE.id]],LEV[[Medtag]:[Medtag]],"",0) -> 0 | CE4: =_xlfn.XLOOKUP(CE$1,LEV[[L/UE.id]:[L/UE.id]],LEV[[Medtag]:[Medtag]],"",0) -> 0 | CF4: =_xlfn.XLOOKUP(CF$1,LEV[[L/UE.id]:[L/UE.id]],LEV[[Medtag]:[Medtag]],"",0) -> x | CG4: =_xlfn.XLOOKUP(CG$1,LEV[[L/UE.id]:[L/UE.id]],LEV[[Medtag]:[Medtag]],"",0) -> 0 | CH4: =_xlfn.XLOOKUP(CH$1,LEV[[L/UE.id]:[L/UE.id]],LEV[[Medtag]:[Medtag]],"",0) -> 0 | CI4: =_xlfn.XLOOKUP(CI$1,LEV[[L/UE.id]:[L/UE.id]],LEV[[Medtag]:[Medtag]],"",0) -> 0 | CJ4: =_xlfn.XLOOKUP(CJ$1,LEV[[L/UE.id]:[L/UE.id]],LEV[[Medtag]:[Medtag]],"",0) -> 0 | CK4: =_xlfn.XLOOKUP(CK$1,LEV[[L/UE.id]:[L/UE.id]],LEV[[Medtag]:[Medtag]],"",0) -> x | CL4: =_xlfn.XLOOKUP(CL$1,LEV[[L/UE.id]:[L/UE.id]],LEV[[Medtag]:[Medtag]],"",0) -> x | CM4: =_xlfn.XLOOKUP(CM$1,LEV[[L/UE.id]:[L/UE.id]],LEV[[Medtag]:[Medtag]],"",0) -> x | CN4: =_xlfn.XLOOKUP(CN$1,LEV[[L/UE.id]:[L/UE.id]],LEV[[Medtag]:[Medtag]],"",0) -> x | CO4: =_xlfn.XLOOKUP(CO$1,LEV[[L/UE.id]:[L/UE.id]],LEV[[Medtag]:[Medtag]],"",0) -> x | CP4: =_xlfn.XLOOKUP(CP$1,LEV[[L/UE.id]:[L/UE.id]],LEV[[Medtag]:[Medtag]],"",0) -> 0 | CQ4: =_xlfn.XLOOKUP(CQ$1,LEV[[L/UE.id]:[L/UE.id]],LEV[[Medtag]:[Medtag]],"",0) -> 0 | CR4: =_xlfn.XLOOKUP(CR$1,LEV[[L/UE.id]:[L/UE.id]],LEV[[Medtag]:[Medtag]],"",0) -> 0 | CS4: =_xlfn.XLOOKUP(CS$1,LEV[[L/UE.id]:[L/UE.id]],LEV[[Medtag]:[Medtag]],"",0) -> 0 | CT4: =_xlfn.XLOOKUP(CT$1,LEV[[L/UE.id]:[L/UE.id]],LEV[[Medtag]:[Medtag]],"",0) -> 0 | CU4: =_xlfn.XLOOKUP(CU$1,LEV[[L/UE.id]:[L/UE.id]],LEV[[Medtag]:[Medtag]],"",0) -> 0 | CV4: =_xlfn.XLOOKUP(CV$1,LEV[[L/UE.id]:[L/UE.id]],LEV[[Medtag]:[Medtag]],"",0) -> 0 | CW4: =_xlfn.XLOOKUP(CW$1,LEV[[L/UE.id]:[L/UE.id]],LEV[[Medtag]:[Medtag]],"",0) -> 0 | CX4: =_xlfn.XLOOKUP(CX$1,LEV[[L/UE.id]:[L/UE.id]],LEV[[Medtag]:[Medtag]],"",0) -> 0 | CY4: =_xlfn.XLOOKUP(CY$1,LEV[[L/UE.id]:[L/UE.id]],LEV[[Medtag]:[Medtag]],"",0) -> x | CZ4: =_xlfn.XLOOKUP(CZ$1,LEV[[L/UE.id]:[L/UE.id]],LEV[[Medtag]:[Medtag]],"",0) -> 0 | DA4: =_xlfn.XLOOKUP(DA$1,LEV[[L/UE.id]:[L/UE.id]],LEV[[Medtag]:[Medtag]],"",0) -> x | DB4: =_xlfn.XLOOKUP(DB$1,LEV[[L/UE.id]:[L/UE.id]],LEV[[Medtag]:[Medtag]],"",0) -> 0 | DC4: =_xlfn.XLOOKUP(DC$1,LEV[[L/UE.id]:[L/UE.id]],LEV[[Medtag]:[Medtag]],"",0) -> 0 | DD4: =_xlfn.XLOOKUP(DD$1,LEV[[L/UE.id]:[L/UE.id]],LEV[[Medtag]:[Medtag]],"",0) -> 0 | DE4: =_xlfn.XLOOKUP(DE$1,LEV[[L/UE.id]:[L/UE.id]],LEV[[Medtag]:[Medtag]],"",0) -> 0 | DF4: =_xlfn.XLOOKUP(DF$1,LEV[[L/UE.id]:[L/UE.id]],LEV[[Medtag]:[Medtag]],"",0) -> 0 | DG4: =_xlfn.XLOOKUP(DG$1,LEV[[L/UE.id]:[L/UE.id]],LEV[[Medtag]:[Medtag]],"",0) -> x | DH4: =_xlfn.XLOOKUP(DH$1,LEV[[L/UE.id]:[L/UE.id]],LEV[[Medtag]:[Medtag]],"",0) -> x | DI4: =_xlfn.XLOOKUP(DI$1,LEV[[L/UE.id]:[L/UE.id]],LEV[[Medtag]:[Medtag]],"",0) -> x | DJ4: =_xlfn.XLOOKUP(DJ$1,LEV[[L/UE.id]:[L/UE.id]],LEV[[Medtag]:[Medtag]],"",0) -> 0 | DK4: =_xlfn.XLOOKUP(DK$1,LEV[[L/UE.id]:[L/UE.id]],LEV[[Medtag]:[Medtag]],"",0) -> 0 | DL4: =_xlfn.XLOOKUP(DL$1,LEV[[L/UE.id]:[L/UE.id]],LEV[[Medtag]:[Medtag]],"",0) -> 0 | DM4: =_xlfn.XLOOKUP(DM$1,LEV[[L/UE.id]:[L/UE.id]],LEV[[Medtag]:[Medtag]],"",0) -> 0 | DN4: =_xlfn.XLOOKUP(DN$1,LEV[[L/UE.id]:[L/UE.id]],LEV[[Medtag]:[Medtag]],"",0) -> 0 | DO4: =_xlfn.XLOOKUP(DO$1,LEV[[L/UE.id]:[L/UE.id]],LEV[[Medtag]:[Medtag]],"",0) -> 0 | DP4: =_xlfn.XLOOKUP(DP$1,LEV[[L/UE.id]:[L/UE.id]],LEV[[Medtag]:[Medtag]],"",0) -> 0 | DQ4: =_xlfn.XLOOKUP(DQ$1,LEV[[L/UE.id]:[L/UE.id]],LEV[[Medtag]:[Medtag]],"",0) -> 0 | DR4: =_xlfn.XLOOKUP(DR$1,LEV[[L/UE.id]:[L/UE.id]],LEV[[Medtag]:[Medtag]],"",0) -> 0 | DS4: =_xlfn.XLOOKUP(DS$1,LEV[[L/UE.id]:[L/UE.id]],LEV[[Medtag]:[Medtag]],"",0) -> 0 | DT4: =_xlfn.XLOOKUP(DT$1,LEV[[L/UE.id]:[L/UE.id]],LEV[[Medtag]:[Medtag]],"",0) -> x | DU4: =_xlfn.XLOOKUP(DU$1,LEV[[L/UE.id]:[L/UE.id]],LEV[[Medtag]:[Medtag]],"",0) -> x | DV4: =_xlfn.XLOOKUP(DV$1,LEV[[L/UE.id]:[L/UE.id]],LEV[[Medtag]:[Medtag]],"",0) -> x | DW4: =_xlfn.XLOOKUP(DW$1,LEV[[L/UE.id]:[L/UE.id]],LEV[[Medtag]:[Medtag]],"",0) -> x | DX4: =_xlfn.XLOOKUP(DX$1,LEV[[L/UE.id]:[L/UE.id]],LEV[[Medtag]:[Medtag]],"",0) -> x | DY4: =_xlfn.XLOOKUP(DY$1,LEV[[L/UE.id]:[L/UE.id]],LEV[[Medtag]:[Medtag]],"",0) -> x | DZ4: =_xlfn.XLOOKUP(DZ$1,LEV[[L/UE.id]:[L/UE.id]],LEV[[Medtag]:[Medtag]],"",0) -> x | EA4: =_xlfn.XLOOKUP(EA$1,LEV[[L/UE.id]:[L/UE.id]],LEV[[Medtag]:[Medtag]],"",0) -> x | EB4: =_xlfn.XLOOKUP(EB$1,LEV[[L/UE.id]:[L/UE.id]],LEV[[Medtag]:[Medtag]],"",0) -> 0 | EC4: =_xlfn.XLOOKUP(EC$1,LEV[[L/UE.id]:[L/UE.id]],LEV[[Medtag]:[Medtag]],"",0) -> 0 | ED4: =_xlfn.XLOOKUP(ED$1,LEV[[L/UE.id]:[L/UE.id]],LEV[[Medtag]:[Medtag]],"",0) -> 0 | EE4: =_xlfn.XLOOKUP(EE$1,LEV[[L/UE.id]:[L/UE.id]],LEV[[Medtag]:[Medtag]],"",0) -> 0 | EF4: =_xlfn.XLOOKUP(EF$1,LEV[[L/UE.id]:[L/UE.id]],LEV[[Medtag]:[Medtag]],"",0) -> 0 | EG4: =_xlfn.XLOOKUP(EG$1,LEV[[L/UE.id]:[L/UE.id]],LEV[[Medtag]:[Medtag]],"",0) -> 0 | EH4: =_xlfn.XLOOKUP(EH$1,LEV[[L/UE.id]:[L/UE.id]],LEV[[Medtag]:[Medtag]],"",0) -> 0 | EI4: =_xlfn.XLOOKUP(EI$1,LEV[[L/UE.id]:[L/UE.id]],LEV[[Medtag]:[Medtag]],"",0) -> 0 | EJ4: =_xlfn.XLOOKUP(EJ$1,LEV[[L/UE.id]:[L/UE.id]],LEV[[Medtag]:[Medtag]],"",0) -> 0 | EK4: =_xlfn.XLOOKUP(EK$1,LEV[[L/UE.id]:[L/UE.id]],LEV[[Medtag]:[Medtag]],"",0) -> 0 | EL4: =_xlfn.XLOOKUP(EL$1,LEV[[L/UE.id]:[L/UE.id]],LEV[[Medtag]:[Medtag]],"",0) -> x | EM4: =_xlfn.XLOOKUP(EM$1,LEV[[L/UE.id]:[L/UE.id]],LEV[[Medtag]:[Medtag]],"",0) -> 0 | EN4: =_xlfn.XLOOKUP(EN$1,LEV[[L/UE.id]:[L/UE.id]],LEV[[Medtag]:[Medtag]],"",0) -> x | EO4: =_xlfn.XLOOKUP(EO$1,LEV[[L/UE.id]:[L/UE.id]],LEV[[Medtag]:[Medtag]],"",0) -> 0 | EP4: =_xlfn.XLOOKUP(EP$1,LEV[[L/UE.id]:[L/UE.id]],LEV[[Medtag]:[Medtag]],"",0) -> x | EQ4: =_xlfn.XLOOKUP(EQ$1,LEV[[L/UE.id]:[L/UE.id]],LEV[[Medtag]:[Medtag]],"",0) -> x | ER4: =_xlfn.XLOOKUP(ER$1,LEV[[L/UE.id]:[L/UE.id]],LEV[[Medtag]:[Medtag]],"",0) -> 0 | ES4: =_xlfn.XLOOKUP(ES$1,LEV[[L/UE.id]:[L/UE.id]],LEV[[Medtag]:[Medtag]],"",0) -> 0 | ET4: =_xlfn.XLOOKUP(ET$1,LEV[[L/UE.id]:[L/UE.id]],LEV[[Medtag]:[Medtag]],"",0) -> 0 | EU4: =_xlfn.XLOOKUP(EU$1,LEV[[L/UE.id]:[L/UE.id]],LEV[[Medtag]:[Medtag]],"",0) -> x | EV4: =_xlfn.XLOOKUP(EV$1,LEV[[L/UE.id]:[L/UE.id]],LEV[[Medtag]:[Medtag]],"",0) -> 0 | EW4: =_xlfn.XLOOKUP(EW$1,LEV[[L/UE.id]:[L/UE.id]],LEV[[Medtag]:[Medtag]],"",0) -> 0 | EX4: =_xlfn.XLOOKUP(EX$1,LEV[[L/UE.id]:[L/UE.id]],LEV[[Medtag]:[Medtag]],"",0) -> 0 | EY4: =_xlfn.XLOOKUP(EY$1,LEV[[L/UE.id]:[L/UE.id]],LEV[[Medtag]:[Medtag]],"",0) -> 0 | EZ4: =_xlfn.XLOOKUP(EZ$1,LEV[[L/UE.id]:[L/UE.id]],LEV[[Medtag]:[Medtag]],"",0) -> 0 | FA4: =_xlfn.XLOOKUP(FA$1,LEV[[L/UE.id]:[L/UE.id]],LEV[[Medtag]:[Medtag]],"",0) -> 0 | FB4: =_xlfn.XLOOKUP(FB$1,LEV[[L/UE.id]:[L/UE.id]],LEV[[Medtag]:[Medtag]],"",0) -> x | FC4: =_xlfn.XLOOKUP(FC$1,LEV[[L/UE.id]:[L/UE.id]],LEV[[Medtag]:[Medtag]],"",0) -> 0 | FD4: =_xlfn.XLOOKUP(FD$1,LEV[[L/UE.id]:[L/UE.id]],LEV[[Medtag]:[Medtag]],"",0) -> 0 | FE4: =_xlfn.XLOOKUP(FE$1,LEV[[L/UE.id]:[L/UE.id]],LEV[[Medtag]:[Medtag]],"",0) -> 0 | FF4: =_xlfn.XLOOKUP(FF$1,LEV[[L/UE.id]:[L/UE.id]],LEV[[Medtag]:[Medtag]],"",0) -> 0 | FG4: =_xlfn.XLOOKUP(FG$1,LEV[[L/UE.id]:[L/UE.id]],LEV[[Medtag]:[Medtag]],"",0) -> 0 | FH4: =_xlfn.XLOOKUP(FH$1,LEV[[L/UE.id]:[L/UE.id]],LEV[[Medtag]:[Medtag]],"",0) -> x | FI4: =_xlfn.XLOOKUP(FI$1,LEV[[L/UE.id]:[L/UE.id]],LEV[[Medtag]:[Medtag]],"",0) -> x | FJ4: =_xlfn.XLOOKUP(FJ$1,LEV[[L/UE.id]:[L/UE.id]],LEV[[Medtag]:[Medtag]],"",0) -> x | FK4: =_xlfn.XLOOKUP(FK$1,LEV[[L/UE.id]:[L/UE.id]],LEV[[Medtag]:[Medtag]],"",0) -> x | FL4: =_xlfn.XLOOKUP(FL$1,LEV[[L/UE.id]:[L/UE.id]],LEV[[Medtag]:[Medtag]],"",0) -> x | FM4: =_xlfn.XLOOKUP(FM$1,LEV[[L/UE.id]:[L/UE.id]],LEV[[Medtag]:[Medtag]],"",0) -> 0 | FN4: =_xlfn.XLOOKUP(FN$1,LEV[[L/UE.id]:[L/UE.id]],LEV[[Medtag]:[Medtag]],"",0) -> 0 | FO4: =_xlfn.XLOOKUP(FO$1,LEV[[L/UE.id]:[L/UE.id]],LEV[[Medtag]:[Medtag]],"",0) -> x | FP4: =_xlfn.XLOOKUP(FP$1,LEV[[L/UE.id]:[L/UE.id]],LEV[[Medtag]:[Medtag]],"",0) -> x | FQ4: =_xlfn.XLOOKUP(FQ$1,LEV[[L/UE.id]:[L/UE.id]],LEV[[Medtag]:[Medtag]],"",0) -> x | FR4: =_xlfn.XLOOKUP(FR$1,LEV[[L/UE.id]:[L/UE.id]],LEV[[Medtag]:[Medtag]],"",0) -> x | FS4: =_xlfn.XLOOKUP(FS$1,LEV[[L/UE.id]:[L/UE.id]],LEV[[Medtag]:[Medtag]],"",0) -> 0 | FT4: =_xlfn.XLOOKUP(FT$1,LEV[[L/UE.id]:[L/UE.id]],LEV[[Medtag]:[Medtag]],"",0) -> 0 | FU4: =_xlfn.XLOOKUP(FU$1,LEV[[L/UE.id]:[L/UE.id]],LEV[[Medtag]:[Medtag]],"",0) -> 0 | FV4: =_xlfn.XLOOKUP(FV$1,LEV[[L/UE.id]:[L/UE.id]],LEV[[Medtag]:[Medtag]],"",0) -> 0 | FW4: =_xlfn.XLOOKUP(FW$1,LEV[[L/UE.id]:[L/UE.id]],LEV[[Medtag]:[Medtag]],"",0) -> 0 | FX4: =_xlfn.XLOOKUP(FX$1,LEV[[L/UE.id]:[L/UE.id]],LEV[[Medtag]:[Medtag]],"",0) -> 0 | FY4: =_xlfn.XLOOKUP(FY$1,LEV[[L/UE.id]:[L/UE.id]],LEV[[Medtag]:[Medtag]],"",0) -> 0 | FZ4: =_xlfn.XLOOKUP(FZ$1,LEV[[L/UE.id]:[L/UE.id]],LEV[[Medtag]:[Medtag]],"",0) -> 0 | GA4: =_xlfn.XLOOKUP(GA$1,LEV[[L/UE.id]:[L/UE.id]],LEV[[Medtag]:[Medtag]],"",0) -> 0 | GB4: =_xlfn.XLOOKUP(GB$1,LEV[[L/UE.id]:[L/UE.id]],LEV[[Medtag]:[Medtag]],"",0) -> 0 | GC4: =_xlfn.XLOOKUP(GC$1,LEV[[L/UE.id]:[L/UE.id]],LEV[[Medtag]:[Medtag]],"",0) -> 0 | GD4: =_xlfn.XLOOKUP(GD$1,LEV[[L/UE.id]:[L/UE.id]],LEV[[Medtag]:[Medtag]],"",0) -> 0 | GE4: =_xlfn.XLOOKUP(GE$1,LEV[[L/UE.id]:[L/UE.id]],LEV[[Medtag]:[Medtag]],"",0) -> 0 | GF4: =_xlfn.XLOOKUP(GF$1,LEV[[L/UE.id]:[L/UE.id]],LEV[[Medtag]:[Medtag]],"",0) -> 0 | GG4: =_xlfn.XLOOKUP(GG$1,LEV[[L/UE.id]:[L/UE.id]],LEV[[Medtag]:[Medtag]],"",0) -> 0 | GH4: =_xlfn.XLOOKUP(GH$1,LEV[[L/UE.id]:[L/UE.id]],LEV[[Medtag]:[Medtag]],"",0) -> 0 | GI4: =_xlfn.XLOOKUP(GI$1,LEV[[L/UE.id]:[L/UE.id]],LEV[[Medtag]:[Medtag]],"",0) -> 0 | GJ4: =_xlfn.XLOOKUP(GJ$1,LEV[[L/UE.id]:[L/UE.id]],LEV[[Medtag]:[Medtag]],"",0) -> 0 | GK4: =_xlfn.XLOOKUP(GK$1,LEV[[L/UE.id]:[L/UE.id]],LEV[[Medtag]:[Medtag]],"",0) -> 0 | GL4: =_xlfn.XLOOKUP(GL$1,LEV[[L/UE.id]:[L/UE.id]],LEV[[Medtag]:[Medtag]],"",0) -> 0 | GM4: =_xlfn.XLOOKUP(GM$1,LEV[[L/UE.id]:[L/UE.id]],LEV[[Medtag]:[Medtag]],"",0) -> 0 | GN4: =_xlfn.XLOOKUP(GN$1,LEV[[L/UE.id]:[L/UE.id]],LEV[[Medtag]:[Medtag]],"",0) -> 0 | GO4: =_xlfn.XLOOKUP(GO$1,LEV[[L/UE.id]:[L/UE.id]],LEV[[Medtag]:[Medtag]],"",0) -> 0 | GP4: =_xlfn.XLOOKUP(GP$1,LEV[[L/UE.id]:[L/UE.id]],LEV[[Medtag]:[Medtag]],"",0) -> 0 | GQ4: =_xlfn.XLOOKUP(GQ$1,LEV[[L/UE.id]:[L/UE.id]],LEV[[Medtag]:[Medtag]],"",0) -> 0 | GR4: =_xlfn.XLOOKUP(GR$1,LEV[[L/UE.id]:[L/UE.id]],LEV[[Medtag]:[Medtag]],"",0) -> 0 | GS4: =_xlfn.XLOOKUP(GS$1,LEV[[L/UE.id]:[L/UE.id]],LEV[[Medtag]:[Medtag]],"",0) -> 0 | GT4: =_xlfn.XLOOKUP(GT$1,LEV[[L/UE.id]:[L/UE.id]],LEV[[Medtag]:[Medtag]],"",0) -> 0 | GU4: =_xlfn.XLOOKUP(GU$1,LEV[[L/UE.id]:[L/UE.id]],LEV[[Medtag]:[Medtag]],"",0) -> 0 | GV4: =_xlfn.XLOOKUP(GV$1,LEV[[L/UE.id]:[L/UE.id]],LEV[[Medtag]:[Medtag]],"",0) -> 0 | GW4: =_xlfn.XLOOKUP(GW$1,LEV[[L/UE.id]:[L/UE.id]],LEV[[Medtag]:[Medtag]],"",0) -> 0 | GX4: =_xlfn.XLOOKUP(GX$1,LEV[[L/UE.id]:[L/UE.id]],LEV[[Medtag]:[Medtag]],"",0) -> 0 | GY4: =_xlfn.XLOOKUP(GY$1,LEV[[L/UE.id]:[L/UE.id]],LEV[[Medtag]:[Medtag]],"",0) -> 0 | GZ4: =_xlfn.XLOOKUP(GZ$1,LEV[[L/UE.id]:[L/UE.id]],LEV[[Medtag]:[Medtag]],"",0) -> 0 | HA4: =_xlfn.XLOOKUP(HA$1,LEV[[L/UE.id]:[L/UE.id]],LEV[[Medtag]:[Medtag]],"",0) -> 0 | HB4: =_xlfn.XLOOKUP(HB$1,LEV[[L/UE.id]:[L/UE.id]],LEV[[Medtag]:[Medtag]],"",0) -> 0 | HC4: =_xlfn.XLOOKUP(HC$1,LEV[[L/UE.id]:[L/UE.id]],LEV[[Medtag]:[Medtag]],"",0) -> 0 | HD4: =_xlfn.XLOOKUP(HD$1,LEV[[L/UE.id]:[L/UE.id]],LEV[[Medtag]:[Medtag]],"",0) -> 0 | HE4: =_xlfn.XLOOKUP(HE$1,LEV[[L/UE.id]:[L/UE.id]],LEV[[Medtag]:[Medtag]],"",0) -> 0 | HF4: =_xlfn.XLOOKUP(HF$1,LEV[[L/UE.id]:[L/UE.id]],LEV[[Medtag]:[Medtag]],"",0) -> 0 | HG4: =_xlfn.XLOOKUP(HG$1,LEV[[L/UE.id]:[L/UE.id]],LEV[[Medtag]:[Medtag]],"",0) -> 0 | HH4: =_xlfn.XLOOKUP(HH$1,LEV[[L/UE.id]:[L/UE.id]],LEV[[Medtag]:[Medtag]],"",0) -> 0 | HI4: =_xlfn.XLOOKUP(HI$1,LEV[[L/UE.id]:[L/UE.id]],LEV[[Medtag]:[Medtag]],"",0) -> 0 | HJ4: =_xlfn.XLOOKUP(HJ$1,LEV[[L/UE.id]:[L/UE.id]],LEV[[Medtag]:[Medtag]],"",0) -> 0 | HK4: =_xlfn.XLOOKUP(HK$1,LEV[[L/UE.id]:[L/UE.id]],LEV[[Medtag]:[Medtag]],"",0) -> 0 | HL4: =_xlfn.XLOOKUP(HL$1,LEV[[L/UE.id]:[L/UE.id]],LEV[[Medtag]:[Medtag]],"",0) -> 0 | HM4: =_xlfn.XLOOKUP(HM$1,LEV[[L/UE.id]:[L/UE.id]],LEV[[Medtag]:[Medtag]],"",0) -> 0 | HN4: =_xlfn.XLOOKUP(HN$1,LEV[[L/UE.id]:[L/UE.id]],LEV[[Medtag]:[Medtag]],"",0) -> 0 | HO4: =_xlfn.XLOOKUP(HO$1,LEV[[L/UE.id]:[L/UE.id]],LEV[[Medtag]:[Medtag]],"",0) -> 0 | HP4: =_xlfn.XLOOKUP(HP$1,LEV[[L/UE.id]:[L/UE.id]],LEV[[Medtag]:[Medtag]],"",0) -> 0 | HQ4: =_xlfn.XLOOKUP(HQ$1,LEV[[L/UE.id]:[L/UE.id]],LEV[[Medtag]:[Medtag]],"",0) -> 0 | HR4: =_xlfn.XLOOKUP(HR$1,LEV[[L/UE.id]:[L/UE.id]],LEV[[Medtag]:[Medtag]],"",0) -> 0 | HS4: =_xlfn.XLOOKUP(HS$1,LEV[[L/UE.id]:[L/UE.id]],LEV[[Medtag]:[Medtag]],"",0) -> 0 | HT4: =_xlfn.XLOOKUP(HT$1,LEV[[L/UE.id]:[L/UE.id]],LEV[[Medtag]:[Medtag]],"",0) -> 0 | HU4: =_xlfn.XLOOKUP(HU$1,LEV[[L/UE.id]:[L/UE.id]],LEV[[Medtag]:[Medtag]],"",0) -> 0 | HV4: =_xlfn.XLOOKUP(HV$1,LEV[[L/UE.id]:[L/UE.id]],LEV[[Medtag]:[Medtag]],"",0) -> 0 | HW4: =_xlfn.XLOOKUP(HW$1,LEV[[L/UE.id]:[L/UE.id]],LEV[[Medtag]:[Medtag]],"",0) -> 0 | HX4: =_xlfn.XLOOKUP(HX$1,LEV[[L/UE.id]:[L/UE.id]],LEV[[Medtag]:[Medtag]],"",0) -> 0 | HY4: =_xlfn.XLOOKUP(HY$1,LEV[[L/UE.id]:[L/UE.id]],LEV[[Medtag]:[Medtag]],"",0) -> 0 | HZ4: =_xlfn.XLOOKUP(HZ$1,LEV[[L/UE.id]:[L/UE.id]],LEV[[Medtag]:[Medtag]],"",0) -> 0 | IA4: =_xlfn.XLOOKUP(IA$1,LEV[[L/UE.id]:[L/UE.id]],LEV[[Medtag]:[Medtag]],"",0) -> 0 | IB4: =_xlfn.XLOOKUP(IB$1,LEV[[L/UE.id]:[L/UE.id]],LEV[[Medtag]:[Medtag]],"",0) -> 0 | IC4: =_xlfn.XLOOKUP(IC$1,LEV[[L/UE.id]:[L/UE.id]],LEV[[Medtag]:[Medtag]],"",0) -> 0 | ID4: =_xlfn.XLOOKUP(ID$1,LEV[[L/UE.id]:[L/UE.id]],LEV[[Medtag]:[Medtag]],"",0) -> 0 | IE4: =_xlfn.XLOOKUP(IE$1,LEV[[L/UE.id]:[L/UE.id]],LEV[[Medtag]:[Medtag]],"",0) -> 0 | IF4: =_xlfn.XLOOKUP(IF$1,LEV[[L/UE.id]:[L/UE.id]],LEV[[Medtag]:[Medtag]],"",0) -> 0 | IG4: =_xlfn.XLOOKUP(IG$1,LEV[[L/UE.id]:[L/UE.id]],LEV[[Medtag]:[Medtag]],"",0) -> 0 | IH4: =_xlfn.XLOOKUP(IH$1,LEV[[L/UE.id]:[L/UE.id]],LEV[[Medtag]:[Medtag]],"",0) -> 0 | II4: =_xlfn.XLOOKUP(II$1,LEV[[L/UE.id]:[L/UE.id]],LEV[[Medtag]:[Medtag]],"",0) -> 0 | IJ4: =_xlfn.XLOOKUP(IJ$1,LEV[[L/UE.id]:[L/UE.id]],LEV[[Medtag]:[Medtag]],"",0) -> 0 | IK4: =_xlfn.XLOOKUP(IK$1,LEV[[L/UE.id]:[L/UE.id]],LEV[[Medtag]:[Medtag]],"",0) -> 0 | IL4: =_xlfn.XLOOKUP(IL$1,LEV[[L/UE.id]:[L/UE.id]],LEV[[Medtag]:[Medtag]],"",0) -> 0 | IM4: =_xlfn.XLOOKUP(IM$1,LEV[[L/UE.id]:[L/UE.id]],LEV[[Medtag]:[Medtag]],"",0) -> 0 | IN4: =_xlfn.XLOOKUP(IN$1,LEV[[L/UE.id]:[L/UE.id]],LEV[[Medtag]:[Medtag]],"",0) -> 0 | IO4: =_xlfn.XLOOKUP(IO$1,LEV[[L/UE.id]:[L/UE.id]],LEV[[Medtag]:[Medtag]],"",0) -> 0 | IP4: =_xlfn.XLOOKUP(IP$1,LEV[[L/UE.id]:[L/UE.id]],LEV[[Medtag]:[Medtag]],"",0) -> 0 | IQ4: =_xlfn.XLOOKUP(IQ$1,LEV[[L/UE.id]:[L/UE.id]],LEV[[Medtag]:[Medtag]],"",0) -> 0 | IR4: =_xlfn.XLOOKUP(IR$1,LEV[[L/UE.id]:[L/UE.id]],LEV[[Medtag]:[Medtag]],"",0) -> 0 | IS4: =_xlfn.XLOOKUP(IS$1,LEV[[L/UE.id]:[L/UE.id]],LEV[[Medtag]:[Medtag]],"",0) -> 0 | IT4: =_xlfn.XLOOKUP(IT$1,LEV[[L/UE.id]:[L/UE.id]],LEV[[Medtag]:[Medtag]],"",0) -> 0 | IU4: =_xlfn.XLOOKUP(IU$1,LEV[[L/UE.id]:[L/UE.id]],LEV[[Medtag]:[Medtag]],"",0) -> 0 | IV4: =_xlfn.XLOOKUP(IV$1,LEV[[L/UE.id]:[L/UE.id]],LEV[[Medtag]:[Medtag]],"",0) -> 0 | IW4: =_xlfn.XLOOKUP(IW$1,LEV[[L/UE.id]:[L/UE.id]],LEV[[Medtag]:[Medtag]],"",0) -> 0 | IX4: =_xlfn.XLOOKUP(IX$1,LEV[[L/UE.id]:[L/UE.id]],LEV[[Medtag]:[Medtag]],"",0) -> 0 | IY4: =_xlfn.XLOOKUP(IY$1,LEV[[L/UE.id]:[L/UE.id]],LEV[[Medtag]:[Medtag]],"",0) -> 0 | IZ4: =_xlfn.XLOOKUP(IZ$1,LEV[[L/UE.id]:[L/UE.id]],LEV[[Medtag]:[Medtag]],"",0) -> 0 | JA4: =_xlfn.XLOOKUP(JA$1,LEV[[L/UE.id]:[L/UE.id]],LEV[[Medtag]:[Medtag]],"",0) -> 0 | JB4: =_xlfn.XLOOKUP(JB$1,LEV[[L/UE.id]:[L/UE.id]],LEV[[Medtag]:[Medtag]],"",0) -> 0 | JC4: =_xlfn.XLOOKUP(JC$1,LEV[[L/UE.id]:[L/UE.id]],LEV[[Medtag]:[Medtag]],"",0) -> 0 | JD4: =_xlfn.XLOOKUP(JD$1,LEV[[L/UE.id]:[L/UE.id]],LEV[[Medtag]:[Medtag]],"",0) -> 0 | JE4: =_xlfn.XLOOKUP(JE$1,LEV[[L/UE.id]:[L/UE.id]],LEV[[Medtag]:[Medtag]],"",0) -> 0 | JF4: =_xlfn.XLOOKUP(JF$1,LEV[[L/UE.id]:[L/UE.id]],LEV[[Medtag]:[Medtag]],"",0) -> 0 | JG4: =_xlfn.XLOOKUP(JG$1,LEV[[L/UE.id]:[L/UE.id]],LEV[[Medtag]:[Medtag]],"",0) -> 0 | JH4: =_xlfn.XLOOKUP(JH$1,LEV[[L/UE.id]:[L/UE.id]],LEV[[Medtag]:[Medtag]],"",0) -> 0 | JI4: =_xlfn.XLOOKUP(JI$1,LEV[[L/UE.id]:[L/UE.id]],LEV[[Medtag]:[Medtag]],"",0) -> 0 | JJ4: =_xlfn.XLOOKUP(JJ$1,LEV[[L/UE.id]:[L/UE.id]],LEV[[Medtag]:[Medtag]],"",0) -> 0
K5: 1 | O5: LEV. NAVN | U5: =_xlfn.XLOOKUP(U$1,LEV[[L/UE.id]:[L/UE.id]],LEV[[NAVN]:[NAVN]],"",0) -> Joca | V5: =_xlfn.XLOOKUP(V$1,LEV[[L/UE.id]:[L/UE.id]],LEV[[NAVN]:[NAVN]],"",0) -> Rubæk | W5: =_xlfn.XLOOKUP(W$1,LEV[[L/UE.id]:[L/UE.id]],LEV[[NAVN]:[NAVN]],"",0) -> Be-Low | X5: =_xlfn.XLOOKUP(X$1,LEV[[L/UE.id]:[L/UE.id]],LEV[[NAVN]:[NAVN]],"",0) -> E.J. Vejstriber | Y5: =_xlfn.XLOOKUP(Y$1,LEV[[L/UE.id]:[L/UE.id]],LEV[[NAVN]:[NAVN]],"",0) -> LKF Sjælland - Munck | Z5: =_xlfn.XLOOKUP(Z$1,LEV[[L/UE.id]:[L/UE.id]],LEV[[NAVN]:[NAVN]],"",0) -> Eurostar Danmark A/S (SafeRoad) | AA5: =_xlfn.XLOOKUP(AA$1,LEV[[L/UE.id]:[L/UE.id]],LEV[[NAVN]:[NAVN]],"",0) -> All Remove Danmark | AB5: =_xlfn.XLOOKUP(AB$1,LEV[[L/UE.id]:[L/UE.id]],LEV[[NAVN]:[NAVN]],"",0) -> Georg Jørgensen | AC5: =_xlfn.XLOOKUP(AC$1,LEV[[L/UE.id]:[L/UE.id]],LEV[[NAVN]:[NAVN]],"",0) -> NCC Roads A/S | AD5: =_xlfn.XLOOKUP(AD$1,LEV[[L/UE.id]:[L/UE.id]],LEV[[NAVN]:[NAVN]],"",0) -> PEAB A/S | AE5: =_xlfn.XLOOKUP(AE$1,LEV[[L/UE.id]:[L/UE.id]],LEV[[NAVN]:[NAVN]],"",0) -> Munck Asfalt A/S | AF5: =_xlfn.XLOOKUP(AF$1,LEV[[L/UE.id]:[L/UE.id]],LEV[[NAVN]:[NAVN]],"",0) -> Asfalt sjakket | AG5: =_xlfn.XLOOKUP(AG$1,LEV[[L/UE.id]:[L/UE.id]],LEV[[NAVN]:[NAVN]],"",0) -> Asfalt specialisterne | AH5: =_xlfn.XLOOKUP(AH$1,LEV[[L/UE.id]:[L/UE.id]],LEV[[NAVN]:[NAVN]],"",0) -> Pankas | AI5: =_xlfn.XLOOKUP(AI$1,LEV[[L/UE.id]:[L/UE.id]],LEV[[NAVN]:[NAVN]],"",0) -> Colas Vejmateriale A/S | AJ5: =_xlfn.XLOOKUP(AJ$1,LEV[[L/UE.id]:[L/UE.id]],LEV[[NAVN]:[NAVN]],"",0) -> Total Diamanten | AK5: =_xlfn.XLOOKUP(AK$1,LEV[[L/UE.id]:[L/UE.id]],LEV[[NAVN]:[NAVN]],"",0) -> Farum Beton | AL5: =_xlfn.XLOOKUP(AL$1,LEV[[L/UE.id]:[L/UE.id]],LEV[[NAVN]:[NAVN]],"",0) -> Gammelrand | AM5: =_xlfn.XLOOKUP(AM$1,LEV[[L/UE.id]:[L/UE.id]],LEV[[NAVN]:[NAVN]],"",0) -> IBF Betonvarer | AN5: =_xlfn.XLOOKUP(AN$1,LEV[[L/UE.id]:[L/UE.id]],LEV[[NAVN]:[NAVN]],"",0) -> Byggebjerg Beton A/S | AO5: =_xlfn.XLOOKUP(AO$1,LEV[[L/UE.id]:[L/UE.id]],LEV[[NAVN]:[NAVN]],"",0) -> Århus Cementvarefabrik | AP5: =_xlfn.XLOOKUP(AP$1,LEV[[L/UE.id]:[L/UE.id]],LEV[[NAVN]:[NAVN]],"",0) -> Tscherning | AQ5: =_xlfn.XLOOKUP(AQ$1,LEV[[L/UE.id]:[L/UE.id]],LEV[[NAVN]:[NAVN]],"",0) -> K. Freitag | AR5: =_xlfn.XLOOKUP(AR$1,LEV[[L/UE.id]:[L/UE.id]],LEV[[NAVN]:[NAVN]],"",0) -> ConcreteHead | AS5: =_xlfn.XLOOKUP(AS$1,LEV[[L/UE.id]:[L/UE.id]],LEV[[NAVN]:[NAVN]],"",0) -> KW beton teknik | AT5: =_xlfn.XLOOKUP(AT$1,LEV[[L/UE.id]:[L/UE.id]],LEV[[NAVN]:[NAVN]],"",0) -> FA Brolægning | AU5: =_xlfn.XLOOKUP(AU$1,LEV[[L/UE.id]:[L/UE.id]],LEV[[NAVN]:[NAVN]],"",0) -> DT Brolægning | AV5: =_xlfn.XLOOKUP(AV$1,LEV[[L/UE.id]:[L/UE.id]],LEV[[NAVN]:[NAVN]],"",0) -> 0 | AW5: =_xlfn.XLOOKUP(AW$1,LEV[[L/UE.id]:[L/UE.id]],LEV[[NAVN]:[NAVN]],"",0) -> Brix Brolægning | AX5: =_xlfn.XLOOKUP(AX$1,LEV[[L/UE.id]:[L/UE.id]],LEV[[NAVN]:[NAVN]],"",0) -> P.P. Brolægning A/S | AY5: =_xlfn.XLOOKUP(AY$1,LEV[[L/UE.id]:[L/UE.id]],LEV[[NAVN]:[NAVN]],"",0) -> Byagers Brolægning | AZ5: =_xlfn.XLOOKUP(AZ$1,LEV[[L/UE.id]:[L/UE.id]],LEV[[NAVN]:[NAVN]],"",0) -> Landskab & Brolægning | BA5: =_xlfn.XLOOKUP(BA$1,LEV[[L/UE.id]:[L/UE.id]],LEV[[NAVN]:[NAVN]],"",0) -> Dybdal brolægning | BB5: =_xlfn.XLOOKUP(BB$1,LEV[[L/UE.id]:[L/UE.id]],LEV[[NAVN]:[NAVN]],"",0) -> Wurtz Brolægning | BC5: =_xlfn.XLOOKUP(BC$1,LEV[[L/UE.id]:[L/UE.id]],LEV[[NAVN]:[NAVN]],"",0) -> T.O.Brolægning | BD5: =_xlfn.XLOOKUP(BD$1,LEV[[L/UE.id]:[L/UE.id]],LEV[[NAVN]:[NAVN]],"",0) -> Danboring A/S | BE5: =_xlfn.XLOOKUP(BE$1,LEV[[L/UE.id]:[L/UE.id]],LEV[[NAVN]:[NAVN]],"",0) -> Brandt Diamant | BF5: =_xlfn.XLOOKUP(BF$1,LEV[[L/UE.id]:[L/UE.id]],LEV[[NAVN]:[NAVN]],"",0) -> SWARCO TRAFIK A/S | BG5: =_xlfn.XLOOKUP(BG$1,LEV[[L/UE.id]:[L/UE.id]],LEV[[NAVN]:[NAVN]],"",0) -> ITS Teknik (Dansk Trafik Teknik / Olsen Engineering) | BH5: =_xlfn.XLOOKUP(BH$1,LEV[[L/UE.id]:[L/UE.id]],LEV[[NAVN]:[NAVN]],"",0) -> Kaels El | BI5: =_xlfn.XLOOKUP(BI$1,LEV[[L/UE.id]:[L/UE.id]],LEV[[NAVN]:[NAVN]],"",0) -> HH Installation ApS | BJ5: =_xlfn.XLOOKUP(BJ$1,LEV[[L/UE.id]:[L/UE.id]],LEV[[NAVN]:[NAVN]],"",0) -> Dansk sportbelysning | BK5: =_xlfn.XLOOKUP(BK$1,LEV[[L/UE.id]:[L/UE.id]],LEV[[NAVN]:[NAVN]],"",0) -> Filtenborg El | BL5: =_xlfn.XLOOKUP(BL$1,LEV[[L/UE.id]:[L/UE.id]],LEV[[NAVN]:[NAVN]],"",0) -> Axeltoft El | BM5: =_xlfn.XLOOKUP(BM$1,LEV[[L/UE.id]:[L/UE.id]],LEV[[NAVN]:[NAVN]],"",0) -> Nordens El | BN5: =_xlfn.XLOOKUP(BN$1,LEV[[L/UE.id]:[L/UE.id]],LEV[[NAVN]:[NAVN]],"",0) -> Citytech | BO5: =_xlfn.XLOOKUP(BO$1,LEV[[L/UE.id]:[L/UE.id]],LEV[[NAVN]:[NAVN]],"",0) -> MJ Eriksson | BP5: =_xlfn.XLOOKUP(BP$1,LEV[[L/UE.id]:[L/UE.id]],LEV[[NAVN]:[NAVN]],"",0) -> Hollbøll | BQ5: =_xlfn.XLOOKUP(BQ$1,LEV[[L/UE.id]:[L/UE.id]],LEV[[NAVN]:[NAVN]],"",0) -> Barslund | BR5: =_xlfn.XLOOKUP(BR$1,LEV[[L/UE.id]:[L/UE.id]],LEV[[NAVN]:[NAVN]],"",0) -> MSE | BS5: =_xlfn.XLOOKUP(BS$1,LEV[[L/UE.id]:[L/UE.id]],LEV[[NAVN]:[NAVN]],"",0) -> Benny Petersen | BT5: =_xlfn.XLOOKUP(BT$1,LEV[[L/UE.id]:[L/UE.id]],LEV[[NAVN]:[NAVN]],"",0) -> Jordkonsulenterne | BU5: =_xlfn.XLOOKUP(BU$1,LEV[[L/UE.id]:[L/UE.id]],LEV[[NAVN]:[NAVN]],"",0) -> Jord - Miljø A/S | BV5: =_xlfn.XLOOKUP(BV$1,LEV[[L/UE.id]:[L/UE.id]],LEV[[NAVN]:[NAVN]],"",0) -> VM Flag og Stænger A/S | BW5: =_xlfn.XLOOKUP(BW$1,LEV[[L/UE.id]:[L/UE.id]],LEV[[NAVN]:[NAVN]],"",0) -> Soprema | BX5: =_xlfn.XLOOKUP(BX$1,LEV[[L/UE.id]:[L/UE.id]],LEV[[NAVN]:[NAVN]],"",0) -> Høchendorff Skifer & Granit Aps | BY5: =_xlfn.XLOOKUP(BY$1,LEV[[L/UE.id]:[L/UE.id]],LEV[[NAVN]:[NAVN]],"",0) -> Zurface | BZ5: =_xlfn.XLOOKUP(BZ$1,LEV[[L/UE.id]:[L/UE.id]],LEV[[NAVN]:[NAVN]],"",0) -> Bent Vangsø Natursten | CA5: =_xlfn.XLOOKUP(CA$1,LEV[[L/UE.id]:[L/UE.id]],LEV[[NAVN]:[NAVN]],"",0) -> Per Aarsleff | CB5: =_xlfn.XLOOKUP(CB$1,LEV[[L/UE.id]:[L/UE.id]],LEV[[NAVN]:[NAVN]],"",0) -> PileByg A/S | CC5: =_xlfn.XLOOKUP(CC$1,LEV[[L/UE.id]:[L/UE.id]],LEV[[NAVN]:[NAVN]],"",0) -> Kibo Sjælland | CD5: =_xlfn.XLOOKUP(CD$1,LEV[[L/UE.id]:[L/UE.id]],LEV[[NAVN]:[NAVN]],"",0) -> Poda Hegn | CE5: =_xlfn.XLOOKUP(CE$1,LEV[[L/UE.id]:[L/UE.id]],LEV[[NAVN]:[NAVN]],"",0) -> Trådvarerfabrikken ISHØJ | CF5: =_xlfn.XLOOKUP(CF$1,LEV[[L/UE.id]:[L/UE.id]],LEV[[NAVN]:[NAVN]],"",0) -> KantDesign | CG5: =_xlfn.XLOOKUP(CG$1,LEV[[L/UE.id]:[L/UE.id]],LEV[[NAVN]:[NAVN]],"",0) -> Per Aarsleff A/S | CH5: =_xlfn.XLOOKUP(CH$1,LEV[[L/UE.id]:[L/UE.id]],LEV[[NAVN]:[NAVN]],"",0) -> Norrecco A/S | CI5: =_xlfn.XLOOKUP(CI$1,LEV[[L/UE.id]:[L/UE.id]],LEV[[NAVN]:[NAVN]],"",0) -> Steffen Sten ApS | CJ5: =_xlfn.XLOOKUP(CJ$1,LEV[[L/UE.id]:[L/UE.id]],LEV[[NAVN]:[NAVN]],"",0) -> Klinker Outdoor | CK5: =_xlfn.XLOOKUP(CK$1,LEV[[L/UE.id]:[L/UE.id]],LEV[[NAVN]:[NAVN]],"",0) -> Gammelrand Beton I/S | CL5: =_xlfn.XLOOKUP(CL$1,LEV[[L/UE.id]:[L/UE.id]],LEV[[NAVN]:[NAVN]],"",0) -> IBF | CM5: =_xlfn.XLOOKUP(CM$1,LEV[[L/UE.id]:[L/UE.id]],LEV[[NAVN]:[NAVN]],"",0) -> Nyrup Plast A/S | CN5: =_xlfn.XLOOKUP(CN$1,LEV[[L/UE.id]:[L/UE.id]],LEV[[NAVN]:[NAVN]],"",0) -> Lønhart | CO5: =_xlfn.XLOOKUP(CO$1,LEV[[L/UE.id]:[L/UE.id]],LEV[[NAVN]:[NAVN]],"",0) -> Scanpipe | CP5: =_xlfn.XLOOKUP(CP$1,LEV[[L/UE.id]:[L/UE.id]],LEV[[NAVN]:[NAVN]],"",0) -> Nordisk Kunstgræs Import ApS | CQ5: =_xlfn.XLOOKUP(CQ$1,LEV[[L/UE.id]:[L/UE.id]],LEV[[NAVN]:[NAVN]],"",0) -> Citylawn | CR5: =_xlfn.XLOOKUP(CR$1,LEV[[L/UE.id]:[L/UE.id]],LEV[[NAVN]:[NAVN]],"",0) -> Evergreen Sport | CS5: =_xlfn.XLOOKUP(CS$1,LEV[[L/UE.id]:[L/UE.id]],LEV[[NAVN]:[NAVN]],"",0) -> Laiderz | CT5: =_xlfn.XLOOKUP(CT$1,LEV[[L/UE.id]:[L/UE.id]],LEV[[NAVN]:[NAVN]],"",0) -> TF Sport | CU5: =_xlfn.XLOOKUP(CU$1,LEV[[L/UE.id]:[L/UE.id]],LEV[[NAVN]:[NAVN]],"",0) -> FiveStar grass, Holland | CV5: =_xlfn.XLOOKUP(CV$1,LEV[[L/UE.id]:[L/UE.id]],LEV[[NAVN]:[NAVN]],"",0) -> WGS | CW5: =_xlfn.XLOOKUP(CW$1,LEV[[L/UE.id]:[L/UE.id]],LEV[[NAVN]:[NAVN]],"",0) -> Unisport | CX5: =_xlfn.XLOOKUP(CX$1,LEV[[L/UE.id]:[L/UE.id]],LEV[[NAVN]:[NAVN]],"",0) -> Sport performance | CY5: =_xlfn.XLOOKUP(CY$1,LEV[[L/UE.id]:[L/UE.id]],LEV[[NAVN]:[NAVN]],"",0) -> Maxplay | CZ5: =_xlfn.XLOOKUP(CZ$1,LEV[[L/UE.id]:[L/UE.id]],LEV[[NAVN]:[NAVN]],"",0) -> Tress | DA5: =_xlfn.XLOOKUP(DA$1,LEV[[L/UE.id]:[L/UE.id]],LEV[[NAVN]:[NAVN]],"",0) -> Hags | DB5: =_xlfn.XLOOKUP(DB$1,LEV[[L/UE.id]:[L/UE.id]],LEV[[NAVN]:[NAVN]],"",0) -> Uniqa A/S | DC5: =_xlfn.XLOOKUP(DC$1,LEV[[L/UE.id]:[L/UE.id]],LEV[[NAVN]:[NAVN]],"",0) -> Uno Koncept A/S | DD5: =_xlfn.XLOOKUP(DD$1,LEV[[L/UE.id]:[L/UE.id]],LEV[[NAVN]:[NAVN]],"",0) -> Kompan | DE5: =_xlfn.XLOOKUP(DE$1,LEV[[L/UE.id]:[L/UE.id]],LEV[[NAVN]:[NAVN]],"",0) -> Lars Laj | DF5: =_xlfn.XLOOKUP(DF$1,LEV[[L/UE.id]:[L/UE.id]],LEV[[NAVN]:[NAVN]],"",0) -> Lekolar A/S | DG5: =_xlfn.XLOOKUP(DG$1,LEV[[L/UE.id]:[L/UE.id]],LEV[[NAVN]:[NAVN]],"",0) -> Cado A/S | DH5: =_xlfn.XLOOKUP(DH$1,LEV[[L/UE.id]:[L/UE.id]],LEV[[NAVN]:[NAVN]],"",0) -> Elverdal | DI5: =_xlfn.XLOOKUP(DI$1,LEV[[L/UE.id]:[L/UE.id]],LEV[[NAVN]:[NAVN]],"",0) -> Copla legepladser | DJ5: =_xlfn.XLOOKUP(DJ$1,LEV[[L/UE.id]:[L/UE.id]],LEV[[NAVN]:[NAVN]],"",0) -> Danske natur legepladser | DK5: =_xlfn.XLOOKUP(DK$1,LEV[[L/UE.id]:[L/UE.id]],LEV[[NAVN]:[NAVN]],"",0) -> Dansk Celleglas | DL5: =_xlfn.XLOOKUP(DL$1,LEV[[L/UE.id]:[L/UE.id]],LEV[[NAVN]:[NAVN]],"",0) -> Mads Boye | DM5: =_xlfn.XLOOKUP(DM$1,LEV[[L/UE.id]:[L/UE.id]],LEV[[NAVN]:[NAVN]],"",0) -> Murermester A. Holst | DN5: =_xlfn.XLOOKUP(DN$1,LEV[[L/UE.id]:[L/UE.id]],LEV[[NAVN]:[NAVN]],"",0) -> Thomas Espenhain Murermester | DO5: =_xlfn.XLOOKUP(DO$1,LEV[[L/UE.id]:[L/UE.id]],LEV[[NAVN]:[NAVN]],"",0) -> Christian Hansen | DP5: =_xlfn.XLOOKUP(DP$1,LEV[[L/UE.id]:[L/UE.id]],LEV[[NAVN]:[NAVN]],"",0) -> LH Hokkerup A/S | DQ5: =_xlfn.XLOOKUP(DQ$1,LEV[[L/UE.id]:[L/UE.id]],LEV[[NAVN]:[NAVN]],"",0) -> Georg Tscherning A/S | DR5: =_xlfn.XLOOKUP(DR$1,LEV[[L/UE.id]:[L/UE.id]],LEV[[NAVN]:[NAVN]],"",0) -> Weisleder Nedrivning A/S | DS5: =_xlfn.XLOOKUP(DS$1,LEV[[L/UE.id]:[L/UE.id]],LEV[[NAVN]:[NAVN]],"",0) -> Midtsjællands Nedbrydning | DT5: =_xlfn.XLOOKUP(DT$1,LEV[[L/UE.id]:[L/UE.id]],LEV[[NAVN]:[NAVN]],"",0) -> Holdens Planteskole A/S | DU5: =_xlfn.XLOOKUP(DU$1,LEV[[L/UE.id]:[L/UE.id]],LEV[[NAVN]:[NAVN]],"",0) -> Birkholm Planteskole | DV5: =_xlfn.XLOOKUP(DV$1,LEV[[L/UE.id]:[L/UE.id]],LEV[[NAVN]:[NAVN]],"",0) -> Danplanex | DW5: =_xlfn.XLOOKUP(DW$1,LEV[[L/UE.id]:[L/UE.id]],LEV[[NAVN]:[NAVN]],"",0) -> Proplant | DX5: =_xlfn.XLOOKUP(DX$1,LEV[[L/UE.id]:[L/UE.id]],LEV[[NAVN]:[NAVN]],"",0) -> OKN DRIFT | DY5: =_xlfn.XLOOKUP(DY$1,LEV[[L/UE.id]:[L/UE.id]],LEV[[NAVN]:[NAVN]],"",0) -> M.J.Eriksson A/S | DZ5: =_xlfn.XLOOKUP(DZ$1,LEV[[L/UE.id]:[L/UE.id]],LEV[[NAVN]:[NAVN]],"",0) -> Per Aarsleff A/S | EA5: =_xlfn.XLOOKUP(EA$1,LEV[[L/UE.id]:[L/UE.id]],LEV[[NAVN]:[NAVN]],"",0) -> NCC / Hercules Fundering | EB5: =_xlfn.XLOOKUP(EB$1,LEV[[L/UE.id]:[L/UE.id]],LEV[[NAVN]:[NAVN]],"",0) -> Semitech A/S | EC5: =_xlfn.XLOOKUP(EC$1,LEV[[L/UE.id]:[L/UE.id]],LEV[[NAVN]:[NAVN]],"",0) -> Elefantriste A/S | ED5: =_xlfn.XLOOKUP(ED$1,LEV[[L/UE.id]:[L/UE.id]],LEV[[NAVN]:[NAVN]],"",0) -> HedeDanmark | EE5: =_xlfn.XLOOKUP(EE$1,LEV[[L/UE.id]:[L/UE.id]],LEV[[NAVN]:[NAVN]],"",0) -> Aarup Saltværn | EF5: =_xlfn.XLOOKUP(EF$1,LEV[[L/UE.id]:[L/UE.id]],LEV[[NAVN]:[NAVN]],"",0) -> Trafikprodukter | EG5: =_xlfn.XLOOKUP(EG$1,LEV[[L/UE.id]:[L/UE.id]],LEV[[NAVN]:[NAVN]],"",0) -> SafeRoad - (Daluiso) | EH5: =_xlfn.XLOOKUP(EH$1,LEV[[L/UE.id]:[L/UE.id]],LEV[[NAVN]:[NAVN]],"",0) -> Byggros | EI5: =_xlfn.XLOOKUP(EI$1,LEV[[L/UE.id]:[L/UE.id]],LEV[[NAVN]:[NAVN]],"",0) -> Peter Meyer A/S, Entreprenør | EJ5: =_xlfn.XLOOKUP(EJ$1,LEV[[L/UE.id]:[L/UE.id]],LEV[[NAVN]:[NAVN]],"",0) -> Per Aarsleff | EK5: =_xlfn.XLOOKUP(EK$1,LEV[[L/UE.id]:[L/UE.id]],LEV[[NAVN]:[NAVN]],"",0) -> Danboring A/S | EL5: =_xlfn.XLOOKUP(EL$1,LEV[[L/UE.id]:[L/UE.id]],LEV[[NAVN]:[NAVN]],"",0) -> Mian Steel | EM5: =_xlfn.XLOOKUP(EM$1,LEV[[L/UE.id]:[L/UE.id]],LEV[[NAVN]:[NAVN]],"",0) -> JQ stålmontage | EN5: =_xlfn.XLOOKUP(EN$1,LEV[[L/UE.id]:[L/UE.id]],LEV[[NAVN]:[NAVN]],"",0) -> Martlev Structural Design | EO5: =_xlfn.XLOOKUP(EO$1,LEV[[L/UE.id]:[L/UE.id]],LEV[[NAVN]:[NAVN]],"",0) -> Aarsleff | EP5: =_xlfn.XLOOKUP(EP$1,LEV[[L/UE.id]:[L/UE.id]],LEV[[NAVN]:[NAVN]],"",0) -> Hitsa-Hejls | EQ5: =_xlfn.XLOOKUP(EQ$1,LEV[[L/UE.id]:[L/UE.id]],LEV[[NAVN]:[NAVN]],"",0) -> Inventarrum A/S | ER5: =_xlfn.XLOOKUP(ER$1,LEV[[L/UE.id]:[L/UE.id]],LEV[[NAVN]:[NAVN]],"",0) -> Out-sider A/S | ES5: =_xlfn.XLOOKUP(ES$1,LEV[[L/UE.id]:[L/UE.id]],LEV[[NAVN]:[NAVN]],"",0) -> Park-Udstyr.dk | ET5: =_xlfn.XLOOKUP(ET$1,LEV[[L/UE.id]:[L/UE.id]],LEV[[NAVN]:[NAVN]],"",0) -> Træningspavillonen ApS | EU5: =_xlfn.XLOOKUP(EU$1,LEV[[L/UE.id]:[L/UE.id]],LEV[[NAVN]:[NAVN]],"",0) -> Urban Elements ApS | EV5: =_xlfn.XLOOKUP(EV$1,LEV[[L/UE.id]:[L/UE.id]],LEV[[NAVN]:[NAVN]],"",0) -> Veksø-Taulov A/S | EW5: =_xlfn.XLOOKUP(EW$1,LEV[[L/UE.id]:[L/UE.id]],LEV[[NAVN]:[NAVN]],"",0) -> Vestre AB | EX5: =_xlfn.XLOOKUP(EX$1,LEV[[L/UE.id]:[L/UE.id]],LEV[[NAVN]:[NAVN]],"",0) -> Mastellone | EY5: =_xlfn.XLOOKUP(EY$1,LEV[[L/UE.id]:[L/UE.id]],LEV[[NAVN]:[NAVN]],"",0) -> GH Form ApS | EZ5: =_xlfn.XLOOKUP(EZ$1,LEV[[L/UE.id]:[L/UE.id]],LEV[[NAVN]:[NAVN]],"",0) -> Thors-Design ApS | FA5: =_xlfn.XLOOKUP(FA$1,LEV[[L/UE.id]:[L/UE.id]],LEV[[NAVN]:[NAVN]],"",0) -> ParkZone A/S | FB5: =_xlfn.XLOOKUP(FB$1,LEV[[L/UE.id]:[L/UE.id]],LEV[[NAVN]:[NAVN]],"",0) -> G9 landskab. park & byrum A/S | FC5: =_xlfn.XLOOKUP(FC$1,LEV[[L/UE.id]:[L/UE.id]],LEV[[NAVN]:[NAVN]],"",0) -> Zenzo Group ApS | FD5: =_xlfn.XLOOKUP(FD$1,LEV[[L/UE.id]:[L/UE.id]],LEV[[NAVN]:[NAVN]],"",0) -> ? | FE5: =_xlfn.XLOOKUP(FE$1,LEV[[L/UE.id]:[L/UE.id]],LEV[[NAVN]:[NAVN]],"",0) -> ? | FF5: =_xlfn.XLOOKUP(FF$1,LEV[[L/UE.id]:[L/UE.id]],LEV[[NAVN]:[NAVN]],"",0) -> ? | FG5: =_xlfn.XLOOKUP(FG$1,LEV[[L/UE.id]:[L/UE.id]],LEV[[NAVN]:[NAVN]],"",0) -> ? | FH5: =_xlfn.XLOOKUP(FH$1,LEV[[L/UE.id]:[L/UE.id]],LEV[[NAVN]:[NAVN]],"",0) -> Frede West | FI5: =_xlfn.XLOOKUP(FI$1,LEV[[L/UE.id]:[L/UE.id]],LEV[[NAVN]:[NAVN]],"",0) -> S. Rosendal ApS Tømrerfirma | FJ5: =_xlfn.XLOOKUP(FJ$1,LEV[[L/UE.id]:[L/UE.id]],LEV[[NAVN]:[NAVN]],"",0) -> Tømrerfirmaet Søren Bruun | FK5: =_xlfn.XLOOKUP(FK$1,LEV[[L/UE.id]:[L/UE.id]],LEV[[NAVN]:[NAVN]],"",0) -> Tomas Nielsen | FL5: =_xlfn.XLOOKUP(FL$1,LEV[[L/UE.id]:[L/UE.id]],LEV[[NAVN]:[NAVN]],"",0) -> Christian Hansen | FM5: =_xlfn.XLOOKUP(FM$1,LEV[[L/UE.id]:[L/UE.id]],LEV[[NAVN]:[NAVN]],"",0) -> Orev ApS | FN5: =_xlfn.XLOOKUP(FN$1,LEV[[L/UE.id]:[L/UE.id]],LEV[[NAVN]:[NAVN]],"",0) -> Danregn | FO5: =_xlfn.XLOOKUP(FO$1,LEV[[L/UE.id]:[L/UE.id]],LEV[[NAVN]:[NAVN]],"",0) -> DSV Transport A/S | FP5: =_xlfn.XLOOKUP(FP$1,LEV[[L/UE.id]:[L/UE.id]],LEV[[NAVN]:[NAVN]],"",0) -> Frede Andersen & Søn | FQ5: =_xlfn.XLOOKUP(FQ$1,LEV[[L/UE.id]:[L/UE.id]],LEV[[NAVN]:[NAVN]],"",0) -> CRJ | FR5: =_xlfn.XLOOKUP(FR$1,LEV[[L/UE.id]:[L/UE.id]],LEV[[NAVN]:[NAVN]],"",0) -> SCT | FS5: =_xlfn.XLOOKUP(FS$1,LEV[[L/UE.id]:[L/UE.id]],LEV[[NAVN]:[NAVN]],"",0) -> 0 | FT5: =_xlfn.XLOOKUP(FT$1,LEV[[L/UE.id]:[L/UE.id]],LEV[[NAVN]:[NAVN]],"",0) -> 0 | FU5: =_xlfn.XLOOKUP(FU$1,LEV[[L/UE.id]:[L/UE.id]],LEV[[NAVN]:[NAVN]],"",0) -> 0 | FV5: =_xlfn.XLOOKUP(FV$1,LEV[[L/UE.id]:[L/UE.id]],LEV[[NAVN]:[NAVN]],"",0) -> 0 | FW5: =_xlfn.XLOOKUP(FW$1,LEV[[L/UE.id]:[L/UE.id]],LEV[[NAVN]:[NAVN]],"",0) -> 0 | FX5: =_xlfn.XLOOKUP(FX$1,LEV[[L/UE.id]:[L/UE.id]],LEV[[NAVN]:[NAVN]],"",0) -> 0 | FY5: =_xlfn.XLOOKUP(FY$1,LEV[[L/UE.id]:[L/UE.id]],LEV[[NAVN]:[NAVN]],"",0) -> 0 | FZ5: =_xlfn.XLOOKUP(FZ$1,LEV[[L/UE.id]:[L/UE.id]],LEV[[NAVN]:[NAVN]],"",0) -> 0 | GA5: =_xlfn.XLOOKUP(GA$1,LEV[[L/UE.id]:[L/UE.id]],LEV[[NAVN]:[NAVN]],"",0) -> 0 | GB5: =_xlfn.XLOOKUP(GB$1,LEV[[L/UE.id]:[L/UE.id]],LEV[[NAVN]:[NAVN]],"",0) -> 0 | GC5: =_xlfn.XLOOKUP(GC$1,LEV[[L/UE.id]:[L/UE.id]],LEV[[NAVN]:[NAVN]],"",0) -> 0 | GD5: =_xlfn.XLOOKUP(GD$1,LEV[[L/UE.id]:[L/UE.id]],LEV[[NAVN]:[NAVN]],"",0) -> 0 | GE5: =_xlfn.XLOOKUP(GE$1,LEV[[L/UE.id]:[L/UE.id]],LEV[[NAVN]:[NAVN]],"",0) -> 0 | GF5: =_xlfn.XLOOKUP(GF$1,LEV[[L/UE.id]:[L/UE.id]],LEV[[NAVN]:[NAVN]],"",0) -> 0 | GG5: =_xlfn.XLOOKUP(GG$1,LEV[[L/UE.id]:[L/UE.id]],LEV[[NAVN]:[NAVN]],"",0) -> 0 | GH5: =_xlfn.XLOOKUP(GH$1,LEV[[L/UE.id]:[L/UE.id]],LEV[[NAVN]:[NAVN]],"",0) -> 0 | GI5: =_xlfn.XLOOKUP(GI$1,LEV[[L/UE.id]:[L/UE.id]],LEV[[NAVN]:[NAVN]],"",0) -> 0 | GJ5: =_xlfn.XLOOKUP(GJ$1,LEV[[L/UE.id]:[L/UE.id]],LEV[[NAVN]:[NAVN]],"",0) -> 0 | GK5: =_xlfn.XLOOKUP(GK$1,LEV[[L/UE.id]:[L/UE.id]],LEV[[NAVN]:[NAVN]],"",0) -> 0 | GL5: =_xlfn.XLOOKUP(GL$1,LEV[[L/UE.id]:[L/UE.id]],LEV[[NAVN]:[NAVN]],"",0) -> 0 | GM5: =_xlfn.XLOOKUP(GM$1,LEV[[L/UE.id]:[L/UE.id]],LEV[[NAVN]:[NAVN]],"",0) -> 0 | GN5: =_xlfn.XLOOKUP(GN$1,LEV[[L/UE.id]:[L/UE.id]],LEV[[NAVN]:[NAVN]],"",0) -> 0 | GO5: =_xlfn.XLOOKUP(GO$1,LEV[[L/UE.id]:[L/UE.id]],LEV[[NAVN]:[NAVN]],"",0) -> 0 | GP5: =_xlfn.XLOOKUP(GP$1,LEV[[L/UE.id]:[L/UE.id]],LEV[[NAVN]:[NAVN]],"",0) -> 0 | GQ5: =_xlfn.XLOOKUP(GQ$1,LEV[[L/UE.id]:[L/UE.id]],LEV[[NAVN]:[NAVN]],"",0) -> 0 | GR5: =_xlfn.XLOOKUP(GR$1,LEV[[L/UE.id]:[L/UE.id]],LEV[[NAVN]:[NAVN]],"",0) -> 0 | GS5: =_xlfn.XLOOKUP(GS$1,LEV[[L/UE.id]:[L/UE.id]],LEV[[NAVN]:[NAVN]],"",0) -> 0 | GT5: =_xlfn.XLOOKUP(GT$1,LEV[[L/UE.id]:[L/UE.id]],LEV[[NAVN]:[NAVN]],"",0) -> 0 | GU5: =_xlfn.XLOOKUP(GU$1,LEV[[L/UE.id]:[L/UE.id]],LEV[[NAVN]:[NAVN]],"",0) -> 0 | GV5: =_xlfn.XLOOKUP(GV$1,LEV[[L/UE.id]:[L/UE.id]],LEV[[NAVN]:[NAVN]],"",0) -> 0 | GW5: =_xlfn.XLOOKUP(GW$1,LEV[[L/UE.id]:[L/UE.id]],LEV[[NAVN]:[NAVN]],"",0) -> 0 | GX5: =_xlfn.XLOOKUP(GX$1,LEV[[L/UE.id]:[L/UE.id]],LEV[[NAVN]:[NAVN]],"",0) -> 0 | GY5: =_xlfn.XLOOKUP(GY$1,LEV[[L/UE.id]:[L/UE.id]],LEV[[NAVN]:[NAVN]],"",0) -> 0 | GZ5: =_xlfn.XLOOKUP(GZ$1,LEV[[L/UE.id]:[L/UE.id]],LEV[[NAVN]:[NAVN]],"",0) -> 0 | HA5: =_xlfn.XLOOKUP(HA$1,LEV[[L/UE.id]:[L/UE.id]],LEV[[NAVN]:[NAVN]],"",0) -> 0 | HB5: =_xlfn.XLOOKUP(HB$1,LEV[[L/UE.id]:[L/UE.id]],LEV[[NAVN]:[NAVN]],"",0) -> 0 | HC5: =_xlfn.XLOOKUP(HC$1,LEV[[L/UE.id]:[L/UE.id]],LEV[[NAVN]:[NAVN]],"",0) -> 0 | HD5: =_xlfn.XLOOKUP(HD$1,LEV[[L/UE.id]:[L/UE.id]],LEV[[NAVN]:[NAVN]],"",0) -> 0 | HE5: =_xlfn.XLOOKUP(HE$1,LEV[[L/UE.id]:[L/UE.id]],LEV[[NAVN]:[NAVN]],"",0) -> 0 | HF5: =_xlfn.XLOOKUP(HF$1,LEV[[L/UE.id]:[L/UE.id]],LEV[[NAVN]:[NAVN]],"",0) -> 0 | HG5: =_xlfn.XLOOKUP(HG$1,LEV[[L/UE.id]:[L/UE.id]],LEV[[NAVN]:[NAVN]],"",0) -> 0 | HH5: =_xlfn.XLOOKUP(HH$1,LEV[[L/UE.id]:[L/UE.id]],LEV[[NAVN]:[NAVN]],"",0) -> 0 | HI5: =_xlfn.XLOOKUP(HI$1,LEV[[L/UE.id]:[L/UE.id]],LEV[[NAVN]:[NAVN]],"",0) -> 0 | HJ5: =_xlfn.XLOOKUP(HJ$1,LEV[[L/UE.id]:[L/UE.id]],LEV[[NAVN]:[NAVN]],"",0) -> 0 | HK5: =_xlfn.XLOOKUP(HK$1,LEV[[L/UE.id]:[L/UE.id]],LEV[[NAVN]:[NAVN]],"",0) -> 0 | HL5: =_xlfn.XLOOKUP(HL$1,LEV[[L/UE.id]:[L/UE.id]],LEV[[NAVN]:[NAVN]],"",0) -> 0 | HM5: =_xlfn.XLOOKUP(HM$1,LEV[[L/UE.id]:[L/UE.id]],LEV[[NAVN]:[NAVN]],"",0) -> 0 | HN5: =_xlfn.XLOOKUP(HN$1,LEV[[L/UE.id]:[L/UE.id]],LEV[[NAVN]:[NAVN]],"",0) -> 0 | HO5: =_xlfn.XLOOKUP(HO$1,LEV[[L/UE.id]:[L/UE.id]],LEV[[NAVN]:[NAVN]],"",0) -> 0 | HP5: =_xlfn.XLOOKUP(HP$1,LEV[[L/UE.id]:[L/UE.id]],LEV[[NAVN]:[NAVN]],"",0) -> 0 | HQ5: =_xlfn.XLOOKUP(HQ$1,LEV[[L/UE.id]:[L/UE.id]],LEV[[NAVN]:[NAVN]],"",0) -> 0 | HR5: =_xlfn.XLOOKUP(HR$1,LEV[[L/UE.id]:[L/UE.id]],LEV[[NAVN]:[NAVN]],"",0) -> 0 | HS5: =_xlfn.XLOOKUP(HS$1,LEV[[L/UE.id]:[L/UE.id]],LEV[[NAVN]:[NAVN]],"",0) -> 0 | HT5: =_xlfn.XLOOKUP(HT$1,LEV[[L/UE.id]:[L/UE.id]],LEV[[NAVN]:[NAVN]],"",0) -> 0 | HU5: =_xlfn.XLOOKUP(HU$1,LEV[[L/UE.id]:[L/UE.id]],LEV[[NAVN]:[NAVN]],"",0) -> 0 | HV5: =_xlfn.XLOOKUP(HV$1,LEV[[L/UE.id]:[L/UE.id]],LEV[[NAVN]:[NAVN]],"",0) -> 0 | HW5: =_xlfn.XLOOKUP(HW$1,LEV[[L/UE.id]:[L/UE.id]],LEV[[NAVN]:[NAVN]],"",0) -> 0 | HX5: =_xlfn.XLOOKUP(HX$1,LEV[[L/UE.id]:[L/UE.id]],LEV[[NAVN]:[NAVN]],"",0) -> 0 | HY5: =_xlfn.XLOOKUP(HY$1,LEV[[L/UE.id]:[L/UE.id]],LEV[[NAVN]:[NAVN]],"",0) -> 0 | HZ5: =_xlfn.XLOOKUP(HZ$1,LEV[[L/UE.id]:[L/UE.id]],LEV[[NAVN]:[NAVN]],"",0) -> 0 | IA5: =_xlfn.XLOOKUP(IA$1,LEV[[L/UE.id]:[L/UE.id]],LEV[[NAVN]:[NAVN]],"",0) -> 0 | IB5: =_xlfn.XLOOKUP(IB$1,LEV[[L/UE.id]:[L/UE.id]],LEV[[NAVN]:[NAVN]],"",0) -> 0 | IC5: =_xlfn.XLOOKUP(IC$1,LEV[[L/UE.id]:[L/UE.id]],LEV[[NAVN]:[NAVN]],"",0) -> 0 | ID5: =_xlfn.XLOOKUP(ID$1,LEV[[L/UE.id]:[L/UE.id]],LEV[[NAVN]:[NAVN]],"",0) -> 0 | IE5: =_xlfn.XLOOKUP(IE$1,LEV[[L/UE.id]:[L/UE.id]],LEV[[NAVN]:[NAVN]],"",0) -> 0 | IF5: =_xlfn.XLOOKUP(IF$1,LEV[[L/UE.id]:[L/UE.id]],LEV[[NAVN]:[NAVN]],"",0) -> 0 | IG5: =_xlfn.XLOOKUP(IG$1,LEV[[L/UE.id]:[L/UE.id]],LEV[[NAVN]:[NAVN]],"",0) -> 0 | IH5: =_xlfn.XLOOKUP(IH$1,LEV[[L/UE.id]:[L/UE.id]],LEV[[NAVN]:[NAVN]],"",0) -> 0 | II5: =_xlfn.XLOOKUP(II$1,LEV[[L/UE.id]:[L/UE.id]],LEV[[NAVN]:[NAVN]],"",0) -> 0 | IJ5: =_xlfn.XLOOKUP(IJ$1,LEV[[L/UE.id]:[L/UE.id]],LEV[[NAVN]:[NAVN]],"",0) -> 0 | IK5: =_xlfn.XLOOKUP(IK$1,LEV[[L/UE.id]:[L/UE.id]],LEV[[NAVN]:[NAVN]],"",0) -> 0 | IL5: =_xlfn.XLOOKUP(IL$1,LEV[[L/UE.id]:[L/UE.id]],LEV[[NAVN]:[NAVN]],"",0) -> 0 | IM5: =_xlfn.XLOOKUP(IM$1,LEV[[L/UE.id]:[L/UE.id]],LEV[[NAVN]:[NAVN]],"",0) -> 0 | IN5: =_xlfn.XLOOKUP(IN$1,LEV[[L/UE.id]:[L/UE.id]],LEV[[NAVN]:[NAVN]],"",0) -> 0 | IO5: =_xlfn.XLOOKUP(IO$1,LEV[[L/UE.id]:[L/UE.id]],LEV[[NAVN]:[NAVN]],"",0) -> 0 | IP5: =_xlfn.XLOOKUP(IP$1,LEV[[L/UE.id]:[L/UE.id]],LEV[[NAVN]:[NAVN]],"",0) -> 0 | IQ5: =_xlfn.XLOOKUP(IQ$1,LEV[[L/UE.id]:[L/UE.id]],LEV[[NAVN]:[NAVN]],"",0) -> 0 | IR5: =_xlfn.XLOOKUP(IR$1,LEV[[L/UE.id]:[L/UE.id]],LEV[[NAVN]:[NAVN]],"",0) -> 0 | IS5: =_xlfn.XLOOKUP(IS$1,LEV[[L/UE.id]:[L/UE.id]],LEV[[NAVN]:[NAVN]],"",0) -> 0 | IT5: =_xlfn.XLOOKUP(IT$1,LEV[[L/UE.id]:[L/UE.id]],LEV[[NAVN]:[NAVN]],"",0) -> 0 | IU5: =_xlfn.XLOOKUP(IU$1,LEV[[L/UE.id]:[L/UE.id]],LEV[[NAVN]:[NAVN]],"",0) -> 0 | IV5: =_xlfn.XLOOKUP(IV$1,LEV[[L/UE.id]:[L/UE.id]],LEV[[NAVN]:[NAVN]],"",0) -> 0 | IW5: =_xlfn.XLOOKUP(IW$1,LEV[[L/UE.id]:[L/UE.id]],LEV[[NAVN]:[NAVN]],"",0) -> 0 | IX5: =_xlfn.XLOOKUP(IX$1,LEV[[L/UE.id]:[L/UE.id]],LEV[[NAVN]:[NAVN]],"",0) -> 0 | IY5: =_xlfn.XLOOKUP(IY$1,LEV[[L/UE.id]:[L/UE.id]],LEV[[NAVN]:[NAVN]],"",0) -> 0 | IZ5: =_xlfn.XLOOKUP(IZ$1,LEV[[L/UE.id]:[L/UE.id]],LEV[[NAVN]:[NAVN]],"",0) -> 0 | JA5: =_xlfn.XLOOKUP(JA$1,LEV[[L/UE.id]:[L/UE.id]],LEV[[NAVN]:[NAVN]],"",0) -> 0 | JB5: =_xlfn.XLOOKUP(JB$1,LEV[[L/UE.id]:[L/UE.id]],LEV[[NAVN]:[NAVN]],"",0) -> 0 | JC5: =_xlfn.XLOOKUP(JC$1,LEV[[L/UE.id]:[L/UE.id]],LEV[[NAVN]:[NAVN]],"",0) -> 0 | JD5: =_xlfn.XLOOKUP(JD$1,LEV[[L/UE.id]:[L/UE.id]],LEV[[NAVN]:[NAVN]],"",0) -> 0 | JE5: =_xlfn.XLOOKUP(JE$1,LEV[[L/UE.id]:[L/UE.id]],LEV[[NAVN]:[NAVN]],"",0) -> 0 | JF5: =_xlfn.XLOOKUP(JF$1,LEV[[L/UE.id]:[L/UE.id]],LEV[[NAVN]:[NAVN]],"",0) -> 0 | JG5: =_xlfn.XLOOKUP(JG$1,LEV[[L/UE.id]:[L/UE.id]],LEV[[NAVN]:[NAVN]],"",0) -> 0 | JH5: =_xlfn.XLOOKUP(JH$1,LEV[[L/UE.id]:[L/UE.id]],LEV[[NAVN]:[NAVN]],"",0) -> 0 | JI5: =_xlfn.XLOOKUP(JI$1,LEV[[L/UE.id]:[L/UE.id]],LEV[[NAVN]:[NAVN]],"",0) -> 0 | JJ5: =_xlfn.XLOOKUP(JJ$1,LEV[[L/UE.id]:[L/UE.id]],LEV[[NAVN]:[NAVN]],"",0) -> 0
K6: 1 | O6: SUM | U6: =SUM(Tabel5[1]) -> 0 | V6: =SUM(Tabel5[2]) -> 0 | W6: =SUM(Tabel5[3]) -> 0 | X6: =SUM(Tabel5[4]) -> 0 | Y6: =SUM(Tabel5[5]) -> 69950 | Z6: =SUM(Tabel5[6]) -> 0 | AA6: =SUM(Tabel5[7]) -> 0 | AB6: =SUM(Tabel5[8]) -> 0 | AC6: =SUM(Tabel5[9]) -> 577845 | AD6: =SUM(Tabel5[10]) -> 1146970 | AE6: =SUM(Tabel5[11]) -> 0 | AF6: =SUM(Tabel5[12]) -> 659750 | AG6: =SUM(Tabel5[13]) -> 0 | AH6: =SUM(Tabel5[14]) -> 553940 | AI6: =SUM(Tabel5[15]) -> 508750 | AJ6: =SUM(Tabel5[16]) -> 0 | AK6: =SUM(Tabel5[17]) -> 0 | AL6: =SUM(Tabel5[18]) -> 65289 | AM6: =SUM(Tabel5[19]) -> 95674 | AN6: =SUM(Tabel5[20]) -> 0 | AO6: =SUM(Tabel5[21]) -> 0 | AP6: =SUM(Tabel5[22]) -> 144664 | AQ6: =SUM(Tabel5[23]) -> 261300 | AR6: =SUM(Tabel5[24]) -> 0 | AS6: =SUM(Tabel5[25]) -> 0 | AT6: =SUM(Tabel5[26]) -> 0 | AU6: =SUM(Tabel5[27]) -> 0 | AV6: =SUM(Tabel5[28]) -> 0 | AW6: =SUM(Tabel5[29]) -> 0 | AX6: =SUM(Tabel5[30]) -> 0 | AY6: =SUM(Tabel5[31]) -> 0 | AZ6: =SUM(Tabel5[32]) -> 0 | BA6: =SUM(Tabel5[33]) -> 0 | BB6: =SUM(Tabel5[34]) -> 0 | BC6: =SUM(Tabel5[35]) -> 0 | BD6: =SUM(Tabel5[36]) -> 0 | BE6: =SUM(Tabel5[37]) -> 0 | BF6: =SUM(Tabel5[38]) -> 0 | BG6: =SUM(Tabel5[39]) -> 0 | BH6: =SUM(Tabel5[40]) -> 0 | BI6: =SUM(Tabel5[41]) -> 0 | BJ6: =SUM(Tabel5[42]) -> 0 | BK6: =SUM(Tabel5[43]) -> 0 | BL6: =SUM(Tabel5[44]) -> 0 | BM6: =SUM(Tabel5[45]) -> 0 | BN6: =SUM(Tabel5[46]) -> 0 | BO6: =SUM(Tabel5[47]) -> 0 | BP6: =SUM(Tabel5[48]) -> 0 | BQ6: =SUM(Tabel5[49]) -> 0 | BR6: =SUM(Tabel5[50]) -> 0 | BS6: =SUM(Tabel5[51]) -> 0 | BT6: =SUM(Tabel5[52]) -> 0 | BU6: =SUM(Tabel5[53]) -> 0 | BV6: =SUM(Tabel5[54]) -> 0 | BW6: =SUM(Tabel5[55]) -> 0 | BX6: =SUM(Tabel5[56]) -> 0 | BY6: =SUM(Tabel5[57]) -> 0 | BZ6: =SUM(Tabel5[58]) -> 0 | CA6: =SUM(Tabel5[59]) -> 0 | CB6: =SUM(Tabel5[60]) -> 0 | CC6: =SUM(Tabel5[61]) -> 0 | CD6: =SUM(Tabel5[62]) -> 0 | CE6: =SUM(Tabel5[63]) -> 0 | CF6: =SUM(Tabel5[64]) -> 148250 | CG6: =SUM(Tabel5[65]) -> 0 | CH6: =SUM(Tabel5[66]) -> 0 | CI6: =SUM(Tabel5[67]) -> 0 | CJ6: =SUM(Tabel5[68]) -> 0 | CK6: =SUM(Tabel5[69]) -> 103468 | CL6: =SUM(Tabel5[70]) -> 0 | CM6: =SUM(Tabel5[71]) -> 249715 | CN6: =SUM(Tabel5[72]) -> 0 | CO6: =SUM(Tabel5[73]) -> 0 | CP6: =SUM(Tabel5[74]) -> 0 | CQ6: =SUM(Tabel5[75]) -> 0 | CR6: =SUM(Tabel5[76]) -> 0 | CS6: =SUM(Tabel5[77]) -> 0 | CT6: =SUM(Tabel5[78]) -> 0 | CU6: =SUM(Tabel5[79]) -> 0 | CV6: =SUM(Tabel5[80]) -> 0 | CW6: =SUM(Tabel5[81]) -> 0 | CX6: =SUM(Tabel5[82]) -> 0 | CY6: =SUM(Tabel5[83]) -> 214475 | CZ6: =SUM(Tabel5[84]) -> 0 | DA6: =SUM(Tabel5[85]) -> 209400 | DB6: =SUM(Tabel5[86]) -> 0 | DC6: =SUM(Tabel5[87]) -> 0 | DD6: =SUM(Tabel5[88]) -> 0 | DE6: =SUM(Tabel5[89]) -> 0 | DF6: =SUM(Tabel5[90]) -> 0 | DG6: =SUM(Tabel5[91]) -> 254615 | DH6: =SUM(Tabel5[92]) -> 0 | DI6: =SUM(Tabel5[93]) -> 0 | DJ6: =SUM(Tabel5[94]) -> 0 | DK6: =SUM(Tabel5[95]) -> 0 | DL6: =SUM(Tabel5[96]) -> 0 | DM6: =SUM(Tabel5[97]) -> 0 | DN6: =SUM(Tabel5[98]) -> 0 | DO6: =SUM(Tabel5[99]) -> 0 | DP6: =SUM(Tabel5[100]) -> 0 | DQ6: =SUM(Tabel5[101]) -> 0 | DR6: =SUM(Tabel5[102]) -> 0 | DS6: =SUM(Tabel5[103]) -> 0 | DT6: =SUM(Tabel5[104]) -> 0 | DU6: =SUM(Tabel5[105]) -> 0 | DV6: =SUM(Tabel5[106]) -> 0 | DW6: =SUM(Tabel5[107]) -> 0 | DX6: =SUM(Tabel5[108]) -> 321558.5 | DY6: =SUM(Tabel5[109]) -> 0 | DZ6: =SUM(Tabel5[110]) -> 0 | EA6: =SUM(Tabel5[111]) -> 0 | EB6: =SUM(Tabel5[112]) -> 0 | EC6: =SUM(Tabel5[113]) -> 0 | ED6: =SUM(Tabel5[114]) -> 0 | EE6: =SUM(Tabel5[115]) -> 0 | EF6: =SUM(Tabel5[116]) -> 0 | EG6: =SUM(Tabel5[117]) -> 0 | EH6: =SUM(Tabel5[118]) -> 0 | EI6: =SUM(Tabel5[119]) -> 0 | EJ6: =SUM(Tabel5[120]) -> 0 | EK6: =SUM(Tabel5[121]) -> 0 | EL6: =SUM(Tabel5[122]) -> 177746 | EM6: =SUM(Tabel5[123]) -> 0 | EN6: =SUM(Tabel5[124]) -> 0 | EO6: =SUM(Tabel5[125]) -> 0 | EP6: =SUM(Tabel5[126]) -> 158081 | EQ6: =SUM(Tabel5[127]) -> 0 | ER6: =SUM(Tabel5[128]) -> 0 | ES6: =SUM(Tabel5[129]) -> 0 | ET6: =SUM(Tabel5[130]) -> 0 | EU6: =SUM(Tabel5[131]) -> 0 | EV6: =SUM(Tabel5[132]) -> 0 | EW6: =SUM(Tabel5[133]) -> 0 | EX6: =SUM(Tabel5[134]) -> 0 | EY6: =SUM(Tabel5[135]) -> 0 | EZ6: =SUM(Tabel5[136]) -> 0 | FA6: =SUM(Tabel5[137]) -> 0 | FB6: =SUM(Tabel5[138]) -> 0 | FC6: =SUM(Tabel5[139]) -> 0 | FD6: =SUM(Tabel5[140]) -> 0 | FE6: =SUM(Tabel5[141]) -> 0 | FF6: =SUM(Tabel5[142]) -> 0 | FG6: =SUM(Tabel5[143]) -> 0 | FH6: =SUM(Tabel5[144]) -> 1051100 | FI6: =SUM(Tabel5[145]) -> 668260 | FJ6: =SUM(Tabel5[146]) -> 0 | FK6: =SUM(Tabel5[147]) -> 0 | FL6: =SUM(Tabel5[148]) -> 848352.48 | FM6: =SUM(Tabel5[149]) -> 0 | FN6: =SUM(Tabel5[150]) -> 0 | FO6: =SUM(Tabel5[151]) -> 0 | FP6: =SUM(Tabel5[152]) -> 0 | FQ6: =SUM(Tabel5[153]) -> 0 | FR6: =SUM(Tabel5[154]) -> 0 | FS6: =SUM(Tabel5[155]) -> 0 | FT6: =SUM(Tabel5[156]) -> 0 | FU6: =SUM(Tabel5[157]) -> 0 | FV6: =SUM(Tabel5[158]) -> 0 | FW6: =SUM(Tabel5[159]) -> 0 | FX6: =SUM(Tabel5[160]) -> 0 | FY6: =SUM(Tabel5[161]) -> 0 | FZ6: =SUM(Tabel5[162]) -> 0 | GA6: =SUM(Tabel5[163]) -> 0 | GB6: =SUM(Tabel5[164]) -> 0 | GC6: =SUM(Tabel5[165]) -> 0 | GD6: =SUM(Tabel5[166]) -> 0 | GE6: =SUM(Tabel5[167]) -> 0 | GF6: =SUM(Tabel5[168]) -> 0 | GG6: =SUM(Tabel5[169]) -> 0 | GH6: =SUM(Tabel5[170]) -> 0 | GI6: =SUM(Tabel5[171]) -> 0 | GJ6: =SUM(Tabel5[172]) -> 0 | GK6: =SUM(Tabel5[173]) -> 0 | GL6: =SUM(Tabel5[174]) -> 0 | GM6: =SUM(Tabel5[175]) -> 0 | GN6: =SUM(Tabel5[176]) -> 0 | GO6: =SUM(Tabel5[177]) -> 0 | GP6: =SUM(Tabel5[178]) -> 0 | GQ6: =SUM(Tabel5[179]) -> 0 | GR6: =SUM(Tabel5[180]) -> 0 | GS6: =SUM(Tabel5[181]) -> 0 | GT6: =SUM(Tabel5[182]) -> 0 | GU6: =SUM(Tabel5[183]) -> 0 | GV6: =SUM(Tabel5[184]) -> 0 | GW6: =SUM(Tabel5[185]) -> 0 | GX6: =SUM(Tabel5[186]) -> 0 | GY6: =SUM(Tabel5[187]) -> 0 | GZ6: =SUM(Tabel5[188]) -> 0 | HA6: =SUM(Tabel5[189]) -> 0 | HB6: =SUM(Tabel5[190]) -> 0 | HC6: =SUM(Tabel5[191]) -> 0 | HD6: =SUM(Tabel5[192]) -> 0 | HE6: =SUM(Tabel5[193]) -> 0 | HF6: =SUM(Tabel5[194]) -> 0 | HG6: =SUM(Tabel5[195]) -> 0 | HH6: =SUM(Tabel5[196]) -> 0 | HI6: =SUM(Tabel5[197]) -> 0 | HJ6: =SUM(Tabel5[198]) -> 0 | HK6: =SUM(Tabel5[199]) -> 0 | HL6: =SUM(Tabel5[200]) -> 0 | HM6: =SUM(Tabel5[201]) -> 0 | HN6: =SUM(Tabel5[202]) -> 0 | HO6: =SUM(Tabel5[203]) -> 0 | HP6: =SUM(Tabel5[204]) -> 0 | HQ6: =SUM(Tabel5[205]) -> 0 | HR6: =SUM(Tabel5[206]) -> 0 | HS6: =SUM(Tabel5[207]) -> 0 | HT6: =SUM(Tabel5[208]) -> 0 | HU6: =SUM(Tabel5[209]) -> 0 | HV6: =SUM(Tabel5[210]) -> 0 | HW6: =SUM(Tabel5[211]) -> 0 | HX6: =SUM(Tabel5[212]) -> 0 | HY6: =SUM(Tabel5[213]) -> 0 | HZ6: =SUM(Tabel5[214]) -> 0 | IA6: =SUM(Tabel5[215]) -> 0 | IB6: =SUM(Tabel5[216]) -> 0 | IC6: =SUM(Tabel5[217]) -> 0 | ID6: =SUM(Tabel5[218]) -> 0 | IE6: =SUM(Tabel5[219]) -> 0 | IF6: =SUM(Tabel5[220]) -> 0 | IG6: =SUM(Tabel5[221]) -> 0 | IH6: =SUM(Tabel5[222]) -> 0 | II6: =SUM(Tabel5[223]) -> 0 | IJ6: =SUM(Tabel5[224]) -> 0 | IK6: =SUM(Tabel5[225]) -> 0 | IL6: =SUM(Tabel5[226]) -> 0 | IM6: =SUM(Tabel5[227]) -> 0 | IN6: =SUM(Tabel5[228]) -> 0 | IO6: =SUM(Tabel5[229]) -> 0 | IP6: =SUM(Tabel5[230]) -> 0 | IQ6: =SUM(Tabel5[231]) -> 0 | IR6: =SUM(Tabel5[232]) -> 0 | IS6: =SUM(Tabel5[233]) -> 0 | IT6: =SUM(Tabel5[234]) -> 0 | IU6: =SUM(Tabel5[235]) -> 0 | IV6: =SUM(Tabel5[236]) -> 0 | IW6: =SUM(Tabel5[237]) -> 0 | IX6: =SUM(Tabel5[238]) -> 0 | IY6: =SUM(Tabel5[239]) -> 0 | IZ6: =SUM(Tabel5[240]) -> 0 | JA6: =SUM(Tabel5[241]) -> 0 | JB6: =SUM(Tabel5[242]) -> 0 | JC6: =SUM(Tabel5[243]) -> 0 | JD6: =SUM(Tabel5[244]) -> 0 | JE6: =SUM(Tabel5[245]) -> 0 | JF6: =SUM(Tabel5[246]) -> 0 | JG6: =SUM(Tabel5[247]) -> 0 | JH6: =SUM(Tabel5[248]) -> 0 | JI6: =SUM(Tabel5[249]) -> 0 | JJ6: =SUM(Tabel5[250]) -> 0
A7: L/UE.id | B7: Medtag | C7: FAG | D7: NAVN | E7: E-mail | F7: KONTAKTPERSON | G7: TLF | H7: GADE | I7: BY | J7: Bemærkninger | K7: 1 | O7: ID | P7: Pos | Q7: Tekst | R7: Mængde | S7: enh. | T7: FAG | U7: 1 | V7: 2 | W7: 3 | X7: 4 | Y7: 5 | Z7: 6 | AA7: 7 | AB7: 8 | AC7: 9 | AD7: 10 | AE7: 11 | AF7: 12 | AG7: 13 | AH7: 14 | AI7: 15 | AJ7: 16 | AK7: 17 | AL7: 18 | AM7: 19 | AN7: 20 | AO7: 21 | AP7: 22 | AQ7: 23 | AR7: 24 | AS7: 25 | AT7: 26 | AU7: 27 | AV7: 28 | AW7: 29 | AX7: 30 | AY7: 31 | AZ7: 32 | BA7: 33 | BB7: 34 | BC7: 35 | BD7: 36 | BE7: 37 | BF7: 38 | BG7: 39 | BH7: 40 | BI7: 41 | BJ7: 42 | BK7: 43 | BL7: 44 | BM7: 45 | BN7: 46 | BO7: 47 | BP7: 48 | BQ7: 49 | BR7: 50 | BS7: 51 | BT7: 52 | BU7: 53 | BV7: 54 | BW7: 55 | BX7: 56 | BY7: 57 | BZ7: 58 | CA7: 59 | CB7: 60 | CC7: 61 | CD7: 62 | CE7: 63 | CF7: 64 | CG7: 65 | CH7: 66 | CI7: 67 | CJ7: 68 | CK7: 69 | CL7: 70 | CM7: 71 | CN7: 72 | CO7: 73 | CP7: 74 | CQ7: 75 | CR7: 76 | CS7: 77 | CT7: 78 | CU7: 79 | CV7: 80 | CW7: 81 | CX7: 82 | CY7: 83 | CZ7: 84 | DA7: 85 | DB7: 86 | DC7: 87 | DD7: 88 | DE7: 89 | DF7: 90 | DG7: 91 | DH7: 92 | DI7: 93 | DJ7: 94 | DK7: 95 | DL7: 96 | DM7: 97 | DN7: 98 | DO7: 99 | DP7: 100 | DQ7: 101 | DR7: 102 | DS7: 103 | DT7: 104 | DU7: 105 | DV7: 106 | DW7: 107 | DX7: 108 | DY7: 109 | DZ7: 110 | EA7: 111 | EB7: 112 | EC7: 113 | ED7: 114 | EE7: 115 | EF7: 116 | EG7: 117 | EH7: 118 | EI7: 119 | EJ7: 120 | EK7: 121 | EL7: 122 | EM7: 123 | EN7: 124 | EO7: 125 | EP7: 126 | EQ7: 127 | ER7: 128 | ES7: 129 | ET7: 130 | EU7: 131 | EV7: 132 | EW7: 133 | EX7: 134 | EY7: 135 | EZ7: 136 | FA7: 137 | FB7: 138 | FC7: 139 | FD7: 140 | FE7: 141 | FF7: 142 | FG7: 143 | FH7: 144 | FI7: 145 | FJ7: 146 | FK7: 147 | FL7: 148 | FM7: 149 | FN7: 150 | FO7: 151 | FP7: 152 | FQ7: 153 | FR7: 154 | FS7: 155 | FT7: 156 | FU7: 157 | FV7: 158 | FW7: 159 | FX7: 160 | FY7: 161 | FZ7: 162 | GA7: 163 | GB7: 164 | GC7: 165 | GD7: 166 | GE7: 167 | GF7: 168 | GG7: 169 | GH7: 170 | GI7: 171 | GJ7: 172 | GK7: 173 | GL7: 174 | GM7: 175 | GN7: 176 | GO7: 177 | GP7: 178 | GQ7: 179 | GR7: 180 | GS7: 181 | GT7: 182 | GU7: 183 | GV7: 184 | GW7: 185 | GX7: 186 | GY7: 187 | GZ7: 188 | HA7: 189 | HB7: 190 | HC7: 191 | HD7: 192 | HE7: 193 | HF7: 194 | HG7: 195 | HH7: 196 | HI7: 197 | HJ7: 198 | HK7: 199 | HL7: 200 | HM7: 201 | HN7: 202 | HO7: 203 | HP7: 204 | HQ7: 205 | HR7: 206 | HS7: 207 | HT7: 208 | HU7: 209 | HV7: 210 | HW7: 211 | HX7: 212 | HY7: 213 | HZ7: 214 | IA7: 215 | IB7: 216 | IC7: 217 | ID7: 218 | IE7: 219 | IF7: 220 | IG7: 221 | IH7: 222 | II7: 223 | IJ7: 224 | IK7: 225 | IL7: 226 | IM7: 227 | IN7: 228 | IO7: 229 | IP7: 230 | IQ7: 231 | IR7: 232 | IS7: 233 | IT7: 234 | IU7: 235 | IV7: 236 | IW7: 237 | IX7: 238 | IY7: 239 | IZ7: 240 | JA7: 241 | JB7: 242 | JC7: 243 | JD7: 244 | JE7: 245 | JF7: 246 | JG7: 247 | JH7: 248 | JI7: 249 | JJ7: 250
A8: 1 | C8: Affaldssystemer | D8: Joca | E8: joca@joca.dk | K8: 1 | O8: 1 | P8: 3
A9: 2 | C9: Affaldssystemer | D9: Rubæk | E9: sd@rubaek.dk | F9: Steen Drastrup | K9: 1 | O9: 2
A10: 3 | C10: Affaldssystemer | D10: Be-Low | E10: ktl@be-low.dk | F10: Karsten Thier Larsen | K10: 1 | O10: 3 | P10: Pos. Nr. | Q10: Ydelse | R10: Antal | S10: Enhed
A11: 4 | C11: Afstribning | D11: E.J. Vejstriber | E11: ej@ejvej.dk | F11: Erling | G11: 40206979 | H11: Græsmarksvej 18 | I11: 4591 Føllenslev | K11: 1 | O11: 4
A12: 5 | B12: x | C12: Afstribning | D12: LKF Sjælland - Munck | E12: jag@lkf.dk | F12: Jan Grønborg | G12: 30855405 | H12: Toftegårdsvej 18 | I12: 5800 Nyborg | K12: 1 | O12: 5 | P12: 3.1.1 | Q12: Rydningsarbejder - Jord
A13: 6 | B13: x | C13: Afstribning | D13: Eurostar Danmark A/S (SafeRoad) | E13: jod@eurostar.as | F13: Johnny Damm | G13: 58360099 | H13: Tigervej 12-14 | I13: 4600 Køge | K13: 1 | O13: 6 | P13: 3.1.1.1 | Q13: Asfaltbelægninger | R13: 620 | S13: m2 | T13: Asfalt
A14: 7 | C14: Anti graffiti | D14: All Remove Danmark | E14: PL@allremove.dk | G14: 70100707 | K14: 1 | O14: 7 | P14: 3.1.1.2 | Q14: Flisebelægninger | R14: 10 | S14: m2
A15: 8 | B15: x | C15: Asfalt | D15: Georg Jørgensen | E15: asfalt.georg@mail.tele.dk | F15: Georg Jørgensen | G15: 47333790 | H15: Kvinderupvej 17 | I15: 3550 Slangerup | K15: 1 | O15: 8 | P15: 3.1.1.3 | Q15: Grusarealer | R15: 60 | S15: m2
A16: 9 | B16: x | C16: Asfalt | D16: NCC Roads A/S | E16: aal@ncc.dk | F16: André Aabo | G16: 20124272 | H16: Hørkær 8 | I16: 2730 Herlev | K16: 1 | O16: 9 | P16: 3.1.1.4 | Q16: Budskads | R16: 1 | S16: sum
A17: 10 | B17: x | C17: Asfalt | D17: PEAB A/S | E17: karin.l.jorgensen@peabasfalt.dk | F17: Karin L. Jørgensen | G17: 23300798 | H17: Nordhavnsvej 2 | I17: 4600 Køge | K17: 1 | O17: 10 | P17: 3.1.1.5 | Q17: Betonkonstruktioner | R17: 30 | S17: m3
A18: 11 | B18: x | C18: Asfalt | D18: Munck Asfalt A/S | E18: KR@munck.dk | F18: Kim Reggelsen | G18: 22667470 | H18: Lyngageren 63, Svogerslev | I18: 4000 Roskilde | K18: 1 | O18: 11 | P18: 3.1.1.6 | Q18: Kabler | R18: 1 | S18: sum
A19: 12 | B19: x | C19: Asfalt | D19: Asfalt sjakket | E19: jp@asfaltsjakket.dk | F19: Jens Petersen | G19: 21283511 | H19: Sallerup gade 25 | I19: 4750 Lundby | K19: 1 | O19: 12 | P19: 3.1.1.7 | Q19: Kloakledninger og brønde | R19: 1 | S19: sum
A20: 13 | C20: Asfalt | D20: Asfalt specialisterne | E20: Palle@asfaltspecialisterne.com | F20: Palle Andersen | G20: 40480347 | H20: Dyssegårdsvej 87 | I20: 4621 Gadstrup | K20: 1 | O20: 13 | P20: 3.1.1.8 | Q20: Vand - og varmeledninger | R20: 1 | S20: sum
A21: 14 | B21: x | C21: Asfalt | D21: Pankas | E21: salg@pankas.dk | F21: Martin W. Skipper | G21: 45650300 | H21: Rundforbivej 34 | I21: 2950 Vedbæk | K21: 1 | O21: 14 | P21: 3.1.1.9 | Q21: Adgang til byggeplads | R21: 1 | S21: sum
A22: 15 | B22: x | C22: Asfalt | D22: Colas Vejmateriale A/S | E22: TilbudSjaelland@Colas.DK | F22: Niels-Erik Strube | G22: 45989898 | H22: Fabriksparken 34-36 | I22: 2600 Glostrup | K22: 1 | O22: 15 | R22: i alt
A23: 16 | C23: Asfalt/Beton skæring | D23: Total Diamanten | E23: ma@totaldiamanten.dk | F23: Michael Arrild | G23: 43714304 | H23: Guldalderen 9 | I23: 2640 Taastrup | K23: 1 | O23: 16
A24: 17 | C24: Belægning | D24: Farum Beton | E24: info@farumbeton.dk | F24: Farum beton | G24: 44951544 | H24: Bygmarken 24 | I24: 3520 Farum | K24: 1 | O24: 17 | P24: 3.1.2 | Q24: Udgravning - Jord
A25: 18 | B25: x | C25: Belægning | D25: Gammelrand | E25: Info@Gammelrand.dk | F25: Gammelrand | G25: 59280100 | H25: Gl. Skovvej 6A | I25: 4470 Svebølle | K25: 1 | O25: 18 | P25: 3.1.2.1 | Q25: Bygning 6 - udgravning | R25: 750 | S25: m3
A26: 19 | B26: x | C26: Belægning | D26: IBF Betonvarer | E26: Ordre22@ibf.dk | F26: IBF | G26: 46757788 | K26: 1 | O26: 19 | P26: 3.1.2.2 | Q26: Bygning 6 - bortkørsel af jord inkl. fra ledninger | R26: 1000 | S26: m3
A27: 20 | C27: Beton elementer | D27: Byggebjerg Beton A/S | E27: mail@byggebjerg.dk | G27: 74833420 | K27: 1 | O27: 20 | P27: 3.1.2.3 | Q27: Bygning 3 - udgravning | R27: 60 | S27: m3
A28: 21 | C28: Beton elementer | D28: Århus Cementvarefabrik | E28: ppl@aarhuscementvarefabrik.dk | F28: Per | G28: 83221233 | K28: 1 | O28: 21 | P28: 3.1.2.4 | Q28: Bygning 3 - bortkørsel af jord inkl. fra ledninger | R28: 60 | S28: m3
A29: 22 | B29: x | C29: Beton Entreprenør | D29: Tscherning | E29: amb@tscherning.dk | F29: Anders Mølgaard Berntsen | G29: 71727711 | K29: 1 | O29: 22 | P29: 3.1.2.5 | Q29: Terrænregulering og belægninger - udgravning | R29: 750 | S29: m3
A30: 23 | B30: x | C30: Beton Entreprenør | D30: K. Freitag | E30: jens@freitag.dk | F30: Knud -, Poul -, Jens Fritag | G30: 56508090 | H30: Langemarksvej 2 | I30: 4660 St. Heddinge | K30: 1 | O30: 23 | P30: 3.1.2.6 | Q30: Terrænregulering og belægninger - bortkørsel af jord | R30: 750 | S30: m3
A31: 24 | B31: x | C31: Beton Entreprenør | D31: ConcreteHead | E31: Info@concretehead.dk | F31: Martin Andersen | G31: 31907808 | H31: Agervang 6 | I31: Kirke Hyllinge | K31: 1 | O31: 24 | P31: 3.1.2.7 | Q31: Screening for ammmunition | R31: 1 | S31: sum
A32: 25 | C32: Beton Entreprenør | D32: KW beton teknik | E32: kw@kw-betonteknik.dk | F32: Kasper W. | G32: 29483275 | K32: 1 | O32: 25 | P32: 3.1.2.8 | Q32: Geoteknisk kontrol | R32: 1 | S32: sum
A33: 26 | C33: Brolægger | D33: FA Brolægning | E33: f.a.brolaegning@gmail.com | F33: Freddy Andersen | G33: 21492028 | K33: 1 | O33: 26
A34: 27 | C34: Brolægger | D34: DT Brolægning | E34: dt@dt-bro.dk | F34: Dennis Thun | G34: 60736797 | K34: 1 | O34: 27 | P34: 3.2.1 | Q34: Udgravning - Jordarbejder for ledninger
A35: 28 | C35: Brolægger | K35: 1 | O35: 28 | P35: 3.2.1.1 | Q35: Brønde, kloak- og drænledninger | R35: 950 | S35: m3
A36: 29 | C36: Brolægger | D36: Brix Brolægning | E36: Brix2brolaegning@gmail.com | F36: Tom Brix | G36: 25127217 | H36: Hvidtjærnevej 11 | I36: 3300 Frederiksværk | K36: 1 | O36: 29 | P36: 3.2.1.2 | Q36: Varme- og vandledninger | R36: 60 | S36: m3
A37: 30 | C37: Brolægger | D37: P.P. Brolægning A/S | E37: ppbro@ppbro.dk | F37: Kasper Thomsen | G37: 46770770 | H37: Sønder Mellemvej 41, Postboks 129 | I37: 4000 Roskilde | K37: 1 | O37: 30 | P37: 3.2.1.3 | Q37: Varme- og vandledninger - afdækning aht. Brandvej | R37: 1 | S37: sum
A38: 31 | C38: Brolægger | D38: Byagers Brolægning | E38: info@byagersbrolaegning.dk | F38: Jenki Byager | G38: 50458242 | H38: Parkvej 24 | I38: 4773 Stensved | K38: 1 | O38: 31 | P38: 3.2.1.4 | Q38: EL, svagstrøm, kabeltrækrør og kabelbrønde | R38: 360 | S38: m3
A39: 32 | C39: Brolægger | D39: Landskab & Brolægning | E39: mr@landogbro.dk | F39: Martin Rasmussen | G39: 20704072 | H39: Ryttervænget 22 | I39: 4700 Næstved | K39: 1 | O39: 32 | P39: 3.2.1.5 | Q39: EL, svagstrøm, kabeltrækrør og kabelbrønde - afdækning aht. Brandvej | R39: 1 | S39: sum
A40: 33 | C40: Brolægger | D40: Dybdal brolægning | E40: mads@dybdalbro.dk | F40: Mads Dybdal | G40: 26277603 | H40: Leif Panduros Vej 49 | I40: 4700 Næstved | K40: 1 | O40: 33 | P40: 3.2.1.6 | Q40: Byggeplads | R40: 1 | S40: sum
A41: 34 | C41: Brolægger | D41: Wurtz Brolægning | E41: tilbud@wurtz.as | G41: 20716399 | H41: Industrivej 57 | I41: 4683 Rønnede | K41: 1 | O41: 34 | R41: i alt
A42: 35 | C42: Brolægger | D42: T.O.Brolægning | E42: jaamaan@msn.com | F42: Theis Olsen | G42: 29460215 | H42: Bjælkerupvej 95 | I42: 4660 Store Heddinge | K42: 1 | O42: 35
A43: 36 | C43: Diamant boring | D43: Danboring A/S | E43: info@danboring.dk | G43: 86884155 | K43: 1 | O43: 36 | P43: 3.1.3 | Q43: Tørholdelse - Jord
A44: 37 | C44: Diamant boring | D44: Brandt Diamant | E44: post@brandtdiamant.dk | G44: 57673383 | K44: 1 | O44: 37 | P44: 3.1.3.1 | Q44: Interimsdræn og pumpesumpe | R44: 1 | S44: sum
A45: 38 | C45: El - Signal anlæg | D45: SWARCO TRAFIK A/S | E45: ib.ragborg@swarco.COM | F45: Ib Ragborg | G45: 36888888 | H45: Tonsbakken 16-18 | I45: 2740 Skovlunde | K45: 1 | O45: 38 | P45: 3.2.2 | Q45: Tørholdelse - Jordarbejder for ledninger
A46: 39 | C46: El - Signal anlæg | D46: ITS Teknik (Dansk Trafik Teknik / Olsen Engineering) | E46: salg@its-teknik.dk | G46: 46757227 | H46: Københavnsvej 265 | I46: 4000 Roskilde | K46: 1 | O46: 39 | P46: 3.2.2.1 | Q46: Brønde, kloak og dræn | R46: 1 | S46: sum
A47: 40 | C47: El-arbejder | D47: Kaels El | E47: ck@kaels.dk | K47: 1 | O47: 40 | P47: 3.2.2.2 | Q47: Vand - og varmeledninger | R47: 1 | S47: sum
A48: 41 | B48: x | C48: El-arbejder | D48: HH Installation ApS | E48: henrik@hh-installation.dk | F48: Henrik | G48: 58501218 | K48: 1 | O48: 41 | P48: 3.2.2.3 | Q48: EL, svagstrøm, trækrør inkl. kabelbrønde | R48: 1 | S48: sum
A49: 42 | B49: x | C49: El-arbejder | D49: Dansk sportbelysning | E49: info@dansksportsbelysning.dk | K49: 1 | O49: 42 | P49: 3.2.2.4 | Q49: Sugespidsanlæg | R49: 1 | S49: sum | T49: Tørholdelse
A50: 43 | C50: El-arbejder | D50: Filtenborg El | E50: mail@filtenborgel.dk | K50: 1 | O50: 43 | R50: i alt
A51: 44 | C51: El-arbejder | D51: Axeltoft El | E51: mb@axeltoft.dk | K51: 1 | O51: 44
A52: 45 | C52: El-arbejder | D52: Nordens El | E52: INFO@NORDENS-INSTALLATION.DK | K52: 1 | O52: 45 | P52: 3.1.4 | Q52: Til- og påfyldning - Jord
A53: 46 | C53: El-arbejder | D53: Citytech | E53: adm@citytech.dk | K53: 1 | O53: 46 | P53: 3.1.4.1 | Q53: Udgravning for bygning 6 - alm. Til- og påfyldning | R53: 250 | S53: m3
A54: 47 | B54: x | C54: Entreprenør | D54: MJ Eriksson | E54: bie@mjeriksson.dk | K54: 1 | O54: 47 | P54: 3.1.4.2 | Q54: Udgravning for bygning 6 - 4-8 mm perlesten | R54: 75 | S54: m3
A55: 48 | B55: x | C55: Entreprenør | D55: Hollbøll | E55: tilbud@holboell.dk | K55: 1 | O55: 48 | P55: 3.1.4.3 | Q55: Udgravning i bygning 3 - alm. Til-og påfyldning | R55: 25 | S55: m3
A56: 49 | B56: x | C56: Entreprenør | D56: Barslund | E56: sja@barslund.as | K56: 1 | O56: 49 | P56: 3.1.4.4 | Q56: Udgravning i bygning 3 - 4-8 mm perlesten | R56: 20 | S56: m3
A57: 50 | C57: Entreprenør | D57: MSE | E57: JL@mse.dk | K57: 1 | O57: 50 | P57: 3.1.4.5 | Q57: Udgravning for terrænregulering og belægninger | R57: 150 | S57: m3
A58: 51 | C58: Entreprenør | D58: Benny Petersen | E58: mab@bennypetersen.dk | K58: 1 | O58: 51 | P58: 3.1.4.6 | Q58: Underbygning for belægninger | R58: 1500 | S58: m2
A59: 52 | C59: FJ analyser | D59: Jordkonsulenterne | E59: info@jordkonsulenterne.dk | F59: Peter Nørgaard | G59: 50293679 | H59: Blidahlund 2 - 1. sal | I59: 2929 Charlottenlund | K59: 1 | O59: 52 | P59: 3.1.4.7 | Q59: Udlægning af muld | R59: 50 | S59: m2
A60: 53 | C60: FJ analyser | D60: Jord - Miljø A/S | E60: jordmil@jordmil.dk | F60: Søren Vincents, Ole Stang, Anders Søvsø | G60: 35820402 | H60: Eremitageparken 341 | I60: 2800 Kgs. Lyngby | K60: 1 | O60: 53
A61: 54 | C61: Flagstænger | D61: VM Flag og Stænger A/S | E61: vm-flag@vm-flag.dk | G61: 76600500 | K61: 1 | O61: 54 | P61: 3.2.3 | Q61: Til- og påfyldning - Jordarbejder for ledninger
A62: 55 | C62: flisefødder | D62: Soprema | E62: vdideriksen@soprema.dk | G62: 56144020 | K62: 1 | O62: 55 | P62: 3.2.3.1 | Q62: Brønde, kloak og dræn | R62: 800 | S62: m3
A63: 56 | C63: Granitleverance | D63: Høchendorff Skifer & Granit Aps | E63: BO@Hochendorff.dk | F63: Bo Høchendorff | G63: 25746797 | H63: Søholmparken 15 | I63: 4200 Slagelse | K63: 1 | O63: 56 | P63: 3.2.3.2 | Q63: Vand- og varmeledninger | R63: 55 | S63: m3
A64: 57 | C64: Granitleverance | D64: Zurface | E64: hly@zurface.dk | F64: Henrik Lykke | G64: 70101066 | H64: Vindmøllevej 45 | I64: 2300 København S | K64: 1 | O64: 57 | P64: 3.2.3.3 | Q64: EL, svagstrøm, trækrør inkl. kabelbrønde | R64: 100 | S64: m3
A65: 58 | C65: Granitleverance | D65: Bent Vangsø Natursten | E65: info@vangsoe.dk | F65: Bent Vangsø | G65: 70201822 | H65: Fynsvej 8 | I65: 5500 Middelfart | K65: 1 | O65: 58 | P65: 3.2.3.4 | Q65: Underbygning for belægninger | R65: 350 | S65: m2
A66: 59 | C66: Grundvandsænkning | D66: Per Aarsleff | E66: mbon@aarsleff.com | F66: Mikkel B. Nielsen | G66: 2026 3561 | K66: 1 | O66: 59 | P66: 3.2.3.5 | Q66: Asfaltbelægning | R66: 300 | S66: m2 | T66: Asfalt | AC66: 17400 | AD66: 22500 | AF66: 15000 | AH66: 10500 | AI66: 15000
A67: 60 | C67: Hegnsarbejder | D67: PileByg A/S | E67: info@pilebyg.dk | G67: 98962071 | K67: 1 | O67: 60 | P67: 3.2.3.6 | Q67: Rød asfalt | R67: 24 | S67: m2 | T67: Asfalt | AC67: 6720 | AD67: 6000 | AF67: 3000 | AH67: 840 | AI67: 1200
A68: 61 | C68: Hegnsarbejder | D68: Kibo Sjælland | E68: ca@kibo-system.dk | F68: Kristian Andersen | G68: 20537391 | H68: Salbjergvej 37 | I68: 4632 Havdrup | K68: 1 | O68: 61 | P68: 3.2.3.7 | Q68: Termoplastcirkler | R68: 1 | S68: sum | T68: Termoplast
A69: 62 | C69: Hegnsarbejder | D69: Poda Hegn | E69: entreprise@podahegn.dk | F69: Klaus Fuglsang | G69: 46340101 | H69: Øde Hastrupvej 65 | I69: 4000 Roskilde | K69: 1 | O69: 62 | P69: 3.2.3.8 | Q69: Grusarealer på p-plads | R69: 60 | S69: m2
A70: 63 | C70: Hegnsarbejder | D70: Trådvarerfabrikken ISHØJ | E70: mb@ishoj-hegn.dk | F70: Michael Bjørn | G70: 43732233 | H70: Industrivangen 2-4 | I70: 2635 Ishøj | K70: 1 | O70: 63 | P70: 3.2.3.9 | Q70: Reetablering af byggepladsadgang - Ørestads Boulevard | R70: 1 | S70: sum
A71: 64 | B71: x | C71: Beton Entreprenør | D71: KantDesign | E71: info@kantdesign.dk | F71: Kim Petersen | G71: 60807010 | K71: 1 | O71: 64 | P71: 3.2.3.10 | Q71: Reetablering af byggepladsadgang - Artillerivej | R71: 1 | S71: sum
A72: 65 | C72: Jordankre, Sekantpæle | D72: Per Aarsleff A/S | E72: kbj@aarsleff.com | F72: Karsten Johannessen | G72: 87442519 | H72: Industriholmen 2 | I72: 2650 Hvidovre | K72: 1 | O72: 65 | R72: i alt
A73: 66 | C73: Jordrens og deponi | D73: Norrecco A/S | E73: peter@norrecco.dk | F73: Peter Arevad, Morten Friis, Henrik Jacobsen | G73: 70252532 | H73: K-Vej 19, Prøvestenen | I73: 2300 København S | K73: 1 | O73: 66
A74: 67 | C74: Klinker | D74: Steffen Sten ApS | E74: info@steffensten.dk | F74: Michael | G74: 65916430 | K74: 1 | O74: 67 | P74: 3.1.5 | Q74: Afstivning og indfatning - jord
A75: 68 | C75: Klinker | D75: Klinker Outdoor | E75: info@klinker-outdoor.dk | F75: Anne Marie Harris | G75: 70605580 | H75: Kronborg 2A | I75: 3000 Helsingør | K75: 1 | O75: 68 | P75: 3.1.5.1 | Q75: Midlertidig indfatningsvægge ved bygning 6 | R75: 1 | S75: sum | T75: Spuns
A76: 69 | B76: x | C76: Kloak Beton | D76: Gammelrand Beton I/S | E76: info@gammelrand.dk | F76: Gammelrand Beton | G76: 59280100 | H76: Gl.Skovvej 6a | I76: 4470 Svebølle | K76: 1 | O76: 69 | P76: 3.1.5.2 | Q76: Midlertidig indfatningsvægge ved bygning 3 | R76: 1 | S76: sum | T76: spuns
A77: 70 | B77: x | C77: Kloak Beton | D77: IBF | E77: ordre16@ibf.dk | F77: Svend Aage Bladt | G77: 20242764 | H77: Stegshavevej 30, Lysholt Allé 4 | I77: 5750 Ringe 7430 Ikast | K77: 1 | O77: 70
A78: 71 | B78: x | C78: Kloak Plast | D78: Nyrup Plast A/S | E78: tilbud@nyrupplast.dk | F78: Rasmus Nielsen | G78: 53728790 | H78: Kannikevej 1 | I78: 4296 Nyrup | K78: 1 | O78: 71 | P78: 3.2.4 | Q78: Afstivning og indfatning - jordarbejder for ledninger
A79: 72 | B79: x | C79: Kloak Plast | D79: Lønhart | E79: mkj@lonhart.dk | F79: Michael Klitgaard Jensen | G79: 44947722 | K79: 1 | O79: 72 | P79: 3.2.4.1 | Q79: Brønde, kloak og dræn | R79: 1 | S79: sum
A80: 73 | B80: x | C80: Kloak Plast | D80: Scanpipe | E80: tilbud@scanpipe.dk | F80: Simon Christensen | G80: 63763074 | H80: Greve Main 31 | I80: 2670 Greve | K80: 1 | O80: 73 | P80: 3.2.4.2 | Q80: Vand - og varmeledninger | R80: 1 | S80: sum
A81: 74 | C81: Kunstgræs | D81: Nordisk Kunstgræs Import ApS | E81: salg@HVAX.com | G81: 66185046 | K81: 1 | O81: 74 | P81: 3.2.4.3 | Q81: EL, svagstrøm, trækrør og kabelbrønde | R81: 1 | S81: sum
A82: 75 | C82: Kunstgræs | D82: Citylawn | E82: te@citylawn.dk | F82: Thies Elkjær | G82: 20705083 | K82: 1 | O82: 75 | R82: i alt
A83: 76 | C83: Kunstgræs | D83: Evergreen Sport | E83: mir@evergreensport.dk | F83: Michael L. Ravn | G83: 25529100 | H83: Kokkedal Industripark 2A | I83: 2980 Kokkedal | K83: 1 | O83: 76
A84: 77 | C84: Kunstgræs | D84: Laiderz | E84: Trine@laiderz.dk | F84: Trine Laiderz | G84: 41296143 | H84: Fuglebækvej 2A, 1.th | I84: 2770 Tårnby | K84: 1 | O84: 77
A85: 78 | C85: Kunstgræs | D85: TF Sport | E85: henrik@tfsport-fritid.dk | F85: Henrik Hvistendahl | K85: 1 | O85: 78 | P85: 3 | Q85: Jord, faste ydelser | S85: I alt overføres til samleside
A86: 79 | C86: Kunstgræs | D86: FiveStar grass, Holland | E86: tiemen.boes@fivestargrass.nl | K86: 1 | O86: 79
A87: 80 | C87: Kunstgræs | D87: WGS | E87: martin@wgs.dk | F87: Martin Høeg | K87: 1 | O87: 80
A88: 81 | C88: Kunstgræs | D88: Unisport | E88: jan.lyngemark@unisport.com | K88: 1 | O88: 81 | P88: 3.A | Q88: Variable ydelser
A89: 82 | C89: Kunstgræs | D89: Sport performance | E89: info@sportperformance.dk | F89: Carsten Nielsen | K89: 1 | O89: 82 | P89: 3.A.1 | Q89: Bortkørsel af klasse 4 jord | R89: 50 | S89: m3
A90: 83 | B90: x | C90: Lege udstyr | D90: Maxplay | E90: sm@maxplay.dk | F90: Søren Mittag | G90: 30 30 08 16 | K90: 1 | O90: 83 | P90: 3.A.2 | Q90: Sortering af jord for byggeaffald | R90: 50 | S90: m3
A91: 84 | C91: Lege udstyr | D91: Tress | E91: mea@TRESS.DK | F91: Martin Andersen | G91: 40626736 | K91: 1 | O91: 84
A92: 85 | B92: x | C92: Lege udstyr | D92: Hags | E92: pp@hags.dk | F92: Peter Poulsen | G92: 2054 2080 | K92: 1 | O92: 85 | P92: 3.A | Q92: Jord, variable ydelser | S92: I alt overføres til samleside
A93: 86 | C93: Lege udstyr | D93: Uniqa A/S | E93: info@uniqa.dk | G93: 70215090 | K93: 1 | O93: 86
A94: 87 | C94: Lege udstyr | D94: Uno Koncept A/S | E94: info@uno.dk | G94: 70206070 | K94: 1 | O94: 87
A95: 88 | C95: Lege udstyr | D95: Kompan | E95: JeaDuu@Kompan.com | F95: Jeanette Duus | G95: 22743796 | K95: 1 | O95: 88
A96: 89 | C96: Lege udstyr | D96: Lars Laj | E96: larslaj@larslaj.dk | G96: 32821033 | K96: 1 | O96: 89
A97: 90 | C97: Lege udstyr | D97: Lekolar A/S | E97: Lonnie.Nordstedt@lekolar.dk | G97: 70206080 | K97: 1 | O97: 90
A98: 91 | B98: x | C98: Lege udstyr | D98: Cado A/S | E98: mail@cado.dk | G98: 70222628 | K98: 1 | O98: 91 | P98: 20
A99: 92 | B99: x | C99: Lege udstyr | D99: Elverdal | E99: smilla@elverdal.dk | F99: Smilla Thorsager | G99: 60910142 | K99: 1 | O99: 92
A100: 93 | B100: x | C100: Lege udstyr | D100: Copla legepladser | E100: jesper@copla.dk | F100: Jesper Tornefeldt | G100: 20601737 | K100: 1 | O100: 93 | P100: Pos. Nr. | Q100: Ydelse | R100: Antal | S100: Enhed
A101: 94 | C101: Lege udstyr | D101: Danske natur legepladser | E101: salg@samm-sall.dk | K101: 1 | O101: 94
A102: 95 | C102: Let vægt fyld | D102: Dansk Celleglas | E102: info@danskcelleglas.dk | F102: Henrik Dalsø | G102: 23986849 | K102: 1 | O102: 95 | P102: 20.1 | Q102: Regn- og spildevandsledninger | T102: KloakPP
A103: 96 | C103: Maskinlægning | D103: Mads Boye | E103: madsboye@mail.dk | G103: 40195733 | K103: 1 | O103: 96 | P103: 20.1.1 | Q103: Spildevand bygning 1 - ø110/160 PP inkl. opstropning | R103: 1 | S103: sum | T103: KloakPP | CM103: 1120
A104: 97 | C104: Murer | D104: Murermester A. Holst | E104: a.holst@post.tele.dk | G104: 58268586 | K104: 1 | O104: 97 | P104: 20.1.2 | Q104: Spildevand bygning 3 - ø110/160 PP inkl. opstropning | R104: 60 | S104: m | T104: KloakPP | CM104: 2220
A105: 98 | C105: Murer | D105: Thomas Espenhain Murermester | E105: thomas_espenhain@hotmail.com | G105: 56507153 | K105: 1 | O105: 98 | P105: 20.1.3 | Q105: Spildevand bygning 3 - Tilslutning til eksisterende kloak | R105: 6 | S105: stk | T105: KloakPP | CM105: 550
A106: 99 | C106: Murer | D106: Christian Hansen | E106: bm@christian-hansen.dk | F106: Brian Mostel | K106: 1 | O106: 99 | P106: 20.1.4 | Q106: Spildevand bygning 5 - partliner | R106: 2 | S106: stk | T106: KloakPP | CM106: 630
A107: 100 | C107: Nedbrydning | D107: LH Hokkerup A/S | E107: JDL@Hockerup.dk | F107: Jakob Darling lavard | G107: 46365760 | H107: Rønøs allé 4 | I107: 4000 Roskilde | K107: 1 | O107: 100 | P107: 20.1.5 | Q107: Spildevand bygning 5 - tilstøbning | R107: 1 | S107: sum | T107: KloakPP | CM107: 630
A108: 101 | C108: Nedbrydning | D108: Georg Tscherning A/S | E108: kb@nedrivning.dk | F108: Klaus Bodilsen | G108: 70207050 | H108: Guldalderen 32, Fløng | I108: 2640 Hedehusene | K108: 1 | O108: 101 | P108: 20.1.6 | T108: KloakPP
A109: 102 | C109: Nedbrydning | D109: Weisleder Nedrivning A/S | E109: firma@weisleder.dk | G109: 58545605 | K109: 1 | O109: 102 | P109: 20.1.7 | Q109: Regn- og spildevandskloak fra bygning 6 | T109: KloakPP
A110: 103 | C110: Nedbrydning | D110: Midtsjællands Nedbrydning | E110: tc@nedbrydning.dk | G110: 57801648 | K110: 1 | O110: 103 | P110: 20.1.8 | Q110: ø110/160 PP | R110: 210 | S110: m | T110: KloakPP | CM110: 11690
A111: 104 | B111: x | C111: planter | D111: Holdens Planteskole A/S | E111: mail@holden.dk | G111: 75364099 | K111: 1 | O111: 104 | P111: 20.1.9 | Q111: ø200 PP | R111: 30 | S111: m | T111: KloakPP | CM111: 1990
A112: 105 | B112: x | C112: planter | D112: Birkholm Planteskole | E112: om@birk-holm.dk | F112: Ove | G112: 48173126 | K112: 1 | O112: 105 | P112: 20.1.10 | Q112: ø300 PP | R112: 6 | S112: m | T112: KloakPP | CM112: 1018
A113: 106 | B113: x | C113: planter | D113: Danplanex | E113: jl@danplanex.dk | F113: Jan Larsen | K113: 1 | O113: 106 | P113: 20.1.11 | Q113: ø600 Bt | R113: 56 | S113: m | T113: KloakPP
A114: 107 | B114: x | C114: planter | D114: Proplant | E114: info@proplant.dk | F114: Henrik Thomsen | G114: 93942121 | K114: 1 | O114: 107 | P114: 20.1.12 | Q114: Opstropning af kloak under gulve | R114: 210 | S114: stk | T114: KloakPP | CM114: 6352
A115: 108 | B115: x | C115: Pleje | D115: OKN DRIFT | E115: kaa@oknygaard.dk | K115: 1 | O115: 108 | P115: 20.1.13 | Q115: Omlægning af regnvandskloak i skolegård | R115: 1 | S115: sum | T115: KloakPP
A116: 109 | B116: x | C116: Ramning, pæle, spuns | D116: M.J.Eriksson A/S | E116: boa@mjeriksson.dk | F116: Bo Amundsen | G116: 43730421 | H116: Gl. Køge Landevej 773 | I116: 2660 Brøndby str. | K116: 1 | O116: 109 | P116: 20.1.14 | Q116: TV-inspektion, brøndrapporter og indmåling | R116: 1 | S116: sum | T116: KloakPP
A117: 110 | B117: x | C117: Ramning, pæle, spuns | D117: Per Aarsleff A/S | E117: jeho@aarsleff.com | F117: Jesper Hollensen | G117: 20263588 | H117: Industriholmen 2 | I117: 2650 Hvidovre | K117: 1 | O117: 110 | P117: 20.1.15 | Q117: "kloak som udført" | R117: 1 | S117: sum | T117: KloakPP
A118: 111 | B118: x | C118: Ramning, pæle, spuns | D118: NCC / Hercules Fundering | E118: madkoc@hercules.dk | F118: Mads Kock | G118: 61965864 | H118: Tobaksvejen 2A | I118: 2860 Søborg | K118: 1 | O118: 111 | P118: 20.1.16 | Q118: DV materiale | R118: 1 | S118: sum | T118: KloakPP
A119: 112 | C119: Riste | D119: Semitech A/S | E119: cph@semitech.dk | F119: Camilla Hansen | G119: 58302028 | K119: 1 | O119: 112 | R119: i alt
A120: 113 | C120: Riste | D120: Elefantriste A/S | E120: mail@elefantriste.com | G120: 97426133 | K120: 1 | O120: 113
A121: 114 | C121: Rydning | D121: HedeDanmark | E121: tilbud@hededanmark.dk | F121: - | G121: 21209775 | H121: Smedetoften 4 | I121: 3600 Frederikssund | K121: 1 | O121: 114 | P121: 20.2 | Q121: Brønde og afløb | T121: KloakPP
A122: 115 | C122: Saltværn | D122: Aarup Saltværn | E122: mail@naturvare.dk | G122: 40622120 | K122: 1 | O122: 115 | P122: 20.2.1 | Q122: ø315 nedløbsbrønde / tagbrønde inkl. dæksel/rist | R122: 12 | S122: stk | T122: KloakPP | CM122: 18426
A123: 116 | C123: Skilte | D123: Trafikprodukter | E123: info@trafikprodukter.dk | G123: 59302424 | K123: 1 | O123: 116 | P123: 20.2.2 | Q123: ø425 sandfangsbrønde inkl. dæksel/rist | R123: 4 | S123: stk | T123: KloakPP | CM123: 9835
A124: 117 | C124: Skilte | D124: SafeRoad - (Daluiso) | E124: Tilbud@daluiso.dk | F124: Kim Madsen <kim.madsen@saferoad.dk> | G124: 33261742 | H124: Tigervej 12-14 | I124: 4600 Køge | K124: 1 | O124: 117 | P124: 20.2.3 | Q124: ø600 spulebrønd inkl. dæksel | R124: 8 | S124: stk | T124: KloakPP | CM124: 34451
A125: 118 | C125: Special prod. | D125: Byggros | E125: Info@byggros.dk | F125: Byggros | G125: 59489000 | H125: Springstrup 11 | I125: 4300 Holbæk | K125: 1 | O125: 118 | P125: 20.2.4 | Q125: ø1250 nedgangsbrønd inkl. dæksel | R125: 4 | S125: stk | T125: KloakBB | CK125: 103468
A126: 119 | C126: Strømpeforing | D126: Peter Meyer A/S, Entreprenør | E126: peter@meyer-as.dk | G126: 56562038 | K126: 1 | O126: 119 | P126: 20.2.5 | Q126: Prøveudtagningsbrønd inkl. dæksel | R126: 1 | S126: stk | T126: KloakPP | CM126: 3328
A127: 120 | C127: Strømpeforing | D127: Per Aarsleff | E127: tik@aarsleff.com | F127: Tim Krarup | G127: 20263453 | K127: 1 | O127: 120 | P127: 20.2.6 | Q127: Tilslutninger til eksisterende brønde / kloak | R127: 10 | S127: stk | T127: KloakPP
A128: 121 | C128: Styret underboring | D128: Danboring A/S | E128: info@danboring.dk | F128: Adm. Dir. Thorbjørn Risgaard | G128: 86884155 | H128: Teglgårdsvej 4 | I128: 8620 Kjellerup | K128: 1 | O128: 121 | P128: 20.2.7 | Q128: Sokkelaffugter inkl afløb til regnvandskloak | R128: 77 | S128: m | T128: KloakPP | CM128: 27776
A129: 122 | B129: x | C129: Stål - Smed | D129: Mian Steel | E129: miansteel@aol.dk | F129: Michael Petersen | G129: 24627447 | K129: 1 | O129: 122 | P129: 20.2.8 | Q129: Skraberiste inkl afløb til regnvandskloak | R129: 5 | S129: stk | T129: KloakPP | CM129: 1215
A130: 123 | C130: Stål - Smed | D130: JQ stålmontage | E130: pb@jq-staalmontage.dk> | F130: Poul Børge Pedersen | G130: 40204558 | H130: Værkstedsvej 17 | I130: 4600 Næstved | K130: 1 | O130: 123 | P130: 20.2.9 | Q130: Fedtudskiller inkl. dæksel | R130: 1 | S130: stk | T130: KloakPP | CM130: 25751
A131: 124 | B131: x | C131: Stål - Smed | D131: Martlev Structural Design | E131: Dm@martlev.dk | F131: Dennis Martlev | G131: 40144745 | H131: Valsømaglevej 7 | I131: 4100 Ringsted | K131: 1 | O131: 124 | R131: i alt
A132: 125 | C132: Sugespids | D132: Aarsleff | E132: Morten Nederlund <mne@aarsleff.com> | G132: 2026 3503 | K132: 1 | O132: 125
A133: 126 | B133: x | C133: Terræn inventar | D133: Hitsa-Hejls | E133: hitsa@hitsa.dk | G133: 75574155 | K133: 1 | O133: 126 | P133: 20.3 | Q133: Drænledninger | T133: KloakPP
A134: 127 | B134: x | C134: Terræn inventar | D134: Inventarrum A/S | E134: info@inventarrum.dk | G134: 75564700 | K134: 1 | O134: 127 | P134: 20.3.1 | Q134: Ø150/170 drænledninger | R134: 260 | S134: m | T134: KloakPP | CM134: 5687
A135: 128 | C135: Terræn inventar | D135: Out-sider A/S | E135: info@out-sider.dk | G135: 22617420 | K135: 1 | O135: 128 | P135: 20.3.2 | Q135: Tilslutning til eksisterende drænledninger | R135: 4 | S135: stk | T135: KloakPP | CM135: 361
A136: 129 | C136: Terræn inventar | D136: Park-Udstyr.dk | E136: info@park-udstyr.dk | G136: 31969551 | K136: 1 | O136: 129 | P136: 20.3.3 | Q136: Gennemføringer i fundamenter | R136: 15 | S136: stk | T136: KloakPP | CM136: 1728
A137: 130 | C137: Terræn inventar | D137: Træningspavillonen ApS | E137: info@trainingPavilion.com | G137: 51208010 | K137: 1 | O137: 130 | P137: 20.3.4 | Q137: ø315 rensebrønde inkl. sandfang | R137: 6 | S137: stk | T137: KloakPP | CM137: 9851
A138: 131 | B138: x | C138: Terræn inventar | D138: Urban Elements ApS | E138: info@urban-elements.dk | G138: 48288099 | K138: 1 | O138: 131 | R138: i alt
A139: 132 | C139: Terræn inventar | D139: Veksø-Taulov A/S | E139: info@vekso.com | G139: 79212200 | K139: 1 | O139: 132
A140: 133 | C140: Terræn inventar | D140: Vestre AB | E140: info@vestre.se | G140: 46560688877 | K140: 1 | O140: 133 | P140: 20.4 | Q140: Gulvafløb og fodbøjninger | T140: KloakPP
A141: 134 | C141: Terræn inventar | D141: Mastellone | E141: m@mastellone.dk | G141: 38285853 | K141: 1 | O141: 134 | P141: 20.4.1 | Q141: 145x145 gulvafløb | R141: 5 | S141: stk | T141: KloakPP | CM141: 2010
A142: 135 | C142: Terræn inventar | D142: GH Form ApS | E142: mail@ghform.dk | G142: 59440990 | K142: 1 | O142: 135 | P142: 20.4.2 | Q142: 400x400 gulvbrønd | R142: 7 | S142: stk | T142: KloakPP | CM142: 18137
A143: 136 | C143: Terræn inventar | D143: Thors-Design ApS | E143: mail@thors-design.dk | G143: 97133995 | K143: 1 | O143: 136 | P143: 20.4.3 | Q143: 400x800 gulvbrønd | R143: 2 | S143: stk | T143: KloakPP | CM143: 6786
A144: 137 | C144: Terræn inventar | D144: ParkZone A/S | E144: sagsbehandling@parkzone.dk | G144: 70252696 | K144: 1 | O144: 137 | P144: 20.4.4 | Q144: Gulvafløbsrander - bygning 3 med i alt 10 tilslutninger | R144: 20 | S144: m | T144: KloakPP | CM144: 40305
A145: 138 | B145: x | C145: Terræn inventar | D145: G9 landskab. park & byrum A/S | E145: udventar@g9.dk | G145: 70232999 | K145: 1 | O145: 138 | P145: 20.4.5 | Q145: Gulvafløbsrander - bygning 6 med i alt 4 tilslutninger | R145: 3.6 | S145: m | T145: KloakPP | CM145: 10718
A146: 139 | C146: Terræn inventar | D146: Zenzo Group ApS | E146: zenzo@zenzo,dk | G146: 70271900 | K146: 1 | O146: 139 | P146: 20.4.6 | Q146: Fodbøjninger - bygning 3 | R146: 14 | S146: stk | T146: KloakPP | CM146: 663
A147: 140 | C147: Terræn inventar | D147: ? | K147: 1 | O147: 140 | P147: 20.4.7 | Q147: Fodbøjninger - bygning 6 | R147: 25 | S147: stk | T147: KloakPP | CM147: 1184
A148: 141 | C148: Terræn inventar | D148: ? | K148: 1 | O148: 141 | P148: 20.4.8 | Q148: Radonsikring, vandtætning og fundamenter | R148: 14 | S148: stk | T148: KloakPP | CM148: 2410
A149: 142 | C149: Terræn inventar | D149: ? | K149: 1 | O149: 142 | P149: 20.4.9 | Q149: Radonsikring, vandtætning og fundamenter | R149: 28 | S149: stk | T149: KloakPP | CM149: 2893
A150: 143 | C150: Terræn inventar | D150: ? | K150: 1 | O150: 143 | R150: i alt
A151: 144 | B151: x | C151: Tømrer | D151: Frede West | E151: info@fredewestas.dk | F151: Lars West | G151: 43521787 | K151: 1 | O151: 144
A152: 145 | B152: x | C152: Tømrer | D152: S. Rosendal ApS Tømrerfirma | E152: simon@urban-elements.dk | F152: Simon Rosendahl | G152: 40957404 | H152: Christian Eilersvej 2 | I152: 3390 Hundested | K152: 1 | O152: 145
A153: 146 | B153: x | C153: Tømrer | D153: Tømrerfirmaet Søren Bruun | E153: tomrermestersorenbruun@hotmail.com | G153: 30329698 | H153: Vordingborgvej 62 | I153: 4773 Stensved | K153: 1 | O153: 146 | P153: 20 | Q153: Afløb i jord, faste ydelser | S153: I alt overføres til samleside
A154: 147 | B154: x | C154: Tømrer | D154: Tomas Nielsen | E154: tn85@hotmail.com | G154: 20498448 | K154: 1 | O154: 147
A155: 148 | B155: x | C155: Tømrer | D155: Christian Hansen | E155: bm@christian-hansen.dk | F155: Brian Mostel | G155: 29 73 64 40 | H155: Håndværkervej 1 | I155: 3390 Hundested | K155: 1 | O155: 148
A156: 149 | C156: Vandingssystem | D156: Orev ApS | E156: post@orev.dk | G156: 86107137 | K156: 1 | O156: 149 | P156: 20.05 | Q156: Variable ydelser
A157: 150 | C157: Vandingssystem | D157: Danregn | E157: danregn@danregn.dk | F157: Heidi Jørgsen | G157: 55725200 | H157: Hylledevej 12 | I157: 4640 Faxe | K157: 1 | O157: 150 | P157: 20.05.1 | Q157: Svendetimer | R157: 50 | S157: timer
A158: 151 | B158: x | C158: Vognmandsydelser | D158: DSV Transport A/S | E158: tilbud@dsvtransport.dk | G158: 47524700 | H158: Gammel Marbjergvej 17 | I158: 4000 Roskilde | K158: 1 | O158: 151 | P158: 20.05.2 | Q158: Lærlingetimer | R158: 50 | S158: timer
A159: 152 | B159: x | C159: Vognmandsydelser | D159: Frede Andersen & Søn | E159: lars@vognmandfas.dk | F159: Lars Andersen | G159: 55700380 | H159: Uglehøjvej 2 | I159: 4700 Næstved | K159: 1 | O159: 152 | P159: 20.05.3 | Q159: Kloakmester | R159: 25 | S159: timer
A160: 153 | B160: x | C160: Vognmandsydelser | D160: CRJ | E160: crj@dansk-specialtransport.dk | F160: Carsten Rørby Johansen | G160: 55 50 60 41 | H160: Håndværkervej 1 | I160: 4160 Herlufmagle | K160: 1 | O160: 153
A161: 154 | B161: x | C161: Vognmandsydelser | D161: SCT | E161: tilbud@scttransport.dk | F161: Christian LY Hansen | G161: 41383834 | H161: Stæremosen 21-23 | I161: 3250 Gilleleje | K161: 1 | O161: 154 | P161: 20.A | Q161: Afløb i jord, variable ydelser | S161: I alt overføres til samleside
A162: 155 | K162: 1 | O162: 155
A163: 156 | K163: 1 | O163: 156
A164: 157 | K164: 1 | O164: 157
A165: 158 | K165: 1 | O165: 158
A166: 159 | K166: 1 | O166: 159 | P166: 25
A167: 160 | K167: 1 | O167: 160
A168: 161 | K168: 1 | O168: 161 | P168: Pos. Nr. | Q168: Ydelse | R168: Antal | S168: Enhed
A169: 162 | K169: 1 | O169: 162
A170: 163 | K170: 1 | O170: 163 | P170: 25.01.01 | Q170: Rydning i terræn | R170: 1 | S170: SUM
A171: 164 | K171: 1 | O171: 164 | R171: i alt
A172: 165 | K172: 1 | O172: 165
A173: 166 | K173: 1 | O173: 166 | P173: 25 | Q173: Rydning i terræn, faste ydelser | S173: I alt overføres til samleside
A174: 167 | K174: 1 | O174: 167
A175: 168 | K175: 1 | O175: 168
A176: 169 | K176: 1 | O176: 169
A177: 170 | K177: 1 | O177: 170 | P177: 25.02 | Q177: Variable ydelser
A178: 171 | K178: 1 | O178: 171 | P178: 25.02.01 | Q178: Jordprøver Prøveudtagning samt analysering af jord for indhold af olie, PAH, Cd, Cu, Pb og Zn. Analyse skal foretages på godkendt laboratorium. | R178: 10 | S178: stk
A179: 172 | K179: 1 | O179: 172 | P179: 25.02.02 | Q179: Bortkørsel af kl. 0/1 jord. Bortskaffelse til kontrolleret modtager station ekskl. jordprøver. | R179: 50 | S179: ton
A180: 173 | K180: 1 | O180: 173 | P180: 25.02.03 | Q180: Bortkørsel af klasse 2/3-jord. Bortskaffelse til kontrolleret modtagestation, inkl. alle afgifter. | R180: 50 | S180: ton
A181: 174 | K181: 1 | O181: 174 | P181: 25.02.04 | Q181: Bortkørsel af forurenet jord klasse 4: B(a)p (Benzapyren) max 25 mg/kg – PAH total max 100 mg/kg, inkl. deponeringsafgift | R181: 50 | S181: ton
A182: 175 | K182: 1 | O182: 175 | P182: 25.02.05 | Q182: Bortkørsel af forurenet jord klasse 4: tung olie (C20-C35) max 1000 mg/kg, inkl. deponeringsafgift | R182: 50 | S182: ton
A183: 176 | K183: 1 | O183: 176 | P183: 25.02.06 | Q183: Bortkørsel af forurenet jord klasse 4: bly (pb) max 1500 mg/kg, Kobber (Cu) max 2500 mg/kg inkl. Deponeringsafgift | R183: 50 | S183: ton
A184: 177 | K184: 1 | O184: 177 | P184: 25.02.07 | Q184: Tilkørsel af ren råjord. | R184: 50 | S184: ton
A185: 178 | K185: 1 | O185: 178
A186: 179 | K186: 1 | O186: 179 | P186: 25.02.08 | Q186: Svendetimer, rydningsarbejde | R186: 50 | S186: timer
A187: 180 | K187: 1 | O187: 180 | P187: 25.02.09 | Q187: Lærlingetimer, rydningsarbejde | R187: 50 | S187: timer
A188: 181 | K188: 1 | O188: 181
A189: 182 | K189: 1 | O189: 182 | P189: 25.A | Q189: Rydning i terræn, variable ydelser | S189: I alt overføres til samleside
A190: 183 | K190: 1 | O190: 183
A191: 184 | K191: 1 | O191: 184
A192: 185 | K192: 1 | O192: 185
A193: 186 | K193: 1 | O193: 186
A194: 187 | K194: 1 | O194: 187 | P194: 26
A195: 188 | K195: 1 | O195: 188
A196: 189 | K196: 1 | O196: 189 | P196: Pos. Nr. | Q196: Ydelse | R196: Antal | S196: Enhed
A197: 190 | K197: 1 | O197: 190
A198: 191 | K198: 1 | O198: 191 | P198: 26.01.01 | Q198: Betonkantsten, KA1 | R198: 85 | S198: lbm | T198: Belægning, xBrolægger | AL198: 6978 | AM198: 9542
A199: 192 | K199: 1 | O199: 192 | P199: 26.01.02 | Q199: Betonkantsten, KA2 | R199: 75 | S199: lbm | T199: Belægning | AL199: 22444 | AM199: 30429
A200: 193 | K200: 1 | O200: 193 | P200: 26.01.03 | Q200: Pladsstøbt betonkant, KA3 | R200: 75 | S200: lbm | T200: Insitu kant | AP200: 124200 | AQ200: 202500 | CF200: 123750
... 1332 more rows
